Body Name,Body,Service Label,Service Code,CIPFA Detailed Expenditure Type,CIPFA Detailed Expenditure Code,Date,Transaction Number,Net Amount,Supplier Name
Nottinghamshire County Council,1111/1001,Children and Young P,CYP,Other Indirect Expenses       ,ABA,23.12.2011,10-05344,850,Serco Ltd
Nottinghamshire County Council,1111/1001,Children and Young P,CYP,"Repairs, Maintce to Buildings ",BAA,09.12.2011,10-03574,585.43,Miller Freeman & Sons (Nottingham)
Nottinghamshire County Council,1111/1001,Children and Young P,CYP,"Repairs, Maintce to Buildings ",BAA,14.12.2011,10-04059,1289.4,Office Innovations
Nottinghamshire County Council,1111/1001,Children and Young P,CYP,"Repairs, Maintce to Buildings ",BAA,15.12.2011,10-03107,580,Style Midlands
Nottinghamshire County Council,1111/1001,Children and Young P,CYP,"Repairs, Maintce to Buildings ",BAA,16.12.2011,10-04714,939,Newark & Sherwood Locksmiths Ltd
Nottinghamshire County Council,1111/1001,Children and Young P,CYP,"Repairs, Maintce to Buildings ",BAA,23.12.2011,10-05345,625,Sb Security Systems Ltd
Nottinghamshire County Council,1111/1001,Children and Young P,CYP,"Repairs, Maintce to Buildings ",BAA,28.12.2011,10-05482,3647,Office Innovations
Nottinghamshire County Council,1111/1001,Children and Young P,CYP,Energy Costs                  ,BCA,06.12.2011,10-00243,1407.87,Emo Oil Ltd
Nottinghamshire County Council,1111/1001,Children and Young P,CYP,Rents                         ,BDA,06.12.2011,10-03084,3868.06,The Dukeries College
Nottinghamshire County Council,1111/1001,Children and Young P,CYP,Rents                         ,BDA,06.12.2011,10-03085,3868.06,The Dukeries College
Nottinghamshire County Council,1111/1001,Children and Young P,CYP,Rents                         ,BDA,07.12.2011,10-03200,1984.31,Refugee Education
Nottinghamshire County Council,1111/1001,Children and Young P,CYP,Rents                         ,BDA,07.12.2011,10-03201,578.6,Refugee Education
Nottinghamshire County Council,1111/1001,Children and Young P,CYP,Rents                         ,BDA,07.12.2011,10-03202,578.6,Refugee Education
Nottinghamshire County Council,1111/1001,Children and Young P,CYP,Rents                         ,BDA,12.12.2011,10-03579,633.5,The Manor Academy
Nottinghamshire County Council,1111/1001,Children and Young P,CYP,Rents                         ,BDA,12.12.2011,10-03619,630,East Leake Baptist Chuch
Nottinghamshire County Council,1111/1001,Children and Young P,CYP,Rents                         ,BDA,13.12.2011,10-03927,968.36,Department Of Work & Pensions Bac
Nottinghamshire County Council,1111/1001,Children and Young P,CYP,Rents                         ,BDA,13.12.2011,10-03928,516.43,Leyton Healthcare No4 Ltd
Nottinghamshire County Council,1111/1001,Children and Young P,CYP,Rents                         ,BDA,13.12.2011,10-03929,676.55,Mgb Care Services Client Account
Nottinghamshire County Council,1111/1001,Children and Young P,CYP,Rents                         ,BDA,13.12.2011,10-03930,1145.6,Westwood
Nottinghamshire County Council,1111/1001,Children and Young P,CYP,Rents                         ,BDA,19.12.2011,10-00001,3875,K M Farrell
Nottinghamshire County Council,1111/1001,Children and Young P,CYP,Rents                         ,BDA,19.12.2011,10-04745,1385.95,Countrywide Care Homes Ltd T/A Gate
Nottinghamshire County Council,1111/1001,Children and Young P,CYP,Rents                         ,BDA,19.12.2011,10-04746,676.55,Mgb Care Services Client Account
Nottinghamshire County Council,1111/1001,Children and Young P,CYP,Rents                         ,BDA,20.12.2011,10-04964,676.55,Mgb Care Services Client Account
Nottinghamshire County Council,1111/1001,Children and Young P,CYP,Water Services                ,BFA,09.12.2011,10-03490,502,Severn Trent Water Ltd
Nottinghamshire County Council,1111/1001,Children and Young P,CYP,Water Services                ,BFA,19.12.2011,10-04743,168.37,Adsm Ltd
Nottinghamshire County Council,1111/1001,Children and Young P,CYP,Water Services                ,BFA,19.12.2011,10-04744,168.37,Adsm Ltd
Nottinghamshire County Council,1111/1001,Children and Young P,CYP,Water Services                ,BFA,28.12.2011,10-05420,841.93,Severn Trent Water Ltd
Nottinghamshire County Council,1111/1001,Children and Young P,CYP,Water Services                ,BFA,28.12.2011,10-05421,1017.65,Severn Trent Water Ltd
Nottinghamshire County Council,1111/1001,Children and Young P,CYP,Water Services                ,BFA,29.12.2011,10-05767,1304.8,Severn Trent Water Ltd
Nottinghamshire County Council,1111/1001,Children and Young P,CYP,Water Services                ,BFA,29.12.2011,10-05768,1531.45,Severn Trent Water Ltd
Nottinghamshire County Council,1111/1001,Children and Young P,CYP,Water Services                ,BFA,29.12.2011,10-05769,1465.79,Severn Trent Water Ltd
Nottinghamshire County Council,1111/1001,Children and Young P,CYP,Water Services                ,BFA,29.12.2011,10-05770,4016.72,Severn Trent Water Ltd
Nottinghamshire County Council,1111/1001,Children and Young P,CYP,Water Services                ,BFA,29.12.2011,10-05772,4516.58,Severn Trent Water Ltd
Nottinghamshire County Council,1111/1001,Children and Young P,CYP,Water Services                ,BFA,29.12.2011,10-05775,1384.47,Severn Trent Water Ltd
Nottinghamshire County Council,1111/1001,Children and Young P,CYP,Water Services                ,BFA,29.12.2011,10-05776,573.25,Severn Trent Water Ltd
Nottinghamshire County Council,1111/1001,Children and Young P,CYP,Direct Transport Costs        ,CAA,28.12.2011,10-05599,1995.6,Emo Oil Ltd
Nottinghamshire County Council,1111/1001,Children and Young P,CYP,Contract Hire / Leasing       ,CCA,07.12.2011,10-00162,1210,All Wayz Travel
Nottinghamshire County Council,1111/1001,Children and Young P,CYP,Contract Hire / Leasing       ,CCA,07.12.2011,10-00163,1353,All Wayz Travel
Nottinghamshire County Council,1111/1001,Children and Young P,CYP,Contract Hire / Leasing       ,CCA,07.12.2011,10-00164,1631.3,Midfield Travel
Nottinghamshire County Council,1111/1001,Children and Young P,CYP,Contract Hire / Leasing       ,CCA,07.12.2011,10-00165,1710,Garys Coaches Ltd
Nottinghamshire County Council,1111/1001,Children and Young P,CYP,Contract Hire / Leasing       ,CCA,07.12.2011,10-00166,1260,Garys Coaches Ltd
Nottinghamshire County Council,1111/1001,Children and Young P,CYP,Contract Hire / Leasing       ,CCA,07.12.2011,10-00176,3845,Redfern Travel
Nottinghamshire County Council,1111/1001,Children and Young P,CYP,Contract Hire / Leasing       ,CCA,07.12.2011,10-00177,1495,Redfern Travel
Nottinghamshire County Council,1111/1001,Children and Young P,CYP,Contract Hire / Leasing       ,CCA,07.12.2011,10-00178,860,Jb Tours Watnall Ltd
Nottinghamshire County Council,1111/1001,Children and Young P,CYP,Contract Hire / Leasing       ,CCA,07.12.2011,10-00179,1000,Jb Tours Watnall Ltd
Nottinghamshire County Council,1111/1001,Children and Young P,CYP,Contract Hire / Leasing       ,CCA,07.12.2011,10-00180,9460,Kettlewell Retford Ltd
Nottinghamshire County Council,1111/1001,Children and Young P,CYP,Contract Hire / Leasing       ,CCA,07.12.2011,10-00181,2882,C W Moxon Ltd
Nottinghamshire County Council,1111/1001,Children and Young P,CYP,Contract Hire / Leasing       ,CCA,07.12.2011,10-00182,625,C W Moxon Ltd
Nottinghamshire County Council,1111/1001,Children and Young P,CYP,Contract Hire / Leasing       ,CCA,09.12.2011,10-03516,1445.72,Taxicover Uk Ltd
Nottinghamshire County Council,1111/1001,Children and Young P,CYP,Contract Hire / Leasing       ,CCA,09.12.2011,10-03517,3074.22,Taxicover Uk Ltd
Nottinghamshire County Council,1111/1001,Children and Young P,CYP,Contract Hire / Leasing       ,CCA,09.12.2011,10-03518,3513.56,Taxicover Uk Ltd
Nottinghamshire County Council,1111/1001,Children and Young P,CYP,Contract Hire / Leasing       ,CCA,09.12.2011,10-03519,3866,Taxicover Uk Ltd
Nottinghamshire County Council,1111/1001,Children and Young P,CYP,Contract Hire / Leasing       ,CCA,09.12.2011,10-03520,3507.62,Taxicover Uk Ltd
Nottinghamshire County Council,1111/1001,Children and Young P,CYP,Contract Hire / Leasing       ,CCA,09.12.2011,10-03521,3730,Taxicover Uk Ltd
Nottinghamshire County Council,1111/1001,Children and Young P,CYP,Contract Hire / Leasing       ,CCA,09.12.2011,10-03522,2982,Taxicover Uk Ltd
Nottinghamshire County Council,1111/1001,Children and Young P,CYP,Contract Hire / Leasing       ,CCA,09.12.2011,10-03523,3818,Taxicover Uk Ltd
Nottinghamshire County Council,1111/1001,Children and Young P,CYP,Contract Hire / Leasing       ,CCA,09.12.2011,10-03524,3915.95,Taxicover Uk Ltd
Nottinghamshire County Council,1111/1001,Children and Young P,CYP,Contract Hire / Leasing       ,CCA,09.12.2011,10-03525,3121.1,Taxicover Uk Ltd
Nottinghamshire County Council,1111/1001,Children and Young P,CYP,Contract Hire / Leasing       ,CCA,09.12.2011,10-03526,3240.17,Taxicover Uk Ltd
Nottinghamshire County Council,1111/1001,Children and Young P,CYP,Contract Hire / Leasing       ,CCA,09.12.2011,10-03527,2772,Taxicover Uk Ltd
Nottinghamshire County Council,1111/1001,Children and Young P,CYP,Contract Hire / Leasing       ,CCA,09.12.2011,10-03528,2062.5,Taxicover Uk Ltd
Nottinghamshire County Council,1111/1001,Children and Young P,CYP,Contract Hire / Leasing       ,CCA,09.12.2011,10-03529,3751.22,Taxicover Uk Ltd
Nottinghamshire County Council,1111/1001,Children and Young P,CYP,Contract Hire / Leasing       ,CCA,09.12.2011,10-03530,3936.24,Taxicover Uk Ltd
Nottinghamshire County Council,1111/1001,Children and Young P,CYP,Contract Hire / Leasing       ,CCA,09.12.2011,10-03531,3088.38,Arrow Specialised Transport Ltd
Nottinghamshire County Council,1111/1001,Children and Young P,CYP,Contract Hire / Leasing       ,CCA,09.12.2011,10-03532,701,Fozcabs Newark Taxis
Nottinghamshire County Council,1111/1001,Children and Young P,CYP,Contract Hire / Leasing       ,CCA,09.12.2011,10-03533,843.76,Fozcabs Newark Taxis
Nottinghamshire County Council,1111/1001,Children and Young P,CYP,Contract Hire / Leasing       ,CCA,09.12.2011,10-03534,2625,Travelwise Coaches Ltd
Nottinghamshire County Council,1111/1001,Children and Young P,CYP,Contract Hire / Leasing       ,CCA,09.12.2011,10-03535,2168.99,Travelwise Coaches Ltd
Nottinghamshire County Council,1111/1001,Children and Young P,CYP,Contract Hire / Leasing       ,CCA,09.12.2011,10-03536,2296.14,Travelwise Coaches Ltd
Nottinghamshire County Council,1111/1001,Children and Young P,CYP,Contract Hire / Leasing       ,CCA,09.12.2011,10-03537,2249.94,Travelwise Coaches Ltd
Nottinghamshire County Council,1111/1001,Children and Young P,CYP,Contract Hire / Leasing       ,CCA,09.12.2011,10-03538,2814.02,Travelwise Coaches Ltd
Nottinghamshire County Council,1111/1001,Children and Young P,CYP,Contract Hire / Leasing       ,CCA,09.12.2011,10-03539,2255.66,Travelwise Coaches Ltd
Nottinghamshire County Council,1111/1001,Children and Young P,CYP,Contract Hire / Leasing       ,CCA,09.12.2011,10-03540,2700.06,Travelwise Coaches Ltd
Nottinghamshire County Council,1111/1001,Children and Young P,CYP,Contract Hire / Leasing       ,CCA,09.12.2011,10-03541,2508,Travelwise Coaches Ltd
Nottinghamshire County Council,1111/1001,Children and Young P,CYP,Contract Hire / Leasing       ,CCA,09.12.2011,10-03542,2031.92,Travelwise Coaches Ltd
Nottinghamshire County Council,1111/1001,Children and Young P,CYP,Contract Hire / Leasing       ,CCA,09.12.2011,10-03543,2652.1,Travelwise Coaches Ltd
Nottinghamshire County Council,1111/1001,Children and Young P,CYP,Contract Hire / Leasing       ,CCA,09.12.2011,10-03544,1575,AOT Coaches
Nottinghamshire County Council,1111/1001,Children and Young P,CYP,Contract Hire / Leasing       ,CCA,09.12.2011,10-03545,720,AOT Coaches
Nottinghamshire County Council,1111/1001,Children and Young P,CYP,Contract Hire / Leasing       ,CCA,09.12.2011,10-03555,3648.26,C W Moxon Ltd
Nottinghamshire County Council,1111/1001,Children and Young P,CYP,Contract Hire / Leasing       ,CCA,12.12.2011,10-03660,1150.16,Elkingtons Park Garage
Nottinghamshire County Council,1111/1001,Children and Young P,CYP,Contract Hire / Leasing       ,CCA,12.12.2011,10-03661,2512,Tiger European Uk Ltd
Nottinghamshire County Council,1111/1001,Children and Young P,CYP,Contract Hire / Leasing       ,CCA,15.12.2011,10-04086,2718,Taxicover Uk Ltd
Nottinghamshire County Council,1111/1001,Children and Young P,CYP,Contract Hire / Leasing       ,CCA,15.12.2011,10-04087,3642,Taxicover Uk Ltd
Nottinghamshire County Council,1111/1001,Children and Young P,CYP,Contract Hire / Leasing       ,CCA,15.12.2011,10-04088,3109.55,Taxicover Uk Ltd
Nottinghamshire County Council,1111/1001,Children and Young P,CYP,Contract Hire / Leasing       ,CCA,15.12.2011,10-04089,748,Arrow Specialised Transport Ltd
Nottinghamshire County Council,1111/1001,Children and Young P,CYP,Contract Hire / Leasing       ,CCA,15.12.2011,10-04090,837.8,Arrow Specialised Transport Ltd
Nottinghamshire County Council,1111/1001,Children and Young P,CYP,Contract Hire / Leasing       ,CCA,15.12.2011,10-04091,2444.3,Arrow Specialised Transport Ltd
Nottinghamshire County Council,1111/1001,Children and Young P,CYP,Contract Hire / Leasing       ,CCA,15.12.2011,10-04092,1969.51,Arrow Specialised Transport Ltd
Nottinghamshire County Council,1111/1001,Children and Young P,CYP,Contract Hire / Leasing       ,CCA,15.12.2011,10-04093,1528.73,Arrow Specialised Transport Ltd
Nottinghamshire County Council,1111/1001,Children and Young P,CYP,Contract Hire / Leasing       ,CCA,15.12.2011,10-04094,1702.6,Arrow Specialised Transport Ltd
Nottinghamshire County Council,1111/1001,Children and Young P,CYP,Contract Hire / Leasing       ,CCA,15.12.2011,10-04095,1848.4,Arrow Specialised Transport Ltd
Nottinghamshire County Council,1111/1001,Children and Young P,CYP,Contract Hire / Leasing       ,CCA,15.12.2011,10-04096,2053.62,Arrow Specialised Transport Ltd
Nottinghamshire County Council,1111/1001,Children and Young P,CYP,Contract Hire / Leasing       ,CCA,15.12.2011,10-04097,2706.62,Arrow Specialised Transport Ltd
Nottinghamshire County Council,1111/1001,Children and Young P,CYP,Contract Hire / Leasing       ,CCA,15.12.2011,10-04098,2666.67,Arrow Specialised Transport Ltd
Nottinghamshire County Council,1111/1001,Children and Young P,CYP,Contract Hire / Leasing       ,CCA,15.12.2011,10-04099,3324.05,Arrow Specialised Transport Ltd
Nottinghamshire County Council,1111/1001,Children and Young P,CYP,Contract Hire / Leasing       ,CCA,15.12.2011,10-04100,1527.7,Fozcabs Newark Taxis
Nottinghamshire County Council,1111/1001,Children and Young P,CYP,Contract Hire / Leasing       ,CCA,15.12.2011,10-04101,1286.6,Fozcabs Newark Taxis
Nottinghamshire County Council,1111/1001,Children and Young P,CYP,Contract Hire / Leasing       ,CCA,15.12.2011,10-04102,591.52,Fozcabs Newark Taxis
Nottinghamshire County Council,1111/1001,Children and Young P,CYP,Contract Hire / Leasing       ,CCA,15.12.2011,10-04103,422.5,Fozcabs Newark Taxis
Nottinghamshire County Council,1111/1001,Children and Young P,CYP,Contract Hire / Leasing       ,CCA,15.12.2011,10-04104,1814.6,Fozcabs Newark Taxis
Nottinghamshire County Council,1111/1001,Children and Young P,CYP,Contract Hire / Leasing       ,CCA,15.12.2011,10-04106,2031.96,Hawkins Taxis & Transport
Nottinghamshire County Council,1111/1001,Children and Young P,CYP,Contract Hire / Leasing       ,CCA,15.12.2011,10-04107,2681.56,Mct Uk Ltd
Nottinghamshire County Council,1111/1001,Children and Young P,CYP,Contract Hire / Leasing       ,CCA,15.12.2011,10-04108,1185,Sprays Transport Ltd
Nottinghamshire County Council,1111/1001,Children and Young P,CYP,Contract Hire / Leasing       ,CCA,15.12.2011,10-04109,3547.38,Marriotts Travel
Nottinghamshire County Council,1111/1001,Children and Young P,CYP,Contract Hire / Leasing       ,CCA,15.12.2011,10-04110,3010.54,Marriotts Travel
Nottinghamshire County Council,1111/1001,Children and Young P,CYP,Contract Hire / Leasing       ,CCA,15.12.2011,10-04111,2763.86,Martins Travel
Nottinghamshire County Council,1111/1001,Children and Young P,CYP,Contract Hire / Leasing       ,CCA,15.12.2011,10-04112,2597.88,Martins Travel
Nottinghamshire County Council,1111/1001,Children and Young P,CYP,Contract Hire / Leasing       ,CCA,15.12.2011,10-04113,1412,Ace Of Mansfield Ltd
Nottinghamshire County Council,1111/1001,Children and Young P,CYP,Contract Hire / Leasing       ,CCA,15.12.2011,10-04114,1400,Ace Of Mansfield Ltd
Nottinghamshire County Council,1111/1001,Children and Young P,CYP,Contract Hire / Leasing       ,CCA,15.12.2011,10-04116,701.4,Arrow Specialised Transport Ltd
Nottinghamshire County Council,1111/1001,Children and Young P,CYP,Contract Hire / Leasing       ,CCA,15.12.2011,10-04117,2366.28,Arrow Specialised Transport Ltd
Nottinghamshire County Council,1111/1001,Children and Young P,CYP,Contract Hire / Leasing       ,CCA,15.12.2011,10-04118,1756,Arrow Specialised Transport Ltd
Nottinghamshire County Council,1111/1001,Children and Young P,CYP,Contract Hire / Leasing       ,CCA,15.12.2011,10-04119,1202.2,Arrow Specialised Transport Ltd
Nottinghamshire County Council,1111/1001,Children and Young P,CYP,Contract Hire / Leasing       ,CCA,15.12.2011,10-04120,707.8,Arrow Specialised Transport Ltd
Nottinghamshire County Council,1111/1001,Children and Young P,CYP,Contract Hire / Leasing       ,CCA,15.12.2011,10-04121,2307.26,Arrow Specialised Transport Ltd
Nottinghamshire County Council,1111/1001,Children and Young P,CYP,Contract Hire / Leasing       ,CCA,15.12.2011,10-04122,2598.88,Arrow Specialised Transport Ltd
Nottinghamshire County Council,1111/1001,Children and Young P,CYP,Contract Hire / Leasing       ,CCA,15.12.2011,10-04123,1879.36,Arrow Specialised Transport Ltd
Nottinghamshire County Council,1111/1001,Children and Young P,CYP,Contract Hire / Leasing       ,CCA,15.12.2011,10-04124,2182.1,Arrow Specialised Transport Ltd
Nottinghamshire County Council,1111/1001,Children and Young P,CYP,Contract Hire / Leasing       ,CCA,15.12.2011,10-04125,1997.8,Arrow Specialised Transport Ltd
Nottinghamshire County Council,1111/1001,Children and Young P,CYP,Contract Hire / Leasing       ,CCA,15.12.2011,10-04126,1432.86,Arrow Specialised Transport Ltd
Nottinghamshire County Council,1111/1001,Children and Young P,CYP,Contract Hire / Leasing       ,CCA,15.12.2011,10-04127,1971,Arrow Specialised Transport Ltd
Nottinghamshire County Council,1111/1001,Children and Young P,CYP,Contract Hire / Leasing       ,CCA,15.12.2011,10-04128,2452.3,Arrow Specialised Transport Ltd
Nottinghamshire County Council,1111/1001,Children and Young P,CYP,Contract Hire / Leasing       ,CCA,15.12.2011,10-04129,2116.26,Arrow Specialised Transport Ltd
Nottinghamshire County Council,1111/1001,Children and Young P,CYP,Contract Hire / Leasing       ,CCA,15.12.2011,10-04130,2301.3,Arrow Specialised Transport Ltd
Nottinghamshire County Council,1111/1001,Children and Young P,CYP,Contract Hire / Leasing       ,CCA,15.12.2011,10-04131,1598.64,Arrow Specialised Transport Ltd
Nottinghamshire County Council,1111/1001,Children and Young P,CYP,Contract Hire / Leasing       ,CCA,15.12.2011,10-04132,4070,Arrow Specialised Transport Ltd
Nottinghamshire County Council,1111/1001,Children and Young P,CYP,Contract Hire / Leasing       ,CCA,15.12.2011,10-04133,2575.06,Arrow Specialised Transport Ltd
Nottinghamshire County Council,1111/1001,Children and Young P,CYP,Contract Hire / Leasing       ,CCA,15.12.2011,10-04134,2924.16,Arrow Specialised Transport Ltd
Nottinghamshire County Council,1111/1001,Children and Young P,CYP,Contract Hire / Leasing       ,CCA,15.12.2011,10-04135,2900.22,Arrow Specialised Transport Ltd
Nottinghamshire County Council,1111/1001,Children and Young P,CYP,Contract Hire / Leasing       ,CCA,15.12.2011,10-04136,3162.26,Arrow Specialised Transport Ltd
Nottinghamshire County Council,1111/1001,Children and Young P,CYP,Contract Hire / Leasing       ,CCA,15.12.2011,10-04137,2156.92,Arrow Specialised Transport Ltd
Nottinghamshire County Council,1111/1001,Children and Young P,CYP,Contract Hire / Leasing       ,CCA,15.12.2011,10-04138,2455.2,Arrow Specialised Transport Ltd
Nottinghamshire County Council,1111/1001,Children and Young P,CYP,Contract Hire / Leasing       ,CCA,15.12.2011,10-04139,1262.8,Arrow Specialised Transport Ltd
Nottinghamshire County Council,1111/1001,Children and Young P,CYP,Contract Hire / Leasing       ,CCA,15.12.2011,10-04140,2508,Arrow Specialised Transport Ltd
Nottinghamshire County Council,1111/1001,Children and Young P,CYP,Contract Hire / Leasing       ,CCA,15.12.2011,10-04141,3494.92,D G Private Hire Ltd
Nottinghamshire County Council,1111/1001,Children and Young P,CYP,Contract Hire / Leasing       ,CCA,15.12.2011,10-04142,330,D G Private Hire Ltd
Nottinghamshire County Council,1111/1001,Children and Young P,CYP,Contract Hire / Leasing       ,CCA,15.12.2011,10-04143,703.5,D G Private Hire Ltd
Nottinghamshire County Council,1111/1001,Children and Young P,CYP,Contract Hire / Leasing       ,CCA,15.12.2011,10-04144,704,D G Private Hire Ltd
Nottinghamshire County Council,1111/1001,Children and Young P,CYP,Contract Hire / Leasing       ,CCA,15.12.2011,10-04145,1575,D G Private Hire Ltd
Nottinghamshire County Council,1111/1001,Children and Young P,CYP,Contract Hire / Leasing       ,CCA,15.12.2011,10-04146,3493.38,D G Private Hire Ltd
Nottinghamshire County Council,1111/1001,Children and Young P,CYP,Contract Hire / Leasing       ,CCA,15.12.2011,10-04147,2211,D G Private Hire Ltd
Nottinghamshire County Council,1111/1001,Children and Young P,CYP,Contract Hire / Leasing       ,CCA,15.12.2011,10-04148,3228.06,D G Private Hire Ltd
Nottinghamshire County Council,1111/1001,Children and Young P,CYP,Contract Hire / Leasing       ,CCA,15.12.2011,10-04149,2046,D G Private Hire Ltd
Nottinghamshire County Council,1111/1001,Children and Young P,CYP,Contract Hire / Leasing       ,CCA,15.12.2011,10-04150,1870,D G Private Hire Ltd
Nottinghamshire County Council,1111/1001,Children and Young P,CYP,Contract Hire / Leasing       ,CCA,15.12.2011,10-04151,520,Fozcabs Newark Taxis
Nottinghamshire County Council,1111/1001,Children and Young P,CYP,Contract Hire / Leasing       ,CCA,15.12.2011,10-04152,2138.41,Horizon Travel
Nottinghamshire County Council,1111/1001,Children and Young P,CYP,Contract Hire / Leasing       ,CCA,15.12.2011,10-04153,2233.98,Horizon Travel
Nottinghamshire County Council,1111/1001,Children and Young P,CYP,Contract Hire / Leasing       ,CCA,15.12.2011,10-04154,1938.14,P Rhodes Transport Ltd
Nottinghamshire County Council,1111/1001,Children and Young P,CYP,Contract Hire / Leasing       ,CCA,15.12.2011,10-04155,1934.68,P Rhodes Transport Ltd
Nottinghamshire County Council,1111/1001,Children and Young P,CYP,Contract Hire / Leasing       ,CCA,15.12.2011,10-04156,1694,D G Private Hire Ltd
Nottinghamshire County Council,1111/1001,Children and Young P,CYP,Contract Hire / Leasing       ,CCA,15.12.2011,10-04157,800.8,D G Private Hire Ltd
Nottinghamshire County Council,1111/1001,Children and Young P,CYP,Contract Hire / Leasing       ,CCA,15.12.2011,10-04158,2681.05,Amvale Ltd
Nottinghamshire County Council,1111/1001,Children and Young P,CYP,Contract Hire / Leasing       ,CCA,15.12.2011,10-04159,1496,P & P Taxis
Nottinghamshire County Council,1111/1001,Children and Young P,CYP,Contract Hire / Leasing       ,CCA,15.12.2011,10-04163,629.2,Alert Cars Ltd
Nottinghamshire County Council,1111/1001,Children and Young P,CYP,Contract Hire / Leasing       ,CCA,15.12.2011,10-04164,624,Arnold Service Centre
Nottinghamshire County Council,1111/1001,Children and Young P,CYP,Contract Hire / Leasing       ,CCA,15.12.2011,10-04165,858,Arnold Service Centre
Nottinghamshire County Council,1111/1001,Children and Young P,CYP,Contract Hire / Leasing       ,CCA,15.12.2011,10-04166,1312.5,Taxicover Uk Ltd
Nottinghamshire County Council,1111/1001,Children and Young P,CYP,Contract Hire / Leasing       ,CCA,15.12.2011,10-04169,760,Mar Taxis Ltd
Nottinghamshire County Council,1111/1001,Children and Young P,CYP,Contract Hire / Leasing       ,CCA,15.12.2011,10-04170,630,Mar Taxis Ltd
Nottinghamshire County Council,1111/1001,Children and Young P,CYP,Contract Hire / Leasing       ,CCA,15.12.2011,10-04171,949.8,Sharpes Of Nottingham
Nottinghamshire County Council,1111/1001,Children and Young P,CYP,Contract Hire / Leasing       ,CCA,15.12.2011,10-04172,1028.95,Sharpes Of Nottingham
Nottinghamshire County Council,1111/1001,Children and Young P,CYP,Contract Hire / Leasing       ,CCA,15.12.2011,10-04173,2738.4,Sharpes Of Nottingham
Nottinghamshire County Council,1111/1001,Children and Young P,CYP,Contract Hire / Leasing       ,CCA,15.12.2011,10-04178,2510,Sharpes Of Nottingham
Nottinghamshire County Council,1111/1001,Children and Young P,CYP,Contract Hire / Leasing       ,CCA,15.12.2011,10-04179,1345.55,Sharpes Of Nottingham
Nottinghamshire County Council,1111/1001,Children and Young P,CYP,Contract Hire / Leasing       ,CCA,15.12.2011,10-04180,2606.52,Sharpes Of Nottingham
Nottinghamshire County Council,1111/1001,Children and Young P,CYP,Contract Hire / Leasing       ,CCA,15.12.2011,10-04183,516.8,Southside Cars
Nottinghamshire County Council,1111/1001,Children and Young P,CYP,Contract Hire / Leasing       ,CCA,15.12.2011,10-04184,660,A C Taxis
Nottinghamshire County Council,1111/1001,Children and Young P,CYP,Contract Hire / Leasing       ,CCA,15.12.2011,10-04185,1470,A Line Taxis
Nottinghamshire County Council,1111/1001,Children and Young P,CYP,Contract Hire / Leasing       ,CCA,15.12.2011,10-04190,1857.92,Cabline Uk Ltd
Nottinghamshire County Council,1111/1001,Children and Young P,CYP,Contract Hire / Leasing       ,CCA,15.12.2011,10-04191,720,Cabline Uk Ltd
Nottinghamshire County Council,1111/1001,Children and Young P,CYP,Contract Hire / Leasing       ,CCA,15.12.2011,10-04192,1032,Cabline Uk Ltd
Nottinghamshire County Council,1111/1001,Children and Young P,CYP,Contract Hire / Leasing       ,CCA,15.12.2011,10-04193,960,Cabline Uk Ltd
Nottinghamshire County Council,1111/1001,Children and Young P,CYP,Contract Hire / Leasing       ,CCA,15.12.2011,10-04220,29900,Premiere Travel Ltd
Nottinghamshire County Council,1111/1001,Children and Young P,CYP,Contract Hire / Leasing       ,CCA,15.12.2011,10-04228,3959.8,Redfern Travel
Nottinghamshire County Council,1111/1001,Children and Young P,CYP,Contract Hire / Leasing       ,CCA,15.12.2011,10-04231,2520,Vale Travel
Nottinghamshire County Council,1111/1001,Children and Young P,CYP,Contract Hire / Leasing       ,CCA,15.12.2011,10-04249,2420,Glenn Ryder Coaches
Nottinghamshire County Council,1111/1001,Children and Young P,CYP,Contract Hire / Leasing       ,CCA,15.12.2011,10-04257,712.98,Alpha Cars
Nottinghamshire County Council,1111/1001,Children and Young P,CYP,Contract Hire / Leasing       ,CCA,15.12.2011,10-04259,510,Anitas Contracts
Nottinghamshire County Council,1111/1001,Children and Young P,CYP,Contract Hire / Leasing       ,CCA,15.12.2011,10-04261,1634.8,Arrow Specialised Transport Ltd
Nottinghamshire County Council,1111/1001,Children and Young P,CYP,Contract Hire / Leasing       ,CCA,15.12.2011,10-04262,2146.38,Arrow Specialised Transport Ltd
Nottinghamshire County Council,1111/1001,Children and Young P,CYP,Contract Hire / Leasing       ,CCA,15.12.2011,10-04263,2159.96,Arrow Specialised Transport Ltd
Nottinghamshire County Council,1111/1001,Children and Young P,CYP,Contract Hire / Leasing       ,CCA,15.12.2011,10-04264,2284.6,Arrow Specialised Transport Ltd
Nottinghamshire County Council,1111/1001,Children and Young P,CYP,Contract Hire / Leasing       ,CCA,15.12.2011,10-04265,2776.4,Arrow Specialised Transport Ltd
Nottinghamshire County Council,1111/1001,Children and Young P,CYP,Contract Hire / Leasing       ,CCA,15.12.2011,10-04266,2545.2,Arrow Specialised Transport Ltd
Nottinghamshire County Council,1111/1001,Children and Young P,CYP,Contract Hire / Leasing       ,CCA,15.12.2011,10-04267,1958,Arrow Specialised Transport Ltd
Nottinghamshire County Council,1111/1001,Children and Young P,CYP,Contract Hire / Leasing       ,CCA,15.12.2011,10-04269,1262.84,Bridges Transport Services
Nottinghamshire County Council,1111/1001,Children and Young P,CYP,Contract Hire / Leasing       ,CCA,15.12.2011,10-04270,957.83,Bridges Transport Services
Nottinghamshire County Council,1111/1001,Children and Young P,CYP,Contract Hire / Leasing       ,CCA,15.12.2011,10-04278,1951.7,Bridges Transport Services
Nottinghamshire County Council,1111/1001,Children and Young P,CYP,Contract Hire / Leasing       ,CCA,15.12.2011,10-04279,1441.22,Bridges Transport Services
Nottinghamshire County Council,1111/1001,Children and Young P,CYP,Contract Hire / Leasing       ,CCA,15.12.2011,10-04280,1219.17,Bridges Transport Services
Nottinghamshire County Council,1111/1001,Children and Young P,CYP,Contract Hire / Leasing       ,CCA,15.12.2011,10-04281,1452.14,Bridges Transport Services
Nottinghamshire County Council,1111/1001,Children and Young P,CYP,Contract Hire / Leasing       ,CCA,15.12.2011,10-04282,2082.9,Bridges Transport Services
Nottinghamshire County Council,1111/1001,Children and Young P,CYP,Contract Hire / Leasing       ,CCA,15.12.2011,10-04291,1135.31,D G Private Hire Ltd
Nottinghamshire County Council,1111/1001,Children and Young P,CYP,Contract Hire / Leasing       ,CCA,15.12.2011,10-04292,1002,D G Private Hire Ltd
Nottinghamshire County Council,1111/1001,Children and Young P,CYP,Contract Hire / Leasing       ,CCA,15.12.2011,10-04295,2490.18,Erewash Community Transport
Nottinghamshire County Council,1111/1001,Children and Young P,CYP,Contract Hire / Leasing       ,CCA,15.12.2011,10-04297,1657.72,Headland Taxi Services
Nottinghamshire County Council,1111/1001,Children and Young P,CYP,Contract Hire / Leasing       ,CCA,15.12.2011,10-04298,2739.88,Horizon Travel
Nottinghamshire County Council,1111/1001,Children and Young P,CYP,Contract Hire / Leasing       ,CCA,15.12.2011,10-04300,2643.2,Ja Travel Ltd
Nottinghamshire County Council,1111/1001,Children and Young P,CYP,Contract Hire / Leasing       ,CCA,15.12.2011,10-04301,3374,Ja Travel Ltd
Nottinghamshire County Council,1111/1001,Children and Young P,CYP,Contract Hire / Leasing       ,CCA,15.12.2011,10-04303,1324.8,Motorvation Taxis
Nottinghamshire County Council,1111/1001,Children and Young P,CYP,Contract Hire / Leasing       ,CCA,15.12.2011,10-04304,504,Motorvation Taxis
Nottinghamshire County Council,1111/1001,Children and Young P,CYP,Contract Hire / Leasing       ,CCA,15.12.2011,10-04307,1056,Ng11 Cars
Nottinghamshire County Council,1111/1001,Children and Young P,CYP,Contract Hire / Leasing       ,CCA,15.12.2011,10-04309,1754,Sprays Transport Ltd
Nottinghamshire County Council,1111/1001,Children and Young P,CYP,Contract Hire / Leasing       ,CCA,15.12.2011,10-04310,1838,Sprays Transport Ltd
Nottinghamshire County Council,1111/1001,Children and Young P,CYP,Contract Hire / Leasing       ,CCA,15.12.2011,10-04311,1670,Sprays Transport Ltd
Nottinghamshire County Council,1111/1001,Children and Young P,CYP,Contract Hire / Leasing       ,CCA,15.12.2011,10-04312,2093.2,Sprays Transport Ltd
Nottinghamshire County Council,1111/1001,Children and Young P,CYP,Contract Hire / Leasing       ,CCA,15.12.2011,10-04313,2072.3,Sprays Transport Ltd
Nottinghamshire County Council,1111/1001,Children and Young P,CYP,Contract Hire / Leasing       ,CCA,15.12.2011,10-04314,2471.6,Sprays Transport Ltd
Nottinghamshire County Council,1111/1001,Children and Young P,CYP,Contract Hire / Leasing       ,CCA,15.12.2011,10-04315,2598.1,Sprays Transport Ltd
Nottinghamshire County Council,1111/1001,Children and Young P,CYP,Contract Hire / Leasing       ,CCA,15.12.2011,10-04316,2186.9,Sprays Transport Ltd
Nottinghamshire County Council,1111/1001,Children and Young P,CYP,Contract Hire / Leasing       ,CCA,15.12.2011,10-04317,2530,Sprays Transport Ltd
Nottinghamshire County Council,1111/1001,Children and Young P,CYP,Contract Hire / Leasing       ,CCA,15.12.2011,10-04320,1530,Sprays Transport Ltd
Nottinghamshire County Council,1111/1001,Children and Young P,CYP,Contract Hire / Leasing       ,CCA,15.12.2011,10-04321,2111.46,Sprays Transport Ltd
Nottinghamshire County Council,1111/1001,Children and Young P,CYP,Contract Hire / Leasing       ,CCA,15.12.2011,10-04322,2737.5,Sprays Transport Ltd
Nottinghamshire County Council,1111/1001,Children and Young P,CYP,Contract Hire / Leasing       ,CCA,15.12.2011,10-04323,1981.01,Sprays Transport Ltd
Nottinghamshire County Council,1111/1001,Children and Young P,CYP,Contract Hire / Leasing       ,CCA,15.12.2011,10-04324,2244,Sprays Transport Ltd
Nottinghamshire County Council,1111/1001,Children and Young P,CYP,Contract Hire / Leasing       ,CCA,15.12.2011,10-04325,2037.29,Sprays Transport Ltd
Nottinghamshire County Council,1111/1001,Children and Young P,CYP,Contract Hire / Leasing       ,CCA,15.12.2011,10-04326,2369.52,Sprays Transport Ltd
Nottinghamshire County Council,1111/1001,Children and Young P,CYP,Contract Hire / Leasing       ,CCA,15.12.2011,10-04327,2443.44,Sprays Transport Ltd
Nottinghamshire County Council,1111/1001,Children and Young P,CYP,Contract Hire / Leasing       ,CCA,15.12.2011,10-04328,1385.3,Sprays Transport Ltd
Nottinghamshire County Council,1111/1001,Children and Young P,CYP,Contract Hire / Leasing       ,CCA,15.12.2011,10-04329,2351.7,Sprays Transport Ltd
Nottinghamshire County Council,1111/1001,Children and Young P,CYP,Contract Hire / Leasing       ,CCA,15.12.2011,10-04330,2604.26,Sprays Transport Ltd
Nottinghamshire County Council,1111/1001,Children and Young P,CYP,Contract Hire / Leasing       ,CCA,15.12.2011,10-04331,2779.16,Sprays Transport Ltd
Nottinghamshire County Council,1111/1001,Children and Young P,CYP,Contract Hire / Leasing       ,CCA,15.12.2011,10-04332,1240.7,Sprays Transport Ltd
Nottinghamshire County Council,1111/1001,Children and Young P,CYP,Contract Hire / Leasing       ,CCA,15.12.2011,10-04333,2659.95,Sprays Transport Ltd
Nottinghamshire County Council,1111/1001,Children and Young P,CYP,Contract Hire / Leasing       ,CCA,15.12.2011,10-04334,3140.62,Sprays Transport Ltd
Nottinghamshire County Council,1111/1001,Children and Young P,CYP,Contract Hire / Leasing       ,CCA,15.12.2011,10-04335,1728,Sprays Transport Ltd
Nottinghamshire County Council,1111/1001,Children and Young P,CYP,Contract Hire / Leasing       ,CCA,15.12.2011,10-04338,3304,F & J Marriott T/A Unity Coaches
Nottinghamshire County Council,1111/1001,Children and Young P,CYP,Contract Hire / Leasing       ,CCA,15.12.2011,10-04339,3304.5,F & J Marriott T/A Unity Coaches
Nottinghamshire County Council,1111/1001,Children and Young P,CYP,Contract Hire / Leasing       ,CCA,15.12.2011,10-04344,2076.6,Vallances Coaches
Nottinghamshire County Council,1111/1001,Children and Young P,CYP,Contract Hire / Leasing       ,CCA,15.12.2011,10-04345,2468.4,Vallances Coaches
Nottinghamshire County Council,1111/1001,Children and Young P,CYP,Contract Hire / Leasing       ,CCA,15.12.2011,10-04347,1575,County Cars
Nottinghamshire County Council,1111/1001,Children and Young P,CYP,Contract Hire / Leasing       ,CCA,15.12.2011,10-04348,1956.78,1st 4 Care Ltd
Nottinghamshire County Council,1111/1001,Children and Young P,CYP,Contract Hire / Leasing       ,CCA,15.12.2011,10-04349,2729.98,1st 4 Care Ltd
Nottinghamshire County Council,1111/1001,Children and Young P,CYP,Contract Hire / Leasing       ,CCA,15.12.2011,10-04350,2824.14,1st 4 Care Ltd
Nottinghamshire County Council,1111/1001,Children and Young P,CYP,Contract Hire / Leasing       ,CCA,15.12.2011,10-04351,2769.8,1st 4 Care Ltd
Nottinghamshire County Council,1111/1001,Children and Young P,CYP,Contract Hire / Leasing       ,CCA,15.12.2011,10-04352,2302.8,1st 4 Care Ltd
Nottinghamshire County Council,1111/1001,Children and Young P,CYP,Contract Hire / Leasing       ,CCA,15.12.2011,10-04353,2262.33,1st 4 Care Ltd
Nottinghamshire County Council,1111/1001,Children and Young P,CYP,Contract Hire / Leasing       ,CCA,15.12.2011,10-04354,2442,1st 4 Care Ltd
Nottinghamshire County Council,1111/1001,Children and Young P,CYP,Contract Hire / Leasing       ,CCA,15.12.2011,10-04355,1744.88,1st 4 Care Ltd
Nottinghamshire County Council,1111/1001,Children and Young P,CYP,Contract Hire / Leasing       ,CCA,15.12.2011,10-04356,3409,1st 4 Care Ltd
Nottinghamshire County Council,1111/1001,Children and Young P,CYP,Contract Hire / Leasing       ,CCA,15.12.2011,10-04357,2438.94,1st 4 Care Ltd
Nottinghamshire County Council,1111/1001,Children and Young P,CYP,Contract Hire / Leasing       ,CCA,15.12.2011,10-04359,1105,1st 4 Care Ltd
Nottinghamshire County Council,1111/1001,Children and Young P,CYP,Contract Hire / Leasing       ,CCA,15.12.2011,10-04360,1309.77,1st 4 Care Ltd
Nottinghamshire County Council,1111/1001,Children and Young P,CYP,Contract Hire / Leasing       ,CCA,15.12.2011,10-04361,4400,1st 4 Care Ltd
Nottinghamshire County Council,1111/1001,Children and Young P,CYP,Contract Hire / Leasing       ,CCA,15.12.2011,10-04362,2160.15,Ron Gash & Sons Ltd
Nottinghamshire County Council,1111/1001,Children and Young P,CYP,Contract Hire / Leasing       ,CCA,15.12.2011,10-04363,1553.25,Ron Gash & Sons Ltd
Nottinghamshire County Council,1111/1001,Children and Young P,CYP,Contract Hire / Leasing       ,CCA,15.12.2011,10-04364,2625.5,Ron Gash & Sons Ltd
Nottinghamshire County Council,1111/1001,Children and Young P,CYP,Contract Hire / Leasing       ,CCA,15.12.2011,10-04365,5470.52,Bn Gibson Ltd
Nottinghamshire County Council,1111/1001,Children and Young P,CYP,Contract Hire / Leasing       ,CCA,15.12.2011,10-04367,3138.64,Bn Gibson Ltd
Nottinghamshire County Council,1111/1001,Children and Young P,CYP,Contract Hire / Leasing       ,CCA,15.12.2011,10-04368,2701.65,Bn Gibson Ltd
Nottinghamshire County Council,1111/1001,Children and Young P,CYP,Contract Hire / Leasing       ,CCA,15.12.2011,10-04369,2564.73,Bn Gibson Ltd
Nottinghamshire County Council,1111/1001,Children and Young P,CYP,Contract Hire / Leasing       ,CCA,15.12.2011,10-04370,3035.34,Bn Gibson Ltd
Nottinghamshire County Council,1111/1001,Children and Young P,CYP,Contract Hire / Leasing       ,CCA,15.12.2011,10-04371,4349.73,Bn Gibson Ltd
Nottinghamshire County Council,1111/1001,Children and Young P,CYP,Contract Hire / Leasing       ,CCA,15.12.2011,10-04372,3030.3,Bn Gibson Ltd
Nottinghamshire County Council,1111/1001,Children and Young P,CYP,Contract Hire / Leasing       ,CCA,15.12.2011,10-04373,3165.75,Bn Gibson Ltd
Nottinghamshire County Council,1111/1001,Children and Young P,CYP,Contract Hire / Leasing       ,CCA,15.12.2011,10-04374,3870.3,Bn Gibson Ltd
Nottinghamshire County Council,1111/1001,Children and Young P,CYP,Contract Hire / Leasing       ,CCA,15.12.2011,10-04375,2214.08,Bn Gibson Ltd
Nottinghamshire County Council,1111/1001,Children and Young P,CYP,Contract Hire / Leasing       ,CCA,15.12.2011,10-04376,2684,Bn Gibson Ltd
Nottinghamshire County Council,1111/1001,Children and Young P,CYP,Contract Hire / Leasing       ,CCA,15.12.2011,10-04379,2194.17,Bn Gibson Ltd
Nottinghamshire County Council,1111/1001,Children and Young P,CYP,Contract Hire / Leasing       ,CCA,15.12.2011,10-04380,3180.32,Bn Gibson Ltd
Nottinghamshire County Council,1111/1001,Children and Young P,CYP,Contract Hire / Leasing       ,CCA,15.12.2011,10-04381,3382.94,Bn Gibson Ltd
Nottinghamshire County Council,1111/1001,Children and Young P,CYP,Contract Hire / Leasing       ,CCA,15.12.2011,10-04382,2251.28,Bn Gibson Ltd
Nottinghamshire County Council,1111/1001,Children and Young P,CYP,Contract Hire / Leasing       ,CCA,15.12.2011,10-04383,2096.16,Goldstar Travel Nottm Ltd
Nottinghamshire County Council,1111/1001,Children and Young P,CYP,Contract Hire / Leasing       ,CCA,15.12.2011,10-04384,2266,Goldstar Travel Nottm Ltd
Nottinghamshire County Council,1111/1001,Children and Young P,CYP,Contract Hire / Leasing       ,CCA,15.12.2011,10-04386,0.01,Premier Taxis
Nottinghamshire County Council,1111/1001,Children and Young P,CYP,Contract Hire / Leasing       ,CCA,15.12.2011,10-04387,1620,123 Taxis
Nottinghamshire County Council,1111/1001,Children and Young P,CYP,Contract Hire / Leasing       ,CCA,15.12.2011,10-04388,751.74,123 Taxis
Nottinghamshire County Council,1111/1001,Children and Young P,CYP,Contract Hire / Leasing       ,CCA,15.12.2011,10-04389,752.4,123 Taxis
Nottinghamshire County Council,1111/1001,Children and Young P,CYP,Contract Hire / Leasing       ,CCA,15.12.2011,10-04390,2193.86,Travelwise Coaches Ltd
Nottinghamshire County Council,1111/1001,Children and Young P,CYP,Contract Hire / Leasing       ,CCA,15.12.2011,10-04397,3693.48,AOT Coaches
Nottinghamshire County Council,1111/1001,Children and Young P,CYP,Contract Hire / Leasing       ,CCA,15.12.2011,10-04398,594,Beechwood Taxis
Nottinghamshire County Council,1111/1001,Children and Young P,CYP,Contract Hire / Leasing       ,CCA,15.12.2011,10-04402,1890,Garys Coaches Ltd
Nottinghamshire County Council,1111/1001,Children and Young P,CYP,Contract Hire / Leasing       ,CCA,15.12.2011,10-04405,1365,K & R Cars
Nottinghamshire County Council,1111/1001,Children and Young P,CYP,Contract Hire / Leasing       ,CCA,15.12.2011,10-04414,3537.6,Marshalls Of Sutton On Trent Ltd
Nottinghamshire County Council,1111/1001,Children and Young P,CYP,Contract Hire / Leasing       ,CCA,15.12.2011,10-04420,1127.72,Meden Travel
Nottinghamshire County Council,1111/1001,Children and Young P,CYP,Contract Hire / Leasing       ,CCA,15.12.2011,10-04430,930,Silverdale Tours Nottm Ltd
Nottinghamshire County Council,1111/1001,Children and Young P,CYP,Contract Hire / Leasing       ,CCA,15.12.2011,10-04431,810,Silverdale Tours Nottm Ltd
Nottinghamshire County Council,1111/1001,Children and Young P,CYP,Contract Hire / Leasing       ,CCA,15.12.2011,10-04432,1007.5,Silverdale Tours Nottm Ltd
Nottinghamshire County Council,1111/1001,Children and Young P,CYP,Contract Hire / Leasing       ,CCA,15.12.2011,10-04433,810,Silverdale Tours Nottm Ltd
Nottinghamshire County Council,1111/1001,Children and Young P,CYP,Contract Hire / Leasing       ,CCA,15.12.2011,10-04434,1395,Silverdale Tours Nottm Ltd
Nottinghamshire County Council,1111/1001,Children and Young P,CYP,Contract Hire / Leasing       ,CCA,15.12.2011,10-04435,1447.5,Silverdale Tours Nottm Ltd
Nottinghamshire County Council,1111/1001,Children and Young P,CYP,Contract Hire / Leasing       ,CCA,15.12.2011,10-04457,6720,Stagecoach Services Ltd
Nottinghamshire County Council,1111/1001,Children and Young P,CYP,Contract Hire / Leasing       ,CCA,15.12.2011,10-04471,3422.79,Travel Wright Ltd
Nottinghamshire County Council,1111/1001,Children and Young P,CYP,Contract Hire / Leasing       ,CCA,15.12.2011,10-04472,13460.79,Travel Wright Ltd
Nottinghamshire County Council,1111/1001,Children and Young P,CYP,Contract Hire / Leasing       ,CCA,15.12.2011,10-04473,2758.77,Travel Wright Ltd
Nottinghamshire County Council,1111/1001,Children and Young P,CYP,Contract Hire / Leasing       ,CCA,15.12.2011,10-04480,3255,Travel Wright Ltd
Nottinghamshire County Council,1111/1001,Children and Young P,CYP,Contract Hire / Leasing       ,CCA,15.12.2011,10-04501,3332,Freeway Coaches Ltd
Nottinghamshire County Council,1111/1001,Children and Young P,CYP,Contract Hire / Leasing       ,CCA,15.12.2011,10-04502,4178.9,Kettlewell Retford Ltd
Nottinghamshire County Council,1111/1001,Children and Young P,CYP,Contract Hire / Leasing       ,CCA,15.12.2011,10-04503,3749.68,Kettlewell Retford Ltd
Nottinghamshire County Council,1111/1001,Children and Young P,CYP,Contract Hire / Leasing       ,CCA,15.12.2011,10-04504,2432.1,Kettlewell Retford Ltd
Nottinghamshire County Council,1111/1001,Children and Young P,CYP,Contract Hire / Leasing       ,CCA,15.12.2011,10-04507,2281.4,AAA Taxis
Nottinghamshire County Council,1111/1001,Children and Young P,CYP,Contract Hire / Leasing       ,CCA,15.12.2011,10-04508,2068.5,AAA Taxis
Nottinghamshire County Council,1111/1001,Children and Young P,CYP,Contract Hire / Leasing       ,CCA,15.12.2011,10-04509,2194.4,AAA Taxis
Nottinghamshire County Council,1111/1001,Children and Young P,CYP,Contract Hire / Leasing       ,CCA,15.12.2011,10-04510,759.6,AAA Taxis
Nottinghamshire County Council,1111/1001,Children and Young P,CYP,Contract Hire / Leasing       ,CCA,15.12.2011,10-04511,1287,AAA Taxis
Nottinghamshire County Council,1111/1001,Children and Young P,CYP,Contract Hire / Leasing       ,CCA,15.12.2011,10-04512,1425.6,AAA Taxis
Nottinghamshire County Council,1111/1001,Children and Young P,CYP,Contract Hire / Leasing       ,CCA,15.12.2011,10-04513,1572.5,AAA Taxis
Nottinghamshire County Council,1111/1001,Children and Young P,CYP,Contract Hire / Leasing       ,CCA,15.12.2011,10-04514,1150.25,AAA Taxis
Nottinghamshire County Council,1111/1001,Children and Young P,CYP,Contract Hire / Leasing       ,CCA,15.12.2011,10-04515,572.64,AAA Taxis
Nottinghamshire County Council,1111/1001,Children and Young P,CYP,Contract Hire / Leasing       ,CCA,15.12.2011,10-04517,1636,Rio Cabs
Nottinghamshire County Council,1111/1001,Children and Young P,CYP,Contract Hire / Leasing       ,CCA,15.12.2011,10-04519,1232.55,Rio Cabs
Nottinghamshire County Council,1111/1001,Children and Young P,CYP,Contract Hire / Leasing       ,CCA,15.12.2011,10-04521,561.6,Town Taxis Ltd
Nottinghamshire County Council,1111/1001,Children and Young P,CYP,Contract Hire / Leasing       ,CCA,16.12.2011,10-04661,600,Cabline Uk Ltd
Nottinghamshire County Council,1111/1001,Children and Young P,CYP,Contract Hire / Leasing       ,CCA,16.12.2011,10-04664,1281.28,Acorn Travel
Nottinghamshire County Council,1111/1001,Children and Young P,CYP,Contract Hire / Leasing       ,CCA,16.12.2011,10-04665,1759.3,Arrow Specialised Transport Ltd
Nottinghamshire County Council,1111/1001,Children and Young P,CYP,Contract Hire / Leasing       ,CCA,16.12.2011,10-04666,2306.07,Headland Taxi Services
Nottinghamshire County Council,1111/1001,Children and Young P,CYP,Contract Hire / Leasing       ,CCA,16.12.2011,10-04667,3058,Ja Travel Ltd
Nottinghamshire County Council,1111/1001,Children and Young P,CYP,Contract Hire / Leasing       ,CCA,16.12.2011,10-04668,2050.2,Ja Travel Ltd
Nottinghamshire County Council,1111/1001,Children and Young P,CYP,Contract Hire / Leasing       ,CCA,16.12.2011,10-04669,3746.08,Midfield Travel
Nottinghamshire County Council,1111/1001,Children and Young P,CYP,Contract Hire / Leasing       ,CCA,16.12.2011,10-04670,2400.27,Sprays Transport Ltd
Nottinghamshire County Council,1111/1001,Children and Young P,CYP,Contract Hire / Leasing       ,CCA,16.12.2011,10-04671,2349.28,Sprays Transport Ltd
Nottinghamshire County Council,1111/1001,Children and Young P,CYP,Contract Hire / Leasing       ,CCA,16.12.2011,10-04672,2200.8,Trent Cars
Nottinghamshire County Council,1111/1001,Children and Young P,CYP,Contract Hire / Leasing       ,CCA,16.12.2011,10-04673,3441.44,F & J Marriott T/A Unity Coaches
Nottinghamshire County Council,1111/1001,Children and Young P,CYP,Contract Hire / Leasing       ,CCA,16.12.2011,10-04674,3710.52,Goldstar Travel Nottm Ltd
Nottinghamshire County Council,1111/1001,Children and Young P,CYP,Contract Hire / Leasing       ,CCA,16.12.2011,10-04675,3080,Goldstar Travel Nottm Ltd
Nottinghamshire County Council,1111/1001,Children and Young P,CYP,Contract Hire / Leasing       ,CCA,16.12.2011,10-04677,966.23,Nottm Minibuses & Coaches
Nottinghamshire County Council,1111/1001,Children and Young P,CYP,Contract Hire / Leasing       ,CCA,16.12.2011,10-04680,2185.26,Jc Coaches
Nottinghamshire County Council,1111/1001,Children and Young P,CYP,Contract Hire / Leasing       ,CCA,16.12.2011,10-04683,882,Town Taxis Ltd
Nottinghamshire County Council,1111/1001,Children and Young P,CYP,Contract Hire / Leasing       ,CCA,16.12.2011,10-04684,4643.1,Isle Coaches
Nottinghamshire County Council,1111/1001,Children and Young P,CYP,Contract Hire / Leasing       ,CCA,20.12.2011,10-04198,1595,Central Cars Nottm Ltd
Nottinghamshire County Council,1111/1001,Children and Young P,CYP,Contract Hire / Leasing       ,CCA,20.12.2011,10-04199,518,Central Cars Nottm Ltd
Nottinghamshire County Council,1111/1001,Children and Young P,CYP,Contract Hire / Leasing       ,CCA,20.12.2011,10-04200,1334,Central Cars Nottm Ltd
Nottinghamshire County Council,1111/1001,Children and Young P,CYP,Contract Hire / Leasing       ,CCA,20.12.2011,10-04201,1222,Central Cars Nottm Ltd
Nottinghamshire County Council,1111/1001,Children and Young P,CYP,Contract Hire / Leasing       ,CCA,20.12.2011,10-04202,3372,Central Cars Nottm Ltd
Nottinghamshire County Council,1111/1001,Children and Young P,CYP,Contract Hire / Leasing       ,CCA,20.12.2011,10-04203,1518.46,Central Cars Nottm Ltd
Nottinghamshire County Council,1111/1001,Children and Young P,CYP,Contract Hire / Leasing       ,CCA,20.12.2011,10-04205,1478.64,Central Cars Nottm Ltd
Nottinghamshire County Council,1111/1001,Children and Young P,CYP,Contract Hire / Leasing       ,CCA,20.12.2011,10-04206,1046,Central Cars Nottm Ltd
Nottinghamshire County Council,1111/1001,Children and Young P,CYP,Contract Hire / Leasing       ,CCA,20.12.2011,10-04662,1760,Central Cars Nottm Ltd
Nottinghamshire County Council,1111/1001,Children and Young P,CYP,Contract Hire / Leasing       ,CCA,20.12.2011,10-04663,1028.4,Central Cars Nottm Ltd
Nottinghamshire County Council,1111/1001,Children and Young P,CYP,Contract Hire / Leasing       ,CCA,21.12.2011,10-05023,2403.18,Sprays Transport Ltd
Nottinghamshire County Council,1111/1001,Children and Young P,CYP,Contract Hire / Leasing       ,CCA,22.12.2011,10-05102,2054.6,Sprays Transport Ltd
Nottinghamshire County Council,1111/1001,Children and Young P,CYP,Contract Hire / Leasing       ,CCA,22.12.2011,10-05103,2520,1st 4 Care Ltd
Nottinghamshire County Council,1111/1001,Children and Young P,CYP,Contract Hire / Leasing       ,CCA,22.12.2011,10-05104,2083.55,Bn Gibson Ltd
Nottinghamshire County Council,1111/1001,Children and Young P,CYP,Contract Hire / Leasing       ,CCA,22.12.2011,10-05105,2291.18,Bn Gibson Ltd
Nottinghamshire County Council,1111/1001,Children and Young P,CYP,Contract Hire / Leasing       ,CCA,22.12.2011,10-05114,2438.52,Cabline Uk Ltd
Nottinghamshire County Council,1111/1001,Children and Young P,CYP,Contract Hire / Leasing       ,CCA,22.12.2011,10-05115,990,Cabline Uk Ltd
Nottinghamshire County Council,1111/1001,Children and Young P,CYP,Contract Hire / Leasing       ,CCA,22.12.2011,10-05116,1119,Cabline Uk Ltd
Nottinghamshire County Council,1111/1001,Children and Young P,CYP,Contract Hire / Leasing       ,CCA,22.12.2011,10-05117,1260,Cabline Uk Ltd
Nottinghamshire County Council,1111/1001,Children and Young P,CYP,Contract Hire / Leasing       ,CCA,22.12.2011,10-05118,625.5,1st 4 Care Ltd
Nottinghamshire County Council,1111/1001,Children and Young P,CYP,Contract Hire / Leasing       ,CCA,22.12.2011,10-05120,3429.88,Bn Gibson Ltd
Nottinghamshire County Council,1111/1001,Children and Young P,CYP,Contract Hire / Leasing       ,CCA,22.12.2011,10-05121,2610.52,K & S Coaches
Nottinghamshire County Council,1111/1001,Children and Young P,CYP,Contract Hire / Leasing       ,CCA,22.12.2011,10-05122,2310,AOT Coaches
Nottinghamshire County Council,1111/1001,Children and Young P,CYP,Contract Hire / Leasing       ,CCA,22.12.2011,10-05132,3300,Stagecoach Services Ltd
Nottinghamshire County Council,1111/1001,Children and Young P,CYP,Contract Hire / Leasing       ,CCA,22.12.2011,10-05135,1297.89,Stagecoach Services Ltd
Nottinghamshire County Council,1111/1001,Children and Young P,CYP,Contract Hire / Leasing       ,CCA,22.12.2011,10-05282,1161.6,6 Five 2s
Nottinghamshire County Council,1111/1001,Children and Young P,CYP,Contract Hire / Leasing       ,CCA,22.12.2011,10-05283,504,6 Five 2s
Nottinghamshire County Council,1111/1001,Children and Young P,CYP,Contract Hire / Leasing       ,CCA,22.12.2011,10-05284,612,6 Five 2s
Nottinghamshire County Council,1111/1001,Children and Young P,CYP,Contract Hire / Leasing       ,CCA,22.12.2011,10-05285,790.4,6 Five 2s
Nottinghamshire County Council,1111/1001,Children and Young P,CYP,Contract Hire / Leasing       ,CCA,22.12.2011,10-05286,924.4,6 Five 2s
Nottinghamshire County Council,1111/1001,Children and Young P,CYP,Contract Hire / Leasing       ,CCA,22.12.2011,10-05287,916.08,6 Five 2s
Nottinghamshire County Council,1111/1001,Children and Young P,CYP,Contract Hire / Leasing       ,CCA,22.12.2011,10-05288,1537.8,6 Five 2s
Nottinghamshire County Council,1111/1001,Children and Young P,CYP,Contract Hire / Leasing       ,CCA,22.12.2011,10-05289,1266,6 Five 2s
Nottinghamshire County Council,1111/1001,Children and Young P,CYP,Contract Hire / Leasing       ,CCA,22.12.2011,10-05290,1733.6,6 Five 2s
Nottinghamshire County Council,1111/1001,Children and Young P,CYP,Contract Hire / Leasing       ,CCA,22.12.2011,10-05291,530.1,Dial A Trip
Nottinghamshire County Council,1111/1001,Children and Young P,CYP,Contract Hire / Leasing       ,CCA,22.12.2011,10-05292,3544.42,Bn Gibson Ltd
Nottinghamshire County Council,1111/1001,Children and Young P,CYP,Contract Hire / Leasing       ,CCA,22.12.2011,10-05293,3527.7,Bn Gibson Ltd
Nottinghamshire County Council,1111/1001,Children and Young P,CYP,Contract Hire / Leasing       ,CCA,22.12.2011,10-05294,4397.58,Bn Gibson Ltd
Nottinghamshire County Council,1111/1001,Children and Young P,CYP,Contract Hire / Leasing       ,CCA,22.12.2011,10-05295,2462,Bn Gibson Ltd
Nottinghamshire County Council,1111/1001,Children and Young P,CYP,Contract Hire / Leasing       ,CCA,22.12.2011,10-05296,3239.8,Bn Gibson Ltd
Nottinghamshire County Council,1111/1001,Children and Young P,CYP,Contract Hire / Leasing       ,CCA,22.12.2011,10-05297,2784.6,Bn Gibson Ltd
Nottinghamshire County Council,1111/1001,Children and Young P,CYP,Contract Hire / Leasing       ,CCA,22.12.2011,10-05298,4452.4,Bn Gibson Ltd
Nottinghamshire County Council,1111/1001,Children and Young P,CYP,Contract Hire / Leasing       ,CCA,22.12.2011,10-05299,3979.8,Bn Gibson Ltd
Nottinghamshire County Council,1111/1001,Children and Young P,CYP,Contract Hire / Leasing       ,CCA,22.12.2011,10-05300,2500.3,Bn Gibson Ltd
Nottinghamshire County Council,1111/1001,Children and Young P,CYP,Contract Hire / Leasing       ,CCA,22.12.2011,10-05301,3740,Bn Gibson Ltd
Nottinghamshire County Council,1111/1001,Children and Young P,CYP,Contract Hire / Leasing       ,CCA,22.12.2011,10-05302,2775.08,Bn Gibson Ltd
Nottinghamshire County Council,1111/1001,Children and Young P,CYP,Contract Hire / Leasing       ,CCA,22.12.2011,10-05303,1628,Bn Gibson Ltd
Nottinghamshire County Council,1111/1001,Children and Young P,CYP,Contract Hire / Leasing       ,CCA,22.12.2011,10-05304,3485.68,Bn Gibson Ltd
Nottinghamshire County Council,1111/1001,Children and Young P,CYP,Contract Hire / Leasing       ,CCA,22.12.2011,10-05305,2858.31,Bn Gibson Ltd
Nottinghamshire County Council,1111/1001,Children and Young P,CYP,Contract Hire / Leasing       ,CCA,23.12.2011,10-05367,1530,Southside Cars
Nottinghamshire County Council,1111/1001,Children and Young P,CYP,Contract Hire / Leasing       ,CCA,23.12.2011,10-05368,1832.27,6 Five 2s
Nottinghamshire County Council,1111/1001,Children and Young P,CYP,Contract Hire / Leasing       ,CCA,23.12.2011,10-05369,1496,6 Five 2s
Nottinghamshire County Council,1111/1001,Children and Young P,CYP,Contract Hire / Leasing       ,CCA,23.12.2011,10-05370,1835.24,6 Five 2s
Nottinghamshire County Council,1111/1001,Children and Young P,CYP,Contract Hire / Leasing       ,CCA,23.12.2011,10-05371,1272.7,6 Five 2s
Nottinghamshire County Council,1111/1001,Children and Young P,CYP,Contract Hire / Leasing       ,CCA,23.12.2011,10-05372,2310.66,Cabline Uk Ltd
Nottinghamshire County Council,1111/1001,Children and Young P,CYP,Contract Hire / Leasing       ,CCA,23.12.2011,10-05373,2161.28,Johnson Bros Tours Ltd
Nottinghamshire County Council,1111/1001,Children and Young P,CYP,Contract Hire / Leasing       ,CCA,23.12.2011,10-05375,3620.82,Tiger European Uk Ltd
Nottinghamshire County Council,1111/1001,Children and Young P,CYP,Contract Hire / Leasing       ,CCA,28.12.2011,10-05419,500,D G Private Hire Ltd
Nottinghamshire County Council,1111/1001,Children and Young P,CYP,Contract Hire / Leasing       ,CCA,28.12.2011,10-05423,2420,Arnold Acorn Travel
Nottinghamshire County Council,1111/1001,Children and Young P,CYP,Contract Hire / Leasing       ,CCA,29.12.2011,10-05661,735,A Line Taxis
Nottinghamshire County Council,1111/1001,Children and Young P,CYP,Contract Hire / Leasing       ,CCA,29.12.2011,10-05662,1080,Cabline Uk Ltd
Nottinghamshire County Council,1111/1001,Children and Young P,CYP,Contract Hire / Leasing       ,CCA,29.12.2011,10-05663,2212.36,Bn Gibson Ltd
Nottinghamshire County Council,1111/1001,Children and Young P,CYP,Contract Hire / Leasing       ,CCA,29.12.2011,10-05664,3339.08,Bn Gibson Ltd
Nottinghamshire County Council,1111/1001,Children and Young P,CYP,Contract Hire / Leasing       ,CCA,29.12.2011,10-05665,2963.62,Bn Gibson Ltd
Nottinghamshire County Council,1111/1001,Children and Young P,CYP,Contract Hire / Leasing       ,CCA,29.12.2011,10-05666,592.5,AOT Coaches
Nottinghamshire County Council,1111/1001,Children and Young P,CYP,Contract Hire / Leasing       ,CCA,29.12.2011,10-05667,525,AOT Coaches
Nottinghamshire County Council,1111/1001,Children and Young P,CYP,Contract Hire / Leasing       ,CCA,29.12.2011,10-05668,748,Tiger European Uk Ltd
Nottinghamshire County Council,1111/1001,Children and Young P,CYP,Contract Hire / Leasing       ,CCA,29.12.2011,10-05669,1055,Freeway Coaches Ltd
Nottinghamshire County Council,1111/1001,Children and Young P,CYP,Contract Hire / Leasing       ,CCA,29.12.2011,10-05670,3010,Kettlewell Retford Ltd
Nottinghamshire County Council,1111/1001,Children and Young P,CYP,Contract Hire / Leasing       ,CCA,29.12.2011,10-05671,1179,C W Moxon Ltd
Nottinghamshire County Council,1111/1001,Children and Young P,CYP,Public Transport              ,CDA,15.12.2011,10-04099,664.49,Arrow Specialised Transport Ltd
Nottinghamshire County Council,1111/1001,Children and Young P,CYP,Public Transport              ,CDA,15.12.2011,10-04103,422.5,Fozcabs Newark Taxis
Nottinghamshire County Council,1111/1001,Children and Young P,CYP,Public Transport              ,CDA,15.12.2011,10-04116,701.4,Arrow Specialised Transport Ltd
Nottinghamshire County Council,1111/1001,Children and Young P,CYP,Public Transport              ,CDA,15.12.2011,10-04139,1262.8,Arrow Specialised Transport Ltd
Nottinghamshire County Council,1111/1001,Children and Young P,CYP,Public Transport              ,CDA,15.12.2011,10-04152,194.31,Horizon Travel
Nottinghamshire County Council,1111/1001,Children and Young P,CYP,Public Transport              ,CDA,15.12.2011,10-04154,1938.14,P Rhodes Transport Ltd
Nottinghamshire County Council,1111/1001,Children and Young P,CYP,Public Transport              ,CDA,15.12.2011,10-04155,1934.68,P Rhodes Transport Ltd
Nottinghamshire County Council,1111/1001,Children and Young P,CYP,Public Transport              ,CDA,15.12.2011,10-04328,1385.28,Sprays Transport Ltd
Nottinghamshire County Council,1111/1001,Children and Young P,CYP,Public Transport              ,CDA,15.12.2011,10-04332,1240.7,Sprays Transport Ltd
Nottinghamshire County Council,1111/1001,Children and Young P,CYP,Public Transport              ,CDA,15.12.2011,10-04367,285.2,Bn Gibson Ltd
Nottinghamshire County Council,1111/1001,Children and Young P,CYP,Public Transport              ,CDA,15.12.2011,10-04379,731.39,Bn Gibson Ltd
Nottinghamshire County Council,1111/1001,Children and Young P,CYP,Public Transport              ,CDA,15.12.2011,10-04519,410.85,Rio Cabs
Nottinghamshire County Council,1111/1001,Children and Young P,CYP,Public Transport              ,CDA,22.12.2011,10-05297,928.2,Bn Gibson Ltd
Nottinghamshire County Council,1111/1001,Children and Young P,CYP,Public Transport              ,CDA,23.12.2011,10-05368,103.73,6 Five 2s
Nottinghamshire County Council,1111/1001,Children and Young P,CYP,"Equip, Furniture and Materials",DAA,07.12.2011,10-03093,732,Hitch N Hike Ltd
Nottinghamshire County Council,1111/1001,Children and Young P,CYP,"Equip, Furniture and Materials",DAA,12.12.2011,10-03580,545.53,J P Lennard Ltd
Nottinghamshire County Council,1111/1001,Children and Young P,CYP,"Equip, Furniture and Materials",DAA,12.12.2011,10-03626,2464.5,Sodexo Prestige Ltd
Nottinghamshire County Council,1111/1001,Children and Young P,CYP,"Equip, Furniture and Materials",DAA,14.12.2011,10-03923,766,P Carrington
Nottinghamshire County Council,1111/1001,Children and Young P,CYP,"Equip, Furniture and Materials",DAA,14.12.2011,10-03965,15234,Rgk Wheelchairs Ltd
Nottinghamshire County Council,1111/1001,Children and Young P,CYP,"Equip, Furniture and Materials",DAA,14.12.2011,10-04071,1250,Yorkshire Adoption Agency Ltd
Nottinghamshire County Council,1111/1001,Children and Young P,CYP,"Equip, Furniture and Materials",DAA,19.12.2011,10-04761,627.8,Granada Learning Ltd
Nottinghamshire County Council,1111/1001,Children and Young P,CYP,"Equip, Furniture and Materials",DAA,22.12.2011,10-05184,659.95,South Forest Leisure Centre
Nottinghamshire County Council,1111/1001,Children and Young P,CYP,"Equip, Furniture and Materials",DAA,22.12.2011,10-05185,542.75,South Forest Leisure Centre
Nottinghamshire County Council,1111/1001,Children and Young P,CYP,"Equip, Furniture and Materials",DAA,23.12.2011,10-05418,16831.24,DFB Sound & Light Warehouse Ltd
Nottinghamshire County Council,1111/1001,Children and Young P,CYP,Catering                      ,DBA,08.12.2011,10-03207,436.07,Brake Bros Ltd
Nottinghamshire County Council,1111/1001,Children and Young P,CYP,Catering                      ,DBA,09.12.2011,10-03569,224.87,Country Fresh Foods
Nottinghamshire County Council,1111/1001,Children and Young P,CYP,Catering                      ,DBA,09.12.2011,10-03570,266.79,Country Fresh Foods
Nottinghamshire County Council,1111/1001,Children and Young P,CYP,Catering                      ,DBA,09.12.2011,10-03571,265.11,Country Fresh Foods
Nottinghamshire County Council,1111/1001,Children and Young P,CYP,Catering                      ,DBA,09.12.2011,10-03575,601.63,Brake Bros Ltd
Nottinghamshire County Council,1111/1001,Children and Young P,CYP,Catering                      ,DBA,09.12.2011,10-03576,186.14,Brake Bros Ltd
Nottinghamshire County Council,1111/1001,Children and Young P,CYP,Catering                      ,DBA,09.12.2011,10-03577,223.5,Brake Bros Ltd
Nottinghamshire County Council,1111/1001,Children and Young P,CYP,Catering                      ,DBA,12.12.2011,10-03578,283.03,Brake Bros Ltd
Nottinghamshire County Council,1111/1001,Children and Young P,CYP,Catering                      ,DBA,12.12.2011,10-03645,501.28,Brake Bros Ltd
Nottinghamshire County Council,1111/1001,Children and Young P,CYP,Catering                      ,DBA,12.12.2011,10-03646,325.16,Brake Bros Ltd
Nottinghamshire County Council,1111/1001,Children and Young P,CYP,Catering                      ,DBA,12.12.2011,10-03647,290.35,Brake Bros Ltd
Nottinghamshire County Council,1111/1001,Children and Young P,CYP,Catering                      ,DBA,13.12.2011,10-03931,276.31,Hallam Country Fresh Foods Ltd
Nottinghamshire County Council,1111/1001,Children and Young P,CYP,Catering                      ,DBA,20.12.2011,10-04960,180.59,Arnold Dairies Ltd
Nottinghamshire County Council,1111/1001,Children and Young P,CYP,Catering                      ,DBA,21.12.2011,10-05045,162.13,Arnold Dairies Ltd
Nottinghamshire County Council,1111/1001,Children and Young P,CYP,Catering                      ,DBA,21.12.2011,10-05050,174.15,Arnold Dairies Ltd
Nottinghamshire County Council,1111/1001,Children and Young P,CYP,Catering                      ,DBA,21.12.2011,10-05051,191.21,Arnold Dairies Ltd
Nottinghamshire County Council,1111/1001,Children and Young P,CYP,Catering                      ,DBA,22.12.2011,10-05314,663.34,Brake Bros Ltd
Nottinghamshire County Council,1111/1001,Children and Young P,CYP,Catering                      ,DBA,23.12.2011,10-05320,758.07,Brake Bros Ltd
Nottinghamshire County Council,1111/1001,Children and Young P,CYP,Catering                      ,DBA,23.12.2011,10-05321,339.64,Brake Bros Ltd
Nottinghamshire County Council,1111/1001,Children and Young P,CYP,Catering                      ,DBA,23.12.2011,10-05323,613.67,Brake Bros Ltd
Nottinghamshire County Council,1111/1001,Children and Young P,CYP,Catering                      ,DBA,23.12.2011,10-05324,313.85,Brake Bros Ltd
Nottinghamshire County Council,1111/1001,Children and Young P,CYP,Catering                      ,DBA,23.12.2011,10-05325,217.81,Brake Bros Ltd
Nottinghamshire County Council,1111/1001,Children and Young P,CYP,Catering                      ,DBA,23.12.2011,10-05326,313.79,Brake Bros Ltd
Nottinghamshire County Council,1111/1001,Children and Young P,CYP,Catering                      ,DBA,23.12.2011,10-05328,475.44,Brake Bros Ltd
Nottinghamshire County Council,1111/1001,Children and Young P,CYP,Catering                      ,DBA,23.12.2011,10-05330,290.62,Hallam Country Fresh Foods Ltd
Nottinghamshire County Council,1111/1001,Children and Young P,CYP,Catering                      ,DBA,28.12.2011,10-05629,764.91,Brake Bros Ltd
Nottinghamshire County Council,1111/1001,Children and Young P,CYP,Catering                      ,DBA,28.12.2011,10-05630,-26.3,Brake Bros Ltd
Nottinghamshire County Council,1111/1001,Children and Young P,CYP,Catering                      ,DBA,28.12.2011,10-05631,144.09,Brake Bros Ltd
Nottinghamshire County Council,1111/1001,Children and Young P,CYP,Catering                      ,DBA,28.12.2011,10-05633,335.41,Brake Bros Ltd
Nottinghamshire County Council,1111/1001,Children and Young P,CYP,Catering                      ,DBA,28.12.2011,10-05640,285.53,M Maloney Country Butchers & B Ltd
Nottinghamshire County Council,1111/1001,Children and Young P,CYP,Catering                      ,DBA,29.12.2011,10-05753,289.54,M Maloney Country Butchers & B Ltd
Nottinghamshire County Council,1111/1001,Children and Young P,CYP,Catering                      ,DBA,30.12.2011,10-05837,357.89,M Maloney Country Butchers & B Ltd
Nottinghamshire County Council,1111/1001,Children and Young P,CYP,Catering                      ,DBA,30.12.2011,10-05841,303.66,M Maloney Country Butchers & B Ltd
Nottinghamshire County Council,1111/1001,Children and Young P,CYP,Catering                      ,DBA,30.12.2011,10-05842,315.9,M Maloney Country Butchers & B Ltd
Nottinghamshire County Council,1111/1001,Children and Young P,CYP,Catering                      ,DBA,30.12.2011,10-05843,254.58,M Maloney Country Butchers & B Ltd
Nottinghamshire County Council,1111/1001,Children and Young P,CYP,"Print, Stationery, Office Exps",DDA,08.12.2011,10-03196,531.78,Konica Minolta
Nottinghamshire County Council,1111/1001,Children and Young P,CYP,Services                      ,DEA,09.12.2011,10-03464,1000,Billaboing Bouncy Castle Hire
Nottinghamshire County Council,1111/1001,Children and Young P,CYP,Services                      ,DEA,12.12.2011,10-03617,1210,Coun For Awards In Childrens Care&E
Nottinghamshire County Council,1111/1001,Children and Young P,CYP,Services                      ,DEA,15.12.2011,10-03419,1210,Coun For Awards In Childrens Care&E
Nottinghamshire County Council,1111/1001,Children and Young P,CYP,Services                      ,DEA,15.12.2011,10-03420,1320,Coun For Awards In Childrens Care&E
Nottinghamshire County Council,1111/1001,Children and Young P,CYP,Services                      ,DEA,15.12.2011,10-03421,990,Coun For Awards In Childrens Care&E
Nottinghamshire County Council,1111/1001,Children and Young P,CYP,Services                      ,DEA,15.12.2011,10-03422,792,Coun For Awards In Childrens Care&E
Nottinghamshire County Council,1111/1001,Children and Young P,CYP,Services                      ,DEA,15.12.2011,10-03610,510,Coun For Awards In Childrens Care&E
Nottinghamshire County Council,1111/1001,Children and Young P,CYP,Services                      ,DEA,15.12.2011,10-04128,75.06,Arrow Specialised Transport Ltd
Nottinghamshire County Council,1111/1001,Children and Young P,CYP,Services                      ,DEA,15.12.2011,10-04525,1507.8,Institute Of Leadership & Managemen
Nottinghamshire County Council,1111/1001,Children and Young P,CYP,Services                      ,DEA,15.12.2011,10-04526,8500,Massers Solicitors
Nottinghamshire County Council,1111/1001,Children and Young P,CYP,Services                      ,DEA,16.12.2011,10-04577,2313,The Nottingham Gateway Hotel
Nottinghamshire County Council,1111/1001,Children and Young P,CYP,Services                      ,DEA,21.12.2011,10-05058,528,Coun For Awards In Childrens Care&E
Nottinghamshire County Council,1111/1001,Children and Young P,CYP,Services                      ,DEA,28.12.2011,10-05581,500,The Wright Initiative Ltd
Nottinghamshire County Council,1111/1001,Children and Young P,CYP,Communications and Computing  ,DFA,29.12.2011,10-05673,4000,Frank Mach Top Ups Only Neopost Ltd
Nottinghamshire County Council,1111/1001,Children and Young P,CYP,Grants and Subscriptions      ,DHA,23.12.2011,10-05280,2440,Radcliffe On Trent Day Nursery
Nottinghamshire County Council,1111/1001,Children and Young P,CYP,Grants and Subscriptions      ,DHA,23.12.2011,10-05346,3050,Children 1st @ Breedon House
Nottinghamshire County Council,1111/1001,Children and Young P,CYP,Grants and Subscriptions      ,DHA,23.12.2011,10-05347,610,Good Foundations Day Nursery
Nottinghamshire County Council,1111/1001,Children and Young P,CYP,Miscellaneous                 ,DKA,06.12.2011,10-00230,1018.33,Martin Lee & Company
Nottinghamshire County Council,1111/1001,Children and Young P,CYP,Miscellaneous                 ,DKA,06.12.2011,10-00231,1391,Martin Lee & Company
Nottinghamshire County Council,1111/1001,Children and Young P,CYP,Miscellaneous                 ,DKA,06.12.2011,10-00232,2779.96,Martin Lee & Company
Nottinghamshire County Council,1111/1001,Children and Young P,CYP,Miscellaneous                 ,DKA,06.12.2011,10-00233,874.25,Martin Lee & Company
Nottinghamshire County Council,1111/1001,Children and Young P,CYP,Miscellaneous                 ,DKA,06.12.2011,10-00234,1384.5,Martin Lee & Company
Nottinghamshire County Council,1111/1001,Children and Young P,CYP,Miscellaneous                 ,DKA,07.12.2011,10-03096,5000,Indigo Kids
Nottinghamshire County Council,1111/1001,Children and Young P,CYP,Miscellaneous                 ,DKA,09.12.2011,10-03535,271.09,Travelwise Coaches Ltd
Nottinghamshire County Council,1111/1001,Children and Young P,CYP,Miscellaneous                 ,DKA,12.12.2011,10-03581,5875,Adoptionplus Ltd
Nottinghamshire County Council,1111/1001,Children and Young P,CYP,Miscellaneous                 ,DKA,12.12.2011,10-03615,4533.1,Southampton Solent University
Nottinghamshire County Council,1111/1001,Children and Young P,CYP,Miscellaneous                 ,DKA,12.12.2011,10-03620,900,Rural Community Action Notts
Nottinghamshire County Council,1111/1001,Children and Young P,CYP,Miscellaneous                 ,DKA,12.12.2011,10-03623,3210,S Yorks Victim Offender Mediation S
Nottinghamshire County Council,1111/1001,Children and Young P,CYP,Miscellaneous                 ,DKA,12.12.2011,10-03625,622.63,Adoption Uk
Nottinghamshire County Council,1111/1001,Children and Young P,CYP,Miscellaneous                 ,DKA,12.12.2011,10-03631,500,Kip Mcgrath Education Centre West B
Nottinghamshire County Council,1111/1001,Children and Young P,CYP,Miscellaneous                 ,DKA,14.12.2011,10-04069,2859.42,Futureminds Social Enterprise Ltd
Nottinghamshire County Council,1111/1001,Children and Young P,CYP,Miscellaneous                 ,DKA,15.12.2011,10-04557,500,Action For Children
Nottinghamshire County Council,1111/1001,Children and Young P,CYP,Miscellaneous                 ,DKA,15.12.2011,10-04559,2859.42,Futureminds Social Enterprise Ltd
Nottinghamshire County Council,1111/1001,Children and Young P,CYP,Miscellaneous                 ,DKA,19.12.2011,10-04834,622.63,Adoption Uk
Nottinghamshire County Council,1111/1001,Children and Young P,CYP,Miscellaneous                 ,DKA,20.12.2011,10-04952,500,Fairview Farm Equestrian Ltd
Nottinghamshire County Council,1111/1001,Children and Young P,CYP,Miscellaneous                 ,DKA,22.12.2011,10-05177,1456,George Mudford & Sons
Nottinghamshire County Council,1111/1001,Children and Young P,CYP,Miscellaneous                 ,DKA,23.12.2011,10-04709,2784.45,J Brown
Nottinghamshire County Council,1111/1001,Children and Young P,CYP,Miscellaneous                 ,DKA,23.12.2011,10-05082,500,Churchill Lettings
Nottinghamshire County Council,1111/1001,Children and Young P,CYP,Miscellaneous                 ,DKA,30.12.2011,10-05180,12975.71,Progressive Care
Nottinghamshire County Council,1111/1001,Children and Young P,CYP,Miscellaneous                 ,DKA,30.12.2011,10-05181,4185.71,Progressive Care
Nottinghamshire County Council,1111/1001,Children and Young P,CYP,Miscellaneous                 ,DKA,30.12.2011,10-05571,525,Action For Children
Nottinghamshire County Council,1111/1001,Children and Young P,CYP,Miscellaneous                 ,DKA,30.12.2011,10-05576,605.6,Action For Children
Nottinghamshire County Council,1111/1001,Children and Young P,CYP,Miscellaneous                 ,DKA,30.12.2011,10-05577,502.4,Action For Children
Nottinghamshire County Council,1111/1001,Children and Young P,CYP,Other Local Authorities       ,EBA,19.12.2011,10-04762,19233.25,S Yorks Victim Offender Mediation S
Nottinghamshire County Council,1111/1001,Children and Young P,CYP,Other Local Authorities       ,EBA,28.12.2011,10-05422,405113,Nottm & Notts Futures Ltd
Nottinghamshire County Council,1111/1001,Children and Young P,CYP,Voluntary Associations        ,EEA,07.12.2011,10-03190,7016.67,The Award Scheme Ltd
Nottinghamshire County Council,1111/1001,Children and Young P,CYP,Other Establishments          ,EFA,12.12.2011,10-03629,849,A4e Ltd
Nottinghamshire County Council,1111/1001,Children and Young P,CYP,Other Establishments          ,EFA,15.12.2011,10-00237,5737.5,A4e Ltd
Nottinghamshire County Council,1111/1001,Children and Young P,CYP,Other Establishments          ,EFA,15.12.2011,10-00241,6627.68,A4e Ltd
Nottinghamshire County Council,1111/1001,Children and Young P,CYP,Other Establishments          ,EFA,15.12.2011,10-04072,1612.68,Real Education Ltd
Nottinghamshire County Council,1111/1001,Children and Young P,CYP,Other Establishments          ,EFA,15.12.2011,10-04073,630,Real Education Ltd
Nottinghamshire County Council,1111/1001,Children and Young P,CYP,Other Establishments          ,EFA,16.12.2011,10-03100,10500,The Iona School
Nottinghamshire County Council,1111/1001,Children and Young P,CYP,Other Establishments          ,EFA,20.12.2011,10-04956,12686.33,Doncaster Deaf Trust
Nottinghamshire County Council,1111/1001,Children and Young P,CYP,Other Establishments          ,EFA,22.12.2011,10-05178,1160,Swinton Lock Activity Centre
Nottinghamshire County Council,1111/1001,Children and Young P,CYP,Other Establishments          ,EFA,22.12.2011,10-05179,2808,Hope Fostering Services Ltd
Nottinghamshire County Council,1111/1001,Children and Young P,CYP,Other Establishments          ,EFA,22.12.2011,10-05182,2808,Hope Fostering Services Ltd
Nottinghamshire County Council,1111/1001,Children and Young P,CYP,Private Contractors           ,EGA,01.12.2011,10-00003,13000,Wilds Lodge School
Nottinghamshire County Council,1111/1001,Children and Young P,CYP,Private Contractors           ,EGA,01.12.2011,10-00004,26666.67,Wilds Lodge School
Nottinghamshire County Council,1111/1001,Children and Young P,CYP,Private Contractors           ,EGA,01.12.2011,10-00005,26666.67,Wilds Lodge School
Nottinghamshire County Council,1111/1001,Children and Young P,CYP,Private Contractors           ,EGA,01.12.2011,10-00006,26666.67,Wilds Lodge School
Nottinghamshire County Council,1111/1001,Children and Young P,CYP,Private Contractors           ,EGA,06.12.2011,10-03086,575.4,Young Rascals Day Nursery
Nottinghamshire County Council,1111/1001,Children and Young P,CYP,Private Contractors           ,EGA,06.12.2011,10-03087,2137.59,Windmills Pre-School Playgroup
Nottinghamshire County Council,1111/1001,Children and Young P,CYP,Private Contractors           ,EGA,06.12.2011,10-03089,3788.05,Woodthorpe Day Nursery Ltd
Nottinghamshire County Council,1111/1001,Children and Young P,CYP,Private Contractors           ,EGA,08.12.2011,10-03210,863.1,Bright Sparks Day Nursery
Nottinghamshire County Council,1111/1001,Children and Young P,CYP,Private Contractors           ,EGA,08.12.2011,10-03211,2061.85,Brookhill House Day Nursery
Nottinghamshire County Council,1111/1001,Children and Young P,CYP,Private Contractors           ,EGA,08.12.2011,10-03212,863.1,Brooklyn Day Nursery
Nottinghamshire County Council,1111/1001,Children and Young P,CYP,Private Contractors           ,EGA,08.12.2011,10-03214,690.48,Burnside Hall Playgroup
Nottinghamshire County Council,1111/1001,Children and Young P,CYP,Private Contractors           ,EGA,08.12.2011,10-03215,646.8,Crossdale Busy Bees Pre-School
Nottinghamshire County Council,1111/1001,Children and Young P,CYP,Private Contractors           ,EGA,08.12.2011,10-03216,1428.91,Busy Bees Playgroup
Nottinghamshire County Council,1111/1001,Children and Young P,CYP,Private Contractors           ,EGA,08.12.2011,10-03217,1524.81,Busy Bees Pre-School
Nottinghamshire County Council,1111/1001,Children and Young P,CYP,Private Contractors           ,EGA,08.12.2011,10-03218,863.1,Butterflies Nursery (West Notts Col
Nottinghamshire County Council,1111/1001,Children and Young P,CYP,Private Contractors           ,EGA,08.12.2011,10-03219,1553.58,Carlton & Gedling Day Nursery
Nottinghamshire County Council,1111/1001,Children and Young P,CYP,Private Contractors           ,EGA,08.12.2011,10-03220,646.8,Carlton Hill Playgroup
Nottinghamshire County Council,1111/1001,Children and Young P,CYP,Private Contractors           ,EGA,08.12.2011,10-03221,5811.54,Carnarvon Pre-School
Nottinghamshire County Council,1111/1001,Children and Young P,CYP,Private Contractors           ,EGA,08.12.2011,10-03222,1160.39,Cherubs Child Care Centre
Nottinghamshire County Council,1111/1001,Children and Young P,CYP,Private Contractors           ,EGA,08.12.2011,10-03223,3663.38,Cherubs Childrens Centre Wynndale
Nottinghamshire County Council,1111/1001,Children and Young P,CYP,Private Contractors           ,EGA,08.12.2011,10-03224,863.1,Cherubs Childrens Centre Pleasley
Nottinghamshire County Council,1111/1001,Children and Young P,CYP,Private Contractors           ,EGA,08.12.2011,10-03225,4747.05,Cherubs Day Nursery
Nottinghamshire County Council,1111/1001,Children and Young P,CYP,Private Contractors           ,EGA,08.12.2011,10-03227,1797.6,Chetwynd Barracks Pre-School
Nottinghamshire County Council,1111/1001,Children and Young P,CYP,Private Contractors           ,EGA,08.12.2011,10-03228,748.02,Children 1st @ Breedon House
Nottinghamshire County Council,1111/1001,Children and Young P,CYP,Private Contractors           ,EGA,08.12.2011,10-03229,1265.88,Breedon House Nursery
Nottinghamshire County Council,1111/1001,Children and Young P,CYP,Private Contractors           ,EGA,08.12.2011,10-03230,4027.8,Attenborough Church Pre-School
Nottinghamshire County Council,1111/1001,Children and Young P,CYP,Private Contractors           ,EGA,08.12.2011,10-03231,2426.27,Bircotes Pre-School
Nottinghamshire County Council,1111/1001,Children and Young P,CYP,Private Contractors           ,EGA,08.12.2011,10-03232,2445.45,Bizzy Kidz
Nottinghamshire County Council,1111/1001,Children and Young P,CYP,Private Contractors           ,EGA,08.12.2011,10-03233,1797.6,Bramcote Pre-School Playgroup
Nottinghamshire County Council,1111/1001,Children and Young P,CYP,Private Contractors           ,EGA,08.12.2011,10-03234,3222.24,Childrens Corner Day Nursery
Nottinghamshire County Council,1111/1001,Children and Young P,CYP,Private Contractors           ,EGA,08.12.2011,10-03235,3452.4,Children's House Nursery School
Nottinghamshire County Council,1111/1001,Children and Young P,CYP,Private Contractors           ,EGA,08.12.2011,10-03236,4037.39,Christchurch Hall Pre-School Playgr
Nottinghamshire County Council,1111/1001,Children and Young P,CYP,Private Contractors           ,EGA,08.12.2011,10-03237,527.45,Claremont Early Years Ltd
Nottinghamshire County Council,1111/1001,Children and Young P,CYP,Private Contractors           ,EGA,08.12.2011,10-03238,1898.82,Claremont House Nursery School
Nottinghamshire County Council,1111/1001,Children and Young P,CYP,Private Contractors           ,EGA,08.12.2011,10-03239,3509.94,Collingham & District Pre-School
Nottinghamshire County Council,1111/1001,Children and Young P,CYP,Private Contractors           ,EGA,08.12.2011,10-03240,2359.14,Colwick Pre School Playgroup
Nottinghamshire County Council,1111/1001,Children and Young P,CYP,Private Contractors           ,EGA,08.12.2011,10-03241,1668.66,Costock Pre School
Nottinghamshire County Council,1111/1001,Children and Young P,CYP,Private Contractors           ,EGA,08.12.2011,10-03242,1745.38,Cropwell Bishop Pre-School Playgrou
Nottinghamshire County Council,1111/1001,Children and Young P,CYP,Private Contractors           ,EGA,08.12.2011,10-03243,1035.72,Daisies Day Nursery
Nottinghamshire County Council,1111/1001,Children and Young P,CYP,Private Contractors           ,EGA,08.12.2011,10-03244,1150.8,Discovery Day Nursery
Nottinghamshire County Council,1111/1001,Children and Young P,CYP,Private Contractors           ,EGA,08.12.2011,10-03245,4027.8,Benjamins-Breedon House Childrens
Nottinghamshire County Council,1111/1001,Children and Young P,CYP,Private Contractors           ,EGA,08.12.2011,10-03246,2301.6,Awsworth Schoolhouse Day Nursery
Nottinghamshire County Council,1111/1001,Children and Young P,CYP,Private Contractors           ,EGA,08.12.2011,10-03247,5169.01,Balderton Pre-School
Nottinghamshire County Council,1111/1001,Children and Young P,CYP,Private Contractors           ,EGA,08.12.2011,10-03248,1265.88,Beacon Hill Day Nursery
Nottinghamshire County Council,1111/1001,Children and Young P,CYP,Private Contractors           ,EGA,08.12.2011,10-03249,1102.85,Benner & Bolton Childminders
Nottinghamshire County Council,1111/1001,Children and Young P,CYP,Private Contractors           ,EGA,08.12.2011,10-03250,2244.06,Duncroft Day Nursery
Nottinghamshire County Council,1111/1001,Children and Young P,CYP,Private Contractors           ,EGA,08.12.2011,10-03251,2392.18,North Notts College
Nottinghamshire County Council,1111/1001,Children and Young P,CYP,Private Contractors           ,EGA,08.12.2011,10-03252,815.15,Early Years Playgroup
Nottinghamshire County Council,1111/1001,Children and Young P,CYP,Private Contractors           ,EGA,08.12.2011,10-03255,863.1,Edwinstowe Pre-School Playgroup
Nottinghamshire County Council,1111/1001,Children and Young P,CYP,Private Contractors           ,EGA,09.12.2011,10-03253,3753.96,Edwalton Day Nursery
Nottinghamshire County Council,1111/1001,Children and Young P,CYP,Private Contractors           ,EGA,09.12.2011,10-03256,997.36,Elston Playgroup Newark
Nottinghamshire County Council,1111/1001,Children and Young P,CYP,Private Contractors           ,EGA,09.12.2011,10-03257,3126.34,Farndon St Peters Early Years
Nottinghamshire County Council,1111/1001,Children and Young P,CYP,Private Contractors           ,EGA,09.12.2011,10-03258,2752.33,Farnsfield Pre-School
Nottinghamshire County Council,1111/1001,Children and Young P,CYP,Private Contractors           ,EGA,09.12.2011,10-03259,2857.82,Fernwood Day Nursery
Nottinghamshire County Council,1111/1001,Children and Young P,CYP,Private Contractors           ,EGA,09.12.2011,10-03260,1659.07,First Steps @ Roko
Nottinghamshire County Council,1111/1001,Children and Young P,CYP,Private Contractors           ,EGA,09.12.2011,10-03261,1764.56,Fledglings Playgroup
Nottinghamshire County Council,1111/1001,Children and Young P,CYP,Private Contractors           ,EGA,09.12.2011,10-03262,575.4,Foxy Creek Pre-School Playgroup
Nottinghamshire County Council,1111/1001,Children and Young P,CYP,Private Contractors           ,EGA,09.12.2011,10-03263,1035.72,Friary Playschool
Nottinghamshire County Council,1111/1001,Children and Young P,CYP,Private Contractors           ,EGA,09.12.2011,10-03264,2455.04,Good Foundations Day Nursery
Nottinghamshire County Council,1111/1001,Children and Young P,CYP,Private Contractors           ,EGA,09.12.2011,10-03265,2934.54,Good Shepherd Pre-School
Nottinghamshire County Council,1111/1001,Children and Young P,CYP,Private Contractors           ,EGA,09.12.2011,10-03266,2416.68,Granby House Nursery
Nottinghamshire County Council,1111/1001,Children and Young P,CYP,Private Contractors           ,EGA,09.12.2011,10-03267,1726.2,Gotham Pre-School Playgroup(DUPLICA
Nottinghamshire County Council,1111/1001,Children and Young P,CYP,Private Contractors           ,EGA,09.12.2011,10-03268,1534.4,Haywood Road Pre-School Playgroup
Nottinghamshire County Council,1111/1001,Children and Young P,CYP,Private Contractors           ,EGA,09.12.2011,10-03269,1026.13,Hickling Pre-School
Nottinghamshire County Council,1111/1001,Children and Young P,CYP,Private Contractors           ,EGA,09.12.2011,10-03270,2334.64,Hickory House Day Nursery
Nottinghamshire County Council,1111/1001,Children and Young P,CYP,Private Contractors           ,EGA,09.12.2011,10-03271,1102.85,Hollies  Day Nurseries Limited
Nottinghamshire County Council,1111/1001,Children and Young P,CYP,Private Contractors           ,EGA,09.12.2011,10-03272,2416.68,Homestead Day Nursery
Nottinghamshire County Council,1111/1001,Children and Young P,CYP,Private Contractors           ,EGA,09.12.2011,10-03273,1035.72,Quinton Day Nurseries T/A Honey Bee
Nottinghamshire County Council,1111/1001,Children and Young P,CYP,Private Contractors           ,EGA,09.12.2011,10-03274,2282.42,Honey Pot Day Private Day Nursery L
Nottinghamshire County Council,1111/1001,Children and Young P,CYP,Private Contractors           ,EGA,09.12.2011,10-03275,1630.3,Horsendale Playgroup
Nottinghamshire County Council,1111/1001,Children and Young P,CYP,Private Contractors           ,EGA,09.12.2011,10-03276,2416.68,Hucknall Day Nursery
Nottinghamshire County Council,1111/1001,Children and Young P,CYP,Private Contractors           ,EGA,09.12.2011,10-03277,4214.28,Hucknall Pre-School Playgroup
Nottinghamshire County Council,1111/1001,Children and Young P,CYP,Private Contractors           ,EGA,09.12.2011,10-03278,863.1,Inham Park Pre School Playgroup
Nottinghamshire County Council,1111/1001,Children and Young P,CYP,Private Contractors           ,EGA,09.12.2011,10-03279,2589.3,Just Learning Ltd
Nottinghamshire County Council,1111/1001,Children and Young P,CYP,Private Contractors           ,EGA,09.12.2011,10-03280,1045.31,Kimberley Pre-School Playgroup
Nottinghamshire County Council,1111/1001,Children and Young P,CYP,Private Contractors           ,EGA,09.12.2011,10-03281,1438.5,Kirkby Cross Playgroup
Nottinghamshire County Council,1111/1001,Children and Young P,CYP,Private Contractors           ,EGA,09.12.2011,10-03282,714.46,Kneesall Pre School Learning Allian
Nottinghamshire County Council,1111/1001,Children and Young P,CYP,Private Contractors           ,EGA,09.12.2011,10-03283,2848.23,Lady Bay Pre-School Group
Nottinghamshire County Council,1111/1001,Children and Young P,CYP,Private Contractors           ,EGA,09.12.2011,10-03284,949.41,Lambley Day Nursery Ltd
Nottinghamshire County Council,1111/1001,Children and Young P,CYP,Private Contractors           ,EGA,09.12.2011,10-03285,3270.19,Langar Chidcare Services
Nottinghamshire County Council,1111/1001,Children and Young P,CYP,Private Contractors           ,EGA,09.12.2011,10-03286,2013.9,Learning Ladder Childcare Ltd
Nottinghamshire County Council,1111/1001,Children and Young P,CYP,Private Contractors           ,EGA,09.12.2011,10-03287,7263.9,Leen Mills Pre School Playgroup
Nottinghamshire County Council,1111/1001,Children and Young P,CYP,Private Contractors           ,EGA,09.12.2011,10-03288,1064.49,Leoschildrens Nurseries Ltd
Nottinghamshire County Council,1111/1001,Children and Young P,CYP,Private Contractors           ,EGA,09.12.2011,10-03289,934.5,North Leverton Pre-School Playgroup
Nottinghamshire County Council,1111/1001,Children and Young P,CYP,Private Contractors           ,EGA,09.12.2011,10-03290,3716.13,Little Acorns Shireoaks
Nottinghamshire County Council,1111/1001,Children and Young P,CYP,Private Contractors           ,EGA,09.12.2011,10-03291,3634.61,Little Acorns Pre School
Nottinghamshire County Council,1111/1001,Children and Young P,CYP,Private Contractors           ,EGA,09.12.2011,10-03292,2387.91,Little Bears Day Nursery
Nottinghamshire County Council,1111/1001,Children and Young P,CYP,Private Contractors           ,EGA,09.12.2011,10-03293,3577.07,Little Millers Day Nursery
Nottinghamshire County Council,1111/1001,Children and Young P,CYP,Private Contractors           ,EGA,09.12.2011,10-03294,2464.63,Little Friends Day Nursery
Nottinghamshire County Council,1111/1001,Children and Young P,CYP,Private Contractors           ,EGA,09.12.2011,10-03295,3552.78,Leahurst Road Pre-School
Nottinghamshire County Council,1111/1001,Children and Young P,CYP,Private Contractors           ,EGA,09.12.2011,10-03296,4555.25,Little Nippers Pre-School
Nottinghamshire County Council,1111/1001,Children and Young P,CYP,Private Contractors           ,EGA,09.12.2011,10-03297,4507.3,Little Oaks Nursery
Nottinghamshire County Council,1111/1001,Children and Young P,CYP,Private Contractors           ,EGA,09.12.2011,10-03298,2924.95,Little Rascals Pre-School
Nottinghamshire County Council,1111/1001,Children and Young P,CYP,Private Contractors           ,EGA,09.12.2011,10-03299,728.84,East Bridgford Pre-School
Nottinghamshire County Council,1111/1001,Children and Young P,CYP,Private Contractors           ,EGA,09.12.2011,10-03300,2128.98,East Leake Day Nursery & Pre-School
Nottinghamshire County Council,1111/1001,Children and Young P,CYP,Private Contractors           ,EGA,09.12.2011,10-03301,1726.2,East Leake Pre-School Playgroup
Nottinghamshire County Council,1111/1001,Children and Young P,CYP,Private Contractors           ,EGA,09.12.2011,10-03302,3740.1,Longdale Nursery School
Nottinghamshire County Council,1111/1001,Children and Young P,CYP,Private Contractors           ,EGA,09.12.2011,10-03303,3845.59,Lowater Street Playgroup
Nottinghamshire County Council,1111/1001,Children and Young P,CYP,Private Contractors           ,EGA,09.12.2011,10-03304,1323.42,Lowdham & Epperstone Pre-School
Nottinghamshire County Council,1111/1001,Children and Young P,CYP,Private Contractors           ,EGA,09.12.2011,10-03305,1534.4,Mattersey Playgroup
Nottinghamshire County Council,1111/1001,Children and Young P,CYP,Private Contractors           ,EGA,09.12.2011,10-03306,575.4,Misson Community Centre
Nottinghamshire County Council,1111/1001,Children and Young P,CYP,Private Contractors           ,EGA,09.12.2011,10-03307,575.4,Mulberry Bush Day Nursery
Nottinghamshire County Council,1111/1001,Children and Young P,CYP,Private Contractors           ,EGA,09.12.2011,10-03308,623.35,New Woods Childcare Centre
Nottinghamshire County Council,1111/1001,Children and Young P,CYP,Private Contractors           ,EGA,09.12.2011,10-03309,838.81,Noahs Ark Playgroup
Nottinghamshire County Council,1111/1001,Children and Young P,CYP,Private Contractors           ,EGA,09.12.2011,10-03310,1390.55,North Muskham Playgroup
Nottinghamshire County Council,1111/1001,Children and Young P,CYP,Private Contractors           ,EGA,09.12.2011,10-03311,575.4,Nottingham Montessori School
Nottinghamshire County Council,1111/1001,Children and Young P,CYP,Private Contractors           ,EGA,09.12.2011,10-03312,2301.6,Nurseryworld & Friends Nursery & Pr
Nottinghamshire County Council,1111/1001,Children and Young P,CYP,Private Contractors           ,EGA,09.12.2011,10-03313,2186.52,Oceans Day Nursery
Nottinghamshire County Council,1111/1001,Children and Young P,CYP,Private Contractors           ,EGA,09.12.2011,10-03314,815.15,Old Cooperative Day Nursery
Nottinghamshire County Council,1111/1001,Children and Young P,CYP,Private Contractors           ,EGA,09.12.2011,10-03315,4718.28,The Orchard Day Nursery
Nottinghamshire County Council,1111/1001,Children and Young P,CYP,Private Contractors           ,EGA,09.12.2011,10-03394,3236.1,Papermoon Day Nursery Sutton In Ash
Nottinghamshire County Council,1111/1001,Children and Young P,CYP,Private Contractors           ,EGA,09.12.2011,10-03395,1342.6,Papermoon Day Nursery
Nottinghamshire County Council,1111/1001,Children and Young P,CYP,Private Contractors           ,EGA,09.12.2011,10-03396,5140.24,Papermoon Day Nursery
Nottinghamshire County Council,1111/1001,Children and Young P,CYP,Private Contractors           ,EGA,09.12.2011,10-03397,3644.2,Papermoon Day Nursery
Nottinghamshire County Council,1111/1001,Children and Young P,CYP,Private Contractors           ,EGA,09.12.2011,10-03398,1150.8,Papplewick Pre-School Playgroup
Nottinghamshire County Council,1111/1001,Children and Young P,CYP,Private Contractors           ,EGA,09.12.2011,10-03399,2176.93,Pea Pod Day Nursery Ltd
Nottinghamshire County Council,1111/1001,Children and Young P,CYP,Private Contractors           ,EGA,09.12.2011,10-03400,575.4,Pelham Pre-School
Nottinghamshire County Council,1111/1001,Children and Young P,CYP,Private Contractors           ,EGA,09.12.2011,10-03401,1337.81,Pippins Pre-School
Nottinghamshire County Council,1111/1001,Children and Young P,CYP,Private Contractors           ,EGA,09.12.2011,10-03402,2747.54,Pre-School 345
Nottinghamshire County Council,1111/1001,Children and Young P,CYP,Private Contractors           ,EGA,09.12.2011,10-03403,1438.5,Prebend Pre-School Playgroup
Nottinghamshire County Council,1111/1001,Children and Young P,CYP,Private Contractors           ,EGA,09.12.2011,10-03405,5754,Puddleducks Pre-School
Nottinghamshire County Council,1111/1001,Children and Young P,CYP,Private Contractors           ,EGA,09.12.2011,10-03406,1246.7,Pump Farm Day Nursery
Nottinghamshire County Council,1111/1001,Children and Young P,CYP,Private Contractors           ,EGA,09.12.2011,10-03407,2455.04,Radcliffe On Trent Day Nursery
Nottinghamshire County Council,1111/1001,Children and Young P,CYP,Private Contractors           ,EGA,09.12.2011,10-03408,1011.75,Radcliffe On Trent Pre-School Playg
Nottinghamshire County Council,1111/1001,Children and Young P,CYP,Private Contractors           ,EGA,09.12.2011,10-03409,1994.72,Railway Children Playgroup
Nottinghamshire County Council,1111/1001,Children and Young P,CYP,Private Contractors           ,EGA,09.12.2011,10-03410,863.1,Rainbow Day Nursery
Nottinghamshire County Council,1111/1001,Children and Young P,CYP,Private Contractors           ,EGA,09.12.2011,10-03411,575.4,Rainbow Day Nursery
Nottinghamshire County Council,1111/1001,Children and Young P,CYP,Private Contractors           ,EGA,09.12.2011,10-03412,1074.08,Rainbows Day Nursery
Nottinghamshire County Council,1111/1001,Children and Young P,CYP,Private Contractors           ,EGA,09.12.2011,10-03413,2565.01,Ranskill Nursery
Nottinghamshire County Council,1111/1001,Children and Young P,CYP,Private Contractors           ,EGA,09.12.2011,10-03414,2013.9,Ravenshead Pre-School Playgroup
Nottinghamshire County Council,1111/1001,Children and Young P,CYP,Private Contractors           ,EGA,09.12.2011,10-03415,2373,The Rocking Horse Child Car Centres
Nottinghamshire County Council,1111/1001,Children and Young P,CYP,Private Contractors           ,EGA,09.12.2011,10-03416,863.1,Rocking Horse Nursery Butlers Hill
Nottinghamshire County Council,1111/1001,Children and Young P,CYP,Private Contractors           ,EGA,09.12.2011,10-03417,3020.85,Ruddington Nursery And Pre-School
Nottinghamshire County Council,1111/1001,Children and Young P,CYP,Private Contractors           ,EGA,09.12.2011,10-03418,1515.22,Rushcliffe Pre School
Nottinghamshire County Council,1111/1001,Children and Young P,CYP,Private Contractors           ,EGA,09.12.2011,10-03423,690.48,Sconce Hills Pre-School Playgroup
Nottinghamshire County Council,1111/1001,Children and Young P,CYP,Private Contractors           ,EGA,09.12.2011,10-03424,2771.51,Scottswood Pdn Ltd
Nottinghamshire County Council,1111/1001,Children and Young P,CYP,Private Contractors           ,EGA,09.12.2011,10-03425,1150.8,Serendipitys Day Nursery & Pre Scho
Nottinghamshire County Council,1111/1001,Children and Young P,CYP,Private Contractors           ,EGA,09.12.2011,10-03426,2829.05,Serendipity's Day Nursery & Pre-Sch
Nottinghamshire County Council,1111/1001,Children and Young P,CYP,Private Contractors           ,EGA,09.12.2011,10-03427,2013.9,Shaping Futures Oakham Day Nursery
Nottinghamshire County Council,1111/1001,Children and Young P,CYP,Private Contractors           ,EGA,09.12.2011,10-03428,1265.88,Shaping Futures Ltd
Nottinghamshire County Council,1111/1001,Children and Young P,CYP,Private Contractors           ,EGA,09.12.2011,10-03429,632.94,Shaping Futures Ltd
Nottinghamshire County Council,1111/1001,Children and Young P,CYP,Private Contractors           ,EGA,09.12.2011,10-03430,1222.2,Smarties Private Day Nursery
Nottinghamshire County Council,1111/1001,Children and Young P,CYP,Private Contractors           ,EGA,09.12.2011,10-03431,2512.58,Scotts Wood Private Day Nursery
Nottinghamshire County Council,1111/1001,Children and Young P,CYP,Private Contractors           ,EGA,09.12.2011,10-03432,1150.8,South Nottingham College Nursery
Nottinghamshire County Council,1111/1001,Children and Young P,CYP,Private Contractors           ,EGA,09.12.2011,10-03433,1561.64,Southfields Pre-School
Nottinghamshire County Council,1111/1001,Children and Young P,CYP,Private Contractors           ,EGA,09.12.2011,10-03434,890.16,Southwell Pre-School
Nottinghamshire County Council,1111/1001,Children and Young P,CYP,Private Contractors           ,EGA,09.12.2011,10-03435,978.18,Speckled Frogs Pre-School
Nottinghamshire County Council,1111/1001,Children and Young P,CYP,Private Contractors           ,EGA,09.12.2011,10-03436,2416.68,St Giles Playgroup
Nottinghamshire County Council,1111/1001,Children and Young P,CYP,Private Contractors           ,EGA,09.12.2011,10-03437,2224.88,St Johns Playgroup
Nottinghamshire County Council,1111/1001,Children and Young P,CYP,Private Contractors           ,EGA,09.12.2011,10-03438,1438.5,St Mary's Pre-School
Nottinghamshire County Council,1111/1001,Children and Young P,CYP,Private Contractors           ,EGA,09.12.2011,10-03439,1783.74,Stapleford Day Nursery
Nottinghamshire County Council,1111/1001,Children and Young P,CYP,Private Contractors           ,EGA,09.12.2011,10-03440,933.57,Staunton Nursery School
Nottinghamshire County Council,1111/1001,Children and Young P,CYP,Private Contractors           ,EGA,09.12.2011,10-03441,2085.3,Stepping Stones 11
Nottinghamshire County Council,1111/1001,Children and Young P,CYP,Private Contractors           ,EGA,09.12.2011,10-03442,1256.29,Sutton Bonington Playgroup
Nottinghamshire County Council,1111/1001,Children and Young P,CYP,Private Contractors           ,EGA,09.12.2011,10-03443,2493.4,Sutton Centre Under 5'S Playgroup
Nottinghamshire County Council,1111/1001,Children and Young P,CYP,Private Contractors           ,EGA,09.12.2011,10-03444,1438.5,Treetops Nursery (Clipstone)
Nottinghamshire County Council,1111/1001,Children and Young P,CYP,Private Contractors           ,EGA,09.12.2011,10-03445,2589.3,Treetops Nursery
Nottinghamshire County Council,1111/1001,Children and Young P,CYP,Private Contractors           ,EGA,09.12.2011,10-03446,3962.2,Tollerton Playgroup
Nottinghamshire County Council,1111/1001,Children and Young P,CYP,Private Contractors           ,EGA,09.12.2011,10-03447,2013.9,Tiny World Mansfield
Nottinghamshire County Council,1111/1001,Children and Young P,CYP,Private Contractors           ,EGA,09.12.2011,10-03448,978.18,Tiny Tots Playgroup
Nottinghamshire County Council,1111/1001,Children and Young P,CYP,Private Contractors           ,EGA,09.12.2011,10-03449,575.4,Thrumpton Kids Clubs
Nottinghamshire County Council,1111/1001,Children and Young P,CYP,Private Contractors           ,EGA,09.12.2011,10-03450,1726.2,The Secret Garden Private Day Nurse
Nottinghamshire County Council,1111/1001,Children and Young P,CYP,Private Contractors           ,EGA,09.12.2011,10-03451,1726.2,The Learning Tree Day Nursery 2
Nottinghamshire County Council,1111/1001,Children and Young P,CYP,Private Contractors           ,EGA,09.12.2011,10-03452,1150.8,The Learning Tree Nursery
Nottinghamshire County Council,1111/1001,Children and Young P,CYP,Private Contractors           ,EGA,09.12.2011,10-03453,987.77,The Grange Nursery Ltd
Nottinghamshire County Council,1111/1001,Children and Young P,CYP,Private Contractors           ,EGA,09.12.2011,10-03454,1257.8,Trowell Pre School
Nottinghamshire County Council,1111/1001,Children and Young P,CYP,Private Contractors           ,EGA,09.12.2011,10-03455,7336.35,Westdale Pre School
Nottinghamshire County Council,1111/1001,Children and Young P,CYP,Private Contractors           ,EGA,09.12.2011,10-03456,3634.61,Westbourne House Nursery School
Nottinghamshire County Council,1111/1001,Children and Young P,CYP,Private Contractors           ,EGA,09.12.2011,10-03457,4325.09,West Bridgford Out Of School Care L
Nottinghamshire County Council,1111/1001,Children and Young P,CYP,Private Contractors           ,EGA,09.12.2011,10-03458,2603.69,Wellin Lane Playgroup
Nottinghamshire County Council,1111/1001,Children and Young P,CYP,Private Contractors           ,EGA,09.12.2011,10-03459,3931.38,Weaverthorpe Pre-School Playgroup
Nottinghamshire County Council,1111/1001,Children and Young P,CYP,Private Contractors           ,EGA,09.12.2011,10-03460,3121.02,Watnall Pre-School Playgroup
Nottinghamshire County Council,1111/1001,Children and Young P,CYP,Private Contractors           ,EGA,09.12.2011,10-03461,1611.12,Walesby School Playgroup
Nottinghamshire County Council,1111/1001,Children and Young P,CYP,Private Contractors           ,EGA,09.12.2011,10-03462,1572.76,Village Day Nursery
Nottinghamshire County Council,1111/1001,Children and Young P,CYP,Private Contractors           ,EGA,09.12.2011,10-03463,4257.96,Whitehouse Day Nursery
Nottinghamshire County Council,1111/1001,Children and Young P,CYP,Private Contractors           ,EGA,09.12.2011,10-03465,2420.95,Valmary's Children's Centre
Nottinghamshire County Council,1111/1001,Children and Young P,CYP,Private Contractors           ,EGA,09.12.2011,10-03466,1294.65,Willoughby On The Wolds Playgroup
Nottinghamshire County Council,1111/1001,Children and Young P,CYP,Private Contractors           ,EGA,09.12.2011,10-03467,1074.08,Willow Brook Pre-School
Nottinghamshire County Council,1111/1001,Children and Young P,CYP,Private Contractors           ,EGA,09.12.2011,10-03468,1021.02,Windmill Kindergarten Playgroup
Nottinghamshire County Council,1111/1001,Children and Young P,CYP,Private Contractors           ,EGA,09.12.2011,10-03469,5754,Willow Pre-School Playgroup
Nottinghamshire County Council,1111/1001,Children and Young P,CYP,Private Contractors           ,EGA,09.12.2011,10-03470,2483.81,Wishing Well Day Nursery
Nottinghamshire County Council,1111/1001,Children and Young P,CYP,Private Contractors           ,EGA,09.12.2011,10-03471,2186.52,Wollaton Village Day Nurseries Limi
Nottinghamshire County Council,1111/1001,Children and Young P,CYP,Private Contractors           ,EGA,09.12.2011,10-03472,1438.5,Wollaton Village Day Nurseries Ltd.
Nottinghamshire County Council,1111/1001,Children and Young P,CYP,Private Contractors           ,EGA,09.12.2011,10-03473,2570.12,Woodborough Village Pre School
Nottinghamshire County Council,1111/1001,Children and Young P,CYP,Private Contractors           ,EGA,09.12.2011,10-03474,2924.95,Alphabet House Day Nursery WB
Nottinghamshire County Council,1111/1001,Children and Young P,CYP,Private Contractors           ,EGA,09.12.2011,10-03475,3740.1,Alphabet House Day Nursery Worksop
Nottinghamshire County Council,1111/1001,Children and Young P,CYP,Private Contractors           ,EGA,09.12.2011,10-03476,2877,Applegarth Day Nursery
Nottinghamshire County Council,1111/1001,Children and Young P,CYP,Private Contractors           ,EGA,09.12.2011,10-03477,2733.15,Arnold House Day Nursery
Nottinghamshire County Council,1111/1001,Children and Young P,CYP,Private Contractors           ,EGA,09.12.2011,10-03478,2416.68,Arnold View Pre-School
Nottinghamshire County Council,1111/1001,Children and Young P,CYP,Private Contractors           ,EGA,09.12.2011,10-03479,1726.2,Ashfield Plaza Day Nursery
Nottinghamshire County Council,1111/1001,Children and Young P,CYP,Private Contractors           ,EGA,09.12.2011,10-03481,2589.3,Alphabet House Day Nursery
Nottinghamshire County Council,1111/1001,Children and Young P,CYP,Private Contractors           ,EGA,09.12.2011,10-03482,4027.8,Bingham Day Nursery & Pre School
Nottinghamshire County Council,1111/1001,Children and Young P,CYP,Private Contractors           ,EGA,09.12.2011,10-03484,2589.3,Abacus Pre-School
Nottinghamshire County Council,1111/1001,Children and Young P,CYP,Private Contractors           ,EGA,09.12.2011,10-03485,3394.86,Church House Day Nursery
Nottinghamshire County Council,1111/1001,Children and Young P,CYP,Private Contractors           ,EGA,09.12.2011,10-03486,2598.89,Cranmer Pre-School
Nottinghamshire County Council,1111/1001,Children and Young P,CYP,Private Contractors           ,EGA,09.12.2011,10-03487,2263.24,Cherubs Day Nursey Newark
Nottinghamshire County Council,1111/1001,Children and Young P,CYP,Private Contractors           ,EGA,09.12.2011,10-03488,2802.62,Friary Playschool
Nottinghamshire County Council,1111/1001,Children and Young P,CYP,Private Contractors           ,EGA,14.12.2011,10-03960,857.67,Reliance Secure Task Management Ltd
Nottinghamshire County Council,1111/1001,Children and Young P,CYP,Private Contractors           ,EGA,14.12.2011,10-03961,4993,I Can Services Ltd
Nottinghamshire County Council,1111/1001,Children and Young P,CYP,Private Contractors           ,EGA,14.12.2011,10-03962,5797.62,Lincolnshire County Council
Nottinghamshire County Council,1111/1001,Children and Young P,CYP,Private Contractors           ,EGA,14.12.2011,10-03963,1895.65,Newark Emmaus Trust
Nottinghamshire County Council,1111/1001,Children and Young P,CYP,Private Contractors           ,EGA,14.12.2011,10-03964,784.17,Newport City Council
Nottinghamshire County Council,1111/1001,Children and Young P,CYP,Private Contractors           ,EGA,14.12.2011,10-03967,2618.7,Fosterplus Ltd
Nottinghamshire County Council,1111/1001,Children and Young P,CYP,Private Contractors           ,EGA,14.12.2011,10-03968,3424.2,Fosterplus Ltd
Nottinghamshire County Council,1111/1001,Children and Young P,CYP,Private Contractors           ,EGA,14.12.2011,10-03969,2618.7,Fosterplus Ltd
Nottinghamshire County Council,1111/1001,Children and Young P,CYP,Private Contractors           ,EGA,14.12.2011,10-03970,1760.98,Barnardos
Nottinghamshire County Council,1111/1001,Children and Young P,CYP,Private Contractors           ,EGA,14.12.2011,10-03973,3424.2,Fosterplus Ltd
Nottinghamshire County Council,1111/1001,Children and Young P,CYP,Private Contractors           ,EGA,14.12.2011,10-03974,3625.8,Fosterplus Ltd
Nottinghamshire County Council,1111/1001,Children and Young P,CYP,Private Contractors           ,EGA,14.12.2011,10-03975,15878,Wings Education Ltd
Nottinghamshire County Council,1111/1001,Children and Young P,CYP,Private Contractors           ,EGA,14.12.2011,10-03976,34825,Wings Education Ltd
Nottinghamshire County Council,1111/1001,Children and Young P,CYP,Private Contractors           ,EGA,14.12.2011,10-03977,15878,Wings Education Ltd
Nottinghamshire County Council,1111/1001,Children and Young P,CYP,Private Contractors           ,EGA,14.12.2011,10-03978,34825,Wings Education Ltd
Nottinghamshire County Council,1111/1001,Children and Young P,CYP,Private Contractors           ,EGA,14.12.2011,10-03979,15878,Wings Education Ltd
Nottinghamshire County Council,1111/1001,Children and Young P,CYP,Private Contractors           ,EGA,14.12.2011,10-03980,34825,Wings Education Ltd
Nottinghamshire County Council,1111/1001,Children and Young P,CYP,Private Contractors           ,EGA,14.12.2011,10-03981,34825,Wings Education Ltd
Nottinghamshire County Council,1111/1001,Children and Young P,CYP,Private Contractors           ,EGA,14.12.2011,10-03982,15878,Wings Education Ltd
Nottinghamshire County Council,1111/1001,Children and Young P,CYP,Private Contractors           ,EGA,14.12.2011,10-03983,34825,Wings Education Ltd
Nottinghamshire County Council,1111/1001,Children and Young P,CYP,Private Contractors           ,EGA,14.12.2011,10-03984,34825,Wings Education Ltd
Nottinghamshire County Council,1111/1001,Children and Young P,CYP,Private Contractors           ,EGA,14.12.2011,10-03985,2657.14,By The Bridge
Nottinghamshire County Council,1111/1001,Children and Young P,CYP,Private Contractors           ,EGA,14.12.2011,10-03986,3852.86,By The Bridge
Nottinghamshire County Council,1111/1001,Children and Young P,CYP,Private Contractors           ,EGA,14.12.2011,10-03987,2544.64,Hillcrest Nursing Home
Nottinghamshire County Council,1111/1001,Children and Young P,CYP,Private Contractors           ,EGA,14.12.2011,10-03988,2767.99,Hillcrest Nursing Home
Nottinghamshire County Council,1111/1001,Children and Young P,CYP,Private Contractors           ,EGA,14.12.2011,10-03989,34825,Wings Education Ltd
Nottinghamshire County Council,1111/1001,Children and Young P,CYP,Private Contractors           ,EGA,14.12.2011,10-03994,3091.13,Barnardos
Nottinghamshire County Council,1111/1001,Children and Young P,CYP,Private Contractors           ,EGA,14.12.2011,10-03995,2949.43,Acorn Fostering Services Ltd
Nottinghamshire County Council,1111/1001,Children and Young P,CYP,Private Contractors           ,EGA,14.12.2011,10-03996,3069,Acorn Fostering Services Ltd
Nottinghamshire County Council,1111/1001,Children and Young P,CYP,Private Contractors           ,EGA,14.12.2011,10-03997,974.51,Acorn Fostering Services Ltd
Nottinghamshire County Council,1111/1001,Children and Young P,CYP,Private Contractors           ,EGA,14.12.2011,10-04018,34825,Wings Education Ltd
Nottinghamshire County Council,1111/1001,Children and Young P,CYP,Private Contractors           ,EGA,14.12.2011,10-04019,15878,Wings Education Ltd
Nottinghamshire County Council,1111/1001,Children and Young P,CYP,Private Contractors           ,EGA,14.12.2011,10-04020,34825,Wings Education Ltd
Nottinghamshire County Council,1111/1001,Children and Young P,CYP,Private Contractors           ,EGA,14.12.2011,10-04021,15878,Wings Education Ltd
Nottinghamshire County Council,1111/1001,Children and Young P,CYP,Private Contractors           ,EGA,14.12.2011,10-04022,34825,Wings Education Ltd
Nottinghamshire County Council,1111/1001,Children and Young P,CYP,Private Contractors           ,EGA,14.12.2011,10-04023,1805.76,Hillcrest Nursing Home
Nottinghamshire County Council,1111/1001,Children and Young P,CYP,Private Contractors           ,EGA,14.12.2011,10-04024,15878,Wings Education Ltd
Nottinghamshire County Council,1111/1001,Children and Young P,CYP,Private Contractors           ,EGA,14.12.2011,10-04025,34825,Wings Education Ltd
Nottinghamshire County Council,1111/1001,Children and Young P,CYP,Private Contractors           ,EGA,14.12.2011,10-04026,15878,Wings Education Ltd
Nottinghamshire County Council,1111/1001,Children and Young P,CYP,Private Contractors           ,EGA,14.12.2011,10-04027,36883,Wings Education Ltd
Nottinghamshire County Council,1111/1001,Children and Young P,CYP,Private Contractors           ,EGA,14.12.2011,10-04028,17207,Wings Education Ltd
Nottinghamshire County Council,1111/1001,Children and Young P,CYP,Private Contractors           ,EGA,14.12.2011,10-04029,2850,Compass Services For Children Ltd
Nottinghamshire County Council,1111/1001,Children and Young P,CYP,Private Contractors           ,EGA,14.12.2011,10-04030,3385.8,Hillcrest Nursing Home
Nottinghamshire County Council,1111/1001,Children and Young P,CYP,Private Contractors           ,EGA,14.12.2011,10-04031,15878,Wings Education Ltd
Nottinghamshire County Council,1111/1001,Children and Young P,CYP,Private Contractors           ,EGA,14.12.2011,10-04032,17207,Wings Education Ltd
Nottinghamshire County Council,1111/1001,Children and Young P,CYP,Private Contractors           ,EGA,14.12.2011,10-04033,15878,Wings Education Ltd
Nottinghamshire County Council,1111/1001,Children and Young P,CYP,Private Contractors           ,EGA,14.12.2011,10-04034,36883,Wings Education Ltd
Nottinghamshire County Council,1111/1001,Children and Young P,CYP,Private Contractors           ,EGA,14.12.2011,10-04035,2589.41,Hillcrest Nursing Home
Nottinghamshire County Council,1111/1001,Children and Young P,CYP,Private Contractors           ,EGA,15.12.2011,10-03088,598.85,All Aboard Day Nursery
Nottinghamshire County Council,1111/1001,Children and Young P,CYP,Private Contractors           ,EGA,15.12.2011,10-03971,3079.44,Barnardos
Nottinghamshire County Council,1111/1001,Children and Young P,CYP,Private Contractors           ,EGA,15.12.2011,10-03972,2833.07,Barnardos
Nottinghamshire County Council,1111/1001,Children and Young P,CYP,Private Contractors           ,EGA,15.12.2011,10-03990,3355.8,Barnardos
Nottinghamshire County Council,1111/1001,Children and Young P,CYP,Private Contractors           ,EGA,15.12.2011,10-03991,2905.71,Barnardos
Nottinghamshire County Council,1111/1001,Children and Young P,CYP,Private Contractors           ,EGA,15.12.2011,10-03992,2905.71,Barnardos
Nottinghamshire County Council,1111/1001,Children and Young P,CYP,Private Contractors           ,EGA,15.12.2011,10-03993,2675.7,Barnardos
Nottinghamshire County Council,1111/1001,Children and Young P,CYP,Private Contractors           ,EGA,15.12.2011,10-03998,3042,Foster Care Associates Ltd
Nottinghamshire County Council,1111/1001,Children and Young P,CYP,Private Contractors           ,EGA,15.12.2011,10-03999,2981.1,Foster Care Associates Ltd
Nottinghamshire County Council,1111/1001,Children and Young P,CYP,Private Contractors           ,EGA,15.12.2011,10-04000,3192.6,Foster Care Associates Ltd
Nottinghamshire County Council,1111/1001,Children and Young P,CYP,Private Contractors           ,EGA,15.12.2011,10-04001,3258,Foster Care Associates Ltd
Nottinghamshire County Council,1111/1001,Children and Young P,CYP,Private Contractors           ,EGA,15.12.2011,10-04002,3320.1,Foster Care Associates Ltd
Nottinghamshire County Council,1111/1001,Children and Young P,CYP,Private Contractors           ,EGA,15.12.2011,10-04003,3011.4,Foster Care Associates Ltd
Nottinghamshire County Council,1111/1001,Children and Young P,CYP,Private Contractors           ,EGA,15.12.2011,10-04004,3042,Foster Care Associates Ltd
Nottinghamshire County Council,1111/1001,Children and Young P,CYP,Private Contractors           ,EGA,15.12.2011,10-04005,4072.5,Foster Care Associates Ltd
Nottinghamshire County Council,1111/1001,Children and Young P,CYP,Private Contractors           ,EGA,15.12.2011,10-04006,3909.6,Foster Care Associates Ltd
Nottinghamshire County Council,1111/1001,Children and Young P,CYP,Private Contractors           ,EGA,15.12.2011,10-04007,3225.3,Foster Care Associates Ltd
Nottinghamshire County Council,1111/1001,Children and Young P,CYP,Private Contractors           ,EGA,15.12.2011,10-04008,4072.5,Foster Care Associates Ltd
Nottinghamshire County Council,1111/1001,Children and Young P,CYP,Private Contractors           ,EGA,15.12.2011,10-04009,4072.5,Foster Care Associates Ltd
Nottinghamshire County Council,1111/1001,Children and Young P,CYP,Private Contractors           ,EGA,15.12.2011,10-04010,1928.4,Foster Care Associates Ltd
Nottinghamshire County Council,1111/1001,Children and Young P,CYP,Private Contractors           ,EGA,15.12.2011,10-04011,3258,Foster Care Associates Ltd
Nottinghamshire County Council,1111/1001,Children and Young P,CYP,Private Contractors           ,EGA,15.12.2011,10-04012,6318,Foster Care Associates Ltd
Nottinghamshire County Council,1111/1001,Children and Young P,CYP,Private Contractors           ,EGA,15.12.2011,10-04013,6948,Foster Care Associates Ltd
Nottinghamshire County Council,1111/1001,Children and Young P,CYP,Private Contractors           ,EGA,15.12.2011,10-04014,1928.4,Foster Care Associates Ltd
Nottinghamshire County Council,1111/1001,Children and Young P,CYP,Private Contractors           ,EGA,15.12.2011,10-04015,3423,Foster Care Associates Ltd
Nottinghamshire County Council,1111/1001,Children and Young P,CYP,Private Contractors           ,EGA,15.12.2011,10-04016,3990.9,Foster Care Associates Ltd
Nottinghamshire County Council,1111/1001,Children and Young P,CYP,Private Contractors           ,EGA,15.12.2011,10-04017,12975.71,Progressive Care
Nottinghamshire County Council,1111/1001,Children and Young P,CYP,Private Contractors           ,EGA,15.12.2011,10-04544,4257.96,Busy Bees (Daybrook)
Nottinghamshire County Council,1111/1001,Children and Young P,CYP,Private Contractors           ,EGA,15.12.2011,10-04545,3351.71,Buttercross Pre School
Nottinghamshire County Council,1111/1001,Children and Young P,CYP,Private Contractors           ,EGA,15.12.2011,10-04546,4977.21,Killisick Pre-School
Nottinghamshire County Council,1111/1001,Children and Young P,CYP,Private Contractors           ,EGA,15.12.2011,10-04547,2819.46,Leo's Childrens Nurseries Ltd
Nottinghamshire County Council,1111/1001,Children and Young P,CYP,Private Contractors           ,EGA,15.12.2011,10-04548,3078.39,Alphabet House Nursery
Nottinghamshire County Council,1111/1001,Children and Young P,CYP,Private Contractors           ,EGA,15.12.2011,10-04560,3945,Fostering People Ltd
Nottinghamshire County Council,1111/1001,Children and Young P,CYP,Private Contractors           ,EGA,15.12.2011,10-04561,5571,Hope Fostering Services Ltd
Nottinghamshire County Council,1111/1001,Children and Young P,CYP,Private Contractors           ,EGA,15.12.2011,10-04562,3054,Hope Fostering Services Ltd
Nottinghamshire County Council,1111/1001,Children and Young P,CYP,Private Contractors           ,EGA,15.12.2011,10-04563,2687,Hope Fostering Services Ltd
Nottinghamshire County Council,1111/1001,Children and Young P,CYP,Private Contractors           ,EGA,19.12.2011,10-04816,2687,Hope Fostering Services Ltd
Nottinghamshire County Council,1111/1001,Children and Young P,CYP,Private Contractors           ,EGA,19.12.2011,10-04818,2829,Hope Fostering Services Ltd
Nottinghamshire County Council,1111/1001,Children and Young P,CYP,Private Contractors           ,EGA,19.12.2011,10-04819,2829,Hope Fostering Services Ltd
Nottinghamshire County Council,1111/1001,Children and Young P,CYP,Private Contractors           ,EGA,19.12.2011,10-04820,3009,Hope Fostering Services Ltd
Nottinghamshire County Council,1111/1001,Children and Young P,CYP,Private Contractors           ,EGA,19.12.2011,10-04821,3009,Hope Fostering Services Ltd
Nottinghamshire County Council,1111/1001,Children and Young P,CYP,Private Contractors           ,EGA,19.12.2011,10-04822,3009,Hope Fostering Services Ltd
Nottinghamshire County Council,1111/1001,Children and Young P,CYP,Private Contractors           ,EGA,19.12.2011,10-04823,2687,Hope Fostering Services Ltd
Nottinghamshire County Council,1111/1001,Children and Young P,CYP,Private Contractors           ,EGA,19.12.2011,10-04824,3009,Hope Fostering Services Ltd
Nottinghamshire County Council,1111/1001,Children and Young P,CYP,Private Contractors           ,EGA,19.12.2011,10-04825,2687,Hope Fostering Services Ltd
Nottinghamshire County Council,1111/1001,Children and Young P,CYP,Private Contractors           ,EGA,19.12.2011,10-04826,2687,Hope Fostering Services Ltd
Nottinghamshire County Council,1111/1001,Children and Young P,CYP,Private Contractors           ,EGA,19.12.2011,10-04827,3009,Hope Fostering Services Ltd
Nottinghamshire County Council,1111/1001,Children and Young P,CYP,Private Contractors           ,EGA,19.12.2011,10-04828,2687,Hope Fostering Services Ltd
Nottinghamshire County Council,1111/1001,Children and Young P,CYP,Private Contractors           ,EGA,19.12.2011,10-04829,3184.5,The National Fostering Agency
Nottinghamshire County Council,1111/1001,Children and Young P,CYP,Private Contractors           ,EGA,19.12.2011,10-04830,6013.41,Jay Fostering
Nottinghamshire County Council,1111/1001,Children and Young P,CYP,Private Contractors           ,EGA,19.12.2011,10-04831,2829,Hope Fostering Services Ltd
Nottinghamshire County Council,1111/1001,Children and Young P,CYP,Private Contractors           ,EGA,19.12.2011,10-04835,13263.66,Direct Care Ltd
Nottinghamshire County Council,1111/1001,Children and Young P,CYP,Private Contractors           ,EGA,19.12.2011,10-04836,1586.84,Lloyds Tsb Commercial Finance
Nottinghamshire County Council,1111/1001,Children and Young P,CYP,Private Contractors           ,EGA,19.12.2011,10-04837,6016.95,Jani Homes
Nottinghamshire County Council,1111/1001,Children and Young P,CYP,Private Contractors           ,EGA,19.12.2011,10-04838,1272,Scope Central Trading
Nottinghamshire County Council,1111/1001,Children and Young P,CYP,Private Contractors           ,EGA,20.12.2011,10-04839,13064.33,Direct Care Ltd
Nottinghamshire County Council,1111/1001,Children and Young P,CYP,Private Contractors           ,EGA,20.12.2011,10-04840,12000,Blue Mountain Homes Ltd
Nottinghamshire County Council,1111/1001,Children and Young P,CYP,Private Contractors           ,EGA,20.12.2011,10-04841,14000,Blue Mountain Homes Ltd
Nottinghamshire County Council,1111/1001,Children and Young P,CYP,Private Contractors           ,EGA,20.12.2011,10-04842,2997,Fostering People Ltd
Nottinghamshire County Council,1111/1001,Children and Young P,CYP,Private Contractors           ,EGA,20.12.2011,10-04843,3165,Fostering People Ltd
Nottinghamshire County Council,1111/1001,Children and Young P,CYP,Private Contractors           ,EGA,20.12.2011,10-04844,3945,Fostering People Ltd
Nottinghamshire County Council,1111/1001,Children and Young P,CYP,Private Contractors           ,EGA,20.12.2011,10-04845,3165,Fostering People Ltd
Nottinghamshire County Council,1111/1001,Children and Young P,CYP,Private Contractors           ,EGA,20.12.2011,10-04847,2997,Fostering People Ltd
Nottinghamshire County Council,1111/1001,Children and Young P,CYP,Private Contractors           ,EGA,20.12.2011,10-04848,3165,Fostering People Ltd
Nottinghamshire County Council,1111/1001,Children and Young P,CYP,Private Contractors           ,EGA,20.12.2011,10-04849,3165,Fostering People Ltd
Nottinghamshire County Council,1111/1001,Children and Young P,CYP,Private Contractors           ,EGA,20.12.2011,10-04850,2847,Fostering People Ltd
Nottinghamshire County Council,1111/1001,Children and Young P,CYP,Private Contractors           ,EGA,20.12.2011,10-04851,42204.4,Scope Central Trading
Nottinghamshire County Council,1111/1001,Children and Young P,CYP,Private Contractors           ,EGA,20.12.2011,10-04852,5503.15,Real Education Ltd
Nottinghamshire County Council,1111/1001,Children and Young P,CYP,Private Contractors           ,EGA,20.12.2011,10-04853,2847,Fostering People Ltd
Nottinghamshire County Council,1111/1001,Children and Young P,CYP,Private Contractors           ,EGA,20.12.2011,10-04854,3165,Fostering People Ltd
Nottinghamshire County Council,1111/1001,Children and Young P,CYP,Private Contractors           ,EGA,20.12.2011,10-04855,3300,Fostering People Ltd
Nottinghamshire County Council,1111/1001,Children and Young P,CYP,Private Contractors           ,EGA,20.12.2011,10-04856,3165,Fostering People Ltd
Nottinghamshire County Council,1111/1001,Children and Young P,CYP,Private Contractors           ,EGA,20.12.2011,10-04857,3165,Fostering People Ltd
Nottinghamshire County Council,1111/1001,Children and Young P,CYP,Private Contractors           ,EGA,20.12.2011,10-04858,3165,Fostering People Ltd
Nottinghamshire County Council,1111/1001,Children and Young P,CYP,Private Contractors           ,EGA,20.12.2011,10-04859,3300,Fostering People Ltd
Nottinghamshire County Council,1111/1001,Children and Young P,CYP,Private Contractors           ,EGA,20.12.2011,10-04860,899.1,Fostering People Ltd
Nottinghamshire County Council,1111/1001,Children and Young P,CYP,Private Contractors           ,EGA,20.12.2011,10-04861,3165,Fostering People Ltd
Nottinghamshire County Council,1111/1001,Children and Young P,CYP,Private Contractors           ,EGA,20.12.2011,10-04862,2997,Fostering People Ltd
Nottinghamshire County Council,1111/1001,Children and Young P,CYP,Private Contractors           ,EGA,20.12.2011,10-04863,3300,Fostering People Ltd
Nottinghamshire County Council,1111/1001,Children and Young P,CYP,Private Contractors           ,EGA,20.12.2011,10-04864,3300,Fostering People Ltd
Nottinghamshire County Council,1111/1001,Children and Young P,CYP,Private Contractors           ,EGA,20.12.2011,10-04865,3165,Fostering People Ltd
Nottinghamshire County Council,1111/1001,Children and Young P,CYP,Private Contractors           ,EGA,20.12.2011,10-04866,3300,Fostering People Ltd
Nottinghamshire County Council,1111/1001,Children and Young P,CYP,Private Contractors           ,EGA,20.12.2011,10-04867,2997,Fostering People Ltd
Nottinghamshire County Council,1111/1001,Children and Young P,CYP,Private Contractors           ,EGA,20.12.2011,10-04868,2997,Fostering People Ltd
Nottinghamshire County Council,1111/1001,Children and Young P,CYP,Private Contractors           ,EGA,20.12.2011,10-04870,2997,Fostering People Ltd
Nottinghamshire County Council,1111/1001,Children and Young P,CYP,Private Contractors           ,EGA,20.12.2011,10-04871,3300,Fostering People Ltd
Nottinghamshire County Council,1111/1001,Children and Young P,CYP,Private Contractors           ,EGA,20.12.2011,10-04872,5867.1,Fostering People Ltd
Nottinghamshire County Council,1111/1001,Children and Young P,CYP,Private Contractors           ,EGA,20.12.2011,10-04896,2847,Fostering People Ltd
Nottinghamshire County Council,1111/1001,Children and Young P,CYP,Private Contractors           ,EGA,20.12.2011,10-04897,3300,Fostering People Ltd
Nottinghamshire County Council,1111/1001,Children and Young P,CYP,Private Contractors           ,EGA,20.12.2011,10-04898,3300,Fostering People Ltd
Nottinghamshire County Council,1111/1001,Children and Young P,CYP,Private Contractors           ,EGA,20.12.2011,10-04899,2997,Fostering People Ltd
Nottinghamshire County Council,1111/1001,Children and Young P,CYP,Private Contractors           ,EGA,20.12.2011,10-04900,3165,Fostering People Ltd
Nottinghamshire County Council,1111/1001,Children and Young P,CYP,Private Contractors           ,EGA,20.12.2011,10-04901,1484,Scope Central Trading
Nottinghamshire County Council,1111/1001,Children and Young P,CYP,Private Contractors           ,EGA,20.12.2011,10-04902,13064.33,Direct Care Ltd
Nottinghamshire County Council,1111/1001,Children and Young P,CYP,Private Contractors           ,EGA,20.12.2011,10-04903,12835.8,Heronridge Homes Ltd
Nottinghamshire County Council,1111/1001,Children and Young P,CYP,Private Contractors           ,EGA,20.12.2011,10-04904,51666.67,Knossington Grange School
Nottinghamshire County Council,1111/1001,Children and Young P,CYP,Private Contractors           ,EGA,20.12.2011,10-04905,2431.33,Lloyds Tsb Commercial Finance
Nottinghamshire County Council,1111/1001,Children and Young P,CYP,Private Contractors           ,EGA,20.12.2011,10-04906,5142.9,Tbr Care Ltd
Nottinghamshire County Council,1111/1001,Children and Young P,CYP,Private Contractors           ,EGA,20.12.2011,10-04907,6000,Tbr Care Ltd
Nottinghamshire County Council,1111/1001,Children and Young P,CYP,Private Contractors           ,EGA,20.12.2011,10-04910,3270.5,Fostering People Ltd
Nottinghamshire County Council,1111/1001,Children and Young P,CYP,Private Contractors           ,EGA,20.12.2011,10-04913,4076.5,Fostering People Ltd
Nottinghamshire County Council,1111/1001,Children and Young P,CYP,Private Contractors           ,EGA,20.12.2011,10-04916,3165,Fostering People Ltd
Nottinghamshire County Council,1111/1001,Children and Young P,CYP,Private Contractors           ,EGA,20.12.2011,10-04920,5100,Stepping Stones
Nottinghamshire County Council,1111/1001,Children and Young P,CYP,Private Contractors           ,EGA,20.12.2011,10-04921,1586.84,Stepping Stones
Nottinghamshire County Council,1111/1001,Children and Young P,CYP,Private Contractors           ,EGA,20.12.2011,10-04922,1286.96,Stepping Stones
Nottinghamshire County Council,1111/1001,Children and Young P,CYP,Private Contractors           ,EGA,20.12.2011,10-04923,2166.86,Stepping Stones
Nottinghamshire County Council,1111/1001,Children and Young P,CYP,Private Contractors           ,EGA,20.12.2011,10-04924,1586.84,Stepping Stones
Nottinghamshire County Council,1111/1001,Children and Young P,CYP,Private Contractors           ,EGA,20.12.2011,10-04928,3424.2,Fosterplus Ltd
Nottinghamshire County Council,1111/1001,Children and Young P,CYP,Private Contractors           ,EGA,20.12.2011,10-04972,3625.8,Fosterplus Ltd
Nottinghamshire County Council,1111/1001,Children and Young P,CYP,Private Contractors           ,EGA,20.12.2011,10-04973,1440,Northamptonshire County Council
Nottinghamshire County Council,1111/1001,Children and Young P,CYP,Private Contractors           ,EGA,20.12.2011,10-04975,3165,Fostering People Ltd
Nottinghamshire County Council,1111/1001,Children and Young P,CYP,Private Contractors           ,EGA,20.12.2011,10-04977,4208.25,Foster Care Associates Ltd
Nottinghamshire County Council,1111/1001,Children and Young P,CYP,Private Contractors           ,EGA,20.12.2011,10-04978,4072.5,Foster Care Associates Ltd
Nottinghamshire County Council,1111/1001,Children and Young P,CYP,Private Contractors           ,EGA,20.12.2011,10-04979,829.5,Foster Care Associates Ltd
Nottinghamshire County Council,1111/1001,Children and Young P,CYP,Private Contractors           ,EGA,20.12.2011,10-04980,1485,Northamptonshire County Council
Nottinghamshire County Council,1111/1001,Children and Young P,CYP,Private Contractors           ,EGA,20.12.2011,10-04981,3165,Fostering People Ltd
Nottinghamshire County Council,1111/1001,Children and Young P,CYP,Private Contractors           ,EGA,20.12.2011,10-04982,3294,Jay Fostering
Nottinghamshire County Council,1111/1001,Children and Young P,CYP,Private Contractors           ,EGA,20.12.2011,10-04984,3467.1,Jay Fostering
Nottinghamshire County Council,1111/1001,Children and Young P,CYP,Private Contractors           ,EGA,20.12.2011,10-04985,3077.1,Jay Fostering
Nottinghamshire County Council,1111/1001,Children and Young P,CYP,Private Contractors           ,EGA,20.12.2011,10-04987,2922,Compass Services For Children Ltd
Nottinghamshire County Council,1111/1001,Children and Young P,CYP,Private Contractors           ,EGA,20.12.2011,10-04988,3000,Compass Services For Children Ltd
Nottinghamshire County Council,1111/1001,Children and Young P,CYP,Private Contractors           ,EGA,20.12.2011,10-04989,3786.43,By The Bridge
Nottinghamshire County Council,1111/1001,Children and Young P,CYP,Private Contractors           ,EGA,20.12.2011,10-04990,3184.5,The National Fostering Agency
Nottinghamshire County Council,1111/1001,Children and Young P,CYP,Private Contractors           ,EGA,20.12.2011,10-04992,6107.1,Jay Fostering
Nottinghamshire County Council,1111/1001,Children and Young P,CYP,Private Contractors           ,EGA,20.12.2011,10-05844,10664,The West Bridgford Equestrian Centr
Nottinghamshire County Council,1111/1001,Children and Young P,CYP,Private Contractors           ,EGA,21.12.2011,10-05024,6310.67,Jay Fostering
Nottinghamshire County Council,1111/1001,Children and Young P,CYP,Private Contractors           ,EGA,21.12.2011,10-05025,3403.8,Jay Fostering
Nottinghamshire County Council,1111/1001,Children and Young P,CYP,Private Contractors           ,EGA,21.12.2011,10-05027,3179.67,Jay Fostering
Nottinghamshire County Council,1111/1001,Children and Young P,CYP,Private Contractors           ,EGA,21.12.2011,10-05028,3582.67,Jay Fostering
Nottinghamshire County Council,1111/1001,Children and Young P,CYP,Private Contractors           ,EGA,21.12.2011,10-05029,1015.2,Fostering People Ltd
Nottinghamshire County Council,1111/1001,Children and Young P,CYP,Private Contractors           ,EGA,21.12.2011,10-05030,2840.75,Fostering Solutions Ltd
Nottinghamshire County Council,1111/1001,Children and Young P,CYP,Private Contractors           ,EGA,21.12.2011,10-05031,3376.74,Fostering Solutions Ltd
Nottinghamshire County Council,1111/1001,Children and Young P,CYP,Private Contractors           ,EGA,21.12.2011,10-05034,3554.46,Fostering Solutions Ltd
Nottinghamshire County Council,1111/1001,Children and Young P,CYP,Private Contractors           ,EGA,21.12.2011,10-05035,3554.46,Fostering Solutions Ltd
Nottinghamshire County Council,1111/1001,Children and Young P,CYP,Private Contractors           ,EGA,21.12.2011,10-05036,3376.74,Fostering Solutions Ltd
Nottinghamshire County Council,1111/1001,Children and Young P,CYP,Private Contractors           ,EGA,21.12.2011,10-05037,3554.46,Fostering Solutions Ltd
Nottinghamshire County Council,1111/1001,Children and Young P,CYP,Private Contractors           ,EGA,21.12.2011,10-05040,3554.46,Fostering Solutions Ltd
Nottinghamshire County Council,1111/1001,Children and Young P,CYP,Private Contractors           ,EGA,21.12.2011,10-05041,3554.46,Fostering Solutions Ltd
Nottinghamshire County Council,1111/1001,Children and Young P,CYP,Private Contractors           ,EGA,21.12.2011,10-05042,17207,Wings Education Ltd
Nottinghamshire County Council,1111/1001,Children and Young P,CYP,Private Contractors           ,EGA,21.12.2011,10-05043,36883,Wings Education Ltd
Nottinghamshire County Council,1111/1001,Children and Young P,CYP,Private Contractors           ,EGA,21.12.2011,10-05053,5508.9,The National Fostering Agency
Nottinghamshire County Council,1111/1001,Children and Young P,CYP,Private Contractors           ,EGA,21.12.2011,10-05054,3985.71,By The Bridge
Nottinghamshire County Council,1111/1001,Children and Young P,CYP,Private Contractors           ,EGA,21.12.2011,10-05087,1583.4,Treetops Nursery
Nottinghamshire County Council,1111/1001,Children and Young P,CYP,Private Contractors           ,EGA,21.12.2011,10-05088,1222.2,Pre School Learning Alliance (DUPLI
Nottinghamshire County Council,1111/1001,Children and Young P,CYP,Private Contractors           ,EGA,21.12.2011,10-05089,3164.7,Greasley Beauvale Chicdcare Centre
Nottinghamshire County Council,1111/1001,Children and Young P,CYP,Private Contractors           ,EGA,21.12.2011,10-05090,1093.26,Tiny Teddies Day Nursery
Nottinghamshire County Council,1111/1001,Children and Young P,CYP,Private Contractors           ,EGA,21.12.2011,10-05091,1150.8,Valmarys Childrens Centre 2
Nottinghamshire County Council,1111/1001,Children and Young P,CYP,Private Contractors           ,EGA,21.12.2011,10-05092,2368.73,Daisies Day Nursery
Nottinghamshire County Council,1111/1001,Children and Young P,CYP,Private Contractors           ,EGA,21.12.2011,10-05094,623.35,Appleton Day Nursery
Nottinghamshire County Council,1111/1001,Children and Young P,CYP,Private Contractors           ,EGA,22.12.2011,10-05052,10628.57,Northerncare
Nottinghamshire County Council,1111/1001,Children and Young P,CYP,Private Contractors           ,EGA,22.12.2011,10-05055,10628.57,Northerncare
Nottinghamshire County Council,1111/1001,Children and Young P,CYP,Private Contractors           ,EGA,22.12.2011,10-05086,1662.57,Burton Joyce Wraparound Care Group
Nottinghamshire County Council,1111/1001,Children and Young P,CYP,Private Contractors           ,EGA,22.12.2011,10-05093,575.4,Toddlers University (Bee)
Nottinghamshire County Council,1111/1001,Children and Young P,CYP,Private Contractors           ,EGA,22.12.2011,10-05159,1003.95,Papermoon Day Nursery
Nottinghamshire County Council,1111/1001,Children and Young P,CYP,Private Contractors           ,EGA,22.12.2011,10-05160,611.1,Good Foundations Day Nursery
Nottinghamshire County Council,1111/1001,Children and Young P,CYP,Private Contractors           ,EGA,22.12.2011,10-05161,611.1,New Woods Childcare Centre
Nottinghamshire County Council,1111/1001,Children and Young P,CYP,Private Contractors           ,EGA,22.12.2011,10-05162,1207.65,Wollaton Village Day Nurseries Ltd.
Nottinghamshire County Council,1111/1001,Children and Young P,CYP,Private Contractors           ,EGA,22.12.2011,10-05163,814.8,Prospect Playgroup
Nottinghamshire County Council,1111/1001,Children and Young P,CYP,Private Contractors           ,EGA,22.12.2011,10-05164,2473.5,Newstead Children'S Centre
Nottinghamshire County Council,1111/1001,Children and Young P,CYP,Private Contractors           ,EGA,22.12.2011,10-05165,679,Rainbow Day Nursery
Nottinghamshire County Council,1111/1001,Children and Young P,CYP,Private Contractors           ,EGA,22.12.2011,10-05166,2667.5,Shaping Futures Ltd
Nottinghamshire County Council,1111/1001,Children and Young P,CYP,Private Contractors           ,EGA,22.12.2011,10-05167,1222.2,Rocking Horse Nursery Butlers Hill
Nottinghamshire County Council,1111/1001,Children and Young P,CYP,Private Contractors           ,EGA,22.12.2011,10-05169,611.1,Arnbrook Primary School
Nottinghamshire County Council,1111/1001,Children and Young P,CYP,Private Contractors           ,EGA,22.12.2011,10-05170,679,A Wall
Nottinghamshire County Council,1111/1001,Children and Young P,CYP,Private Contractors           ,EGA,23.12.2011,10-05101,970,Mansfield Childrens Community
Nottinghamshire County Council,1111/1001,Children and Young P,CYP,Private Contractors           ,EGA,23.12.2011,10-05158,1290.1,Little Oaks Nursery
Nottinghamshire County Council,1111/1001,Children and Young P,CYP,Private Contractors           ,EGA,23.12.2011,10-05364,2914.31,Heronridge Homes Ltd
Nottinghamshire County Council,1111/1001,Children and Young P,CYP,Private Contractors           ,EGA,23.12.2011,10-05365,11978.7,Heronridge Homes Ltd
Nottinghamshire County Council,1111/1001,Children and Young P,CYP,Private Contractors           ,EGA,23.12.2011,10-05366,2524.29,By The Bridge
Nottinghamshire County Council,1111/1001,Children and Young P,CYP,Private Contractors           ,EGA,28.12.2011,10-04873,3258,Foster Care Associates Ltd
Nottinghamshire County Council,1111/1001,Children and Young P,CYP,Private Contractors           ,EGA,28.12.2011,10-04874,3192.9,Foster Care Associates Ltd
Nottinghamshire County Council,1111/1001,Children and Young P,CYP,Private Contractors           ,EGA,28.12.2011,10-04875,3225.3,Foster Care Associates Ltd
Nottinghamshire County Council,1111/1001,Children and Young P,CYP,Private Contractors           ,EGA,28.12.2011,10-04876,3388.5,Foster Care Associates Ltd
Nottinghamshire County Council,1111/1001,Children and Young P,CYP,Private Contractors           ,EGA,28.12.2011,10-04877,3423,Foster Care Associates Ltd
Nottinghamshire County Council,1111/1001,Children and Young P,CYP,Private Contractors           ,EGA,28.12.2011,10-04878,2981.1,Foster Care Associates Ltd
Nottinghamshire County Council,1111/1001,Children and Young P,CYP,Private Contractors           ,EGA,28.12.2011,10-04879,4031.7,Foster Care Associates Ltd
Nottinghamshire County Council,1111/1001,Children and Young P,CYP,Private Contractors           ,EGA,28.12.2011,10-04880,3423,Foster Care Associates Ltd
Nottinghamshire County Council,1111/1001,Children and Young P,CYP,Private Contractors           ,EGA,28.12.2011,10-04881,4072.5,Foster Care Associates Ltd
Nottinghamshire County Council,1111/1001,Children and Young P,CYP,Private Contractors           ,EGA,28.12.2011,10-04882,3011.4,Foster Care Associates Ltd
Nottinghamshire County Council,1111/1001,Children and Young P,CYP,Private Contractors           ,EGA,28.12.2011,10-04883,4072.5,Foster Care Associates Ltd
Nottinghamshire County Council,1111/1001,Children and Young P,CYP,Private Contractors           ,EGA,28.12.2011,10-04884,3942.6,Foster Care Associates Ltd
Nottinghamshire County Council,1111/1001,Children and Young P,CYP,Private Contractors           ,EGA,28.12.2011,10-04885,4072.5,Foster Care Associates Ltd
Nottinghamshire County Council,1111/1001,Children and Young P,CYP,Private Contractors           ,EGA,28.12.2011,10-04886,3258,Foster Care Associates Ltd
Nottinghamshire County Council,1111/1001,Children and Young P,CYP,Private Contractors           ,EGA,28.12.2011,10-04887,3011.4,Foster Care Associates Ltd
Nottinghamshire County Council,1111/1001,Children and Young P,CYP,Private Contractors           ,EGA,28.12.2011,10-04888,3225.3,Foster Care Associates Ltd
Nottinghamshire County Council,1111/1001,Children and Young P,CYP,Private Contractors           ,EGA,28.12.2011,10-04890,3225.3,Foster Care Associates Ltd
Nottinghamshire County Council,1111/1001,Children and Young P,CYP,Private Contractors           ,EGA,28.12.2011,10-04891,3990.9,Foster Care Associates Ltd
Nottinghamshire County Council,1111/1001,Children and Young P,CYP,Private Contractors           ,EGA,28.12.2011,10-04892,4072.5,Foster Care Associates Ltd
Nottinghamshire County Council,1111/1001,Children and Young P,CYP,Private Contractors           ,EGA,28.12.2011,10-04893,4072.5,Foster Care Associates Ltd
Nottinghamshire County Council,1111/1001,Children and Young P,CYP,Private Contractors           ,EGA,28.12.2011,10-04894,3225.3,Foster Care Associates Ltd
Nottinghamshire County Council,1111/1001,Children and Young P,CYP,Private Contractors           ,EGA,28.12.2011,10-04895,3011.4,Foster Care Associates Ltd
Nottinghamshire County Council,1111/1001,Children and Young P,CYP,Private Contractors           ,EGA,28.12.2011,10-04911,4072.5,Foster Care Associates Ltd
Nottinghamshire County Council,1111/1001,Children and Young P,CYP,Private Contractors           ,EGA,28.12.2011,10-04912,3354.3,Foster Care Associates Ltd
Nottinghamshire County Council,1111/1001,Children and Young P,CYP,Private Contractors           ,EGA,28.12.2011,10-04925,2490,Foster Care Associates Ltd
Nottinghamshire County Council,1111/1001,Children and Young P,CYP,Private Contractors           ,EGA,28.12.2011,10-04974,5880,Foster Care Associates Ltd
Nottinghamshire County Council,1111/1001,Children and Young P,CYP,Private Contractors           ,EGA,28.12.2011,10-04986,517.5,Quayside Care Ltd
Nottinghamshire County Council,1111/1001,Children and Young P,CYP,Private Contractors           ,EGA,28.12.2011,10-04991,3728.4,Foster Care Associates Ltd
Nottinghamshire County Council,1111/1001,Children and Young P,CYP,Private Contractors           ,EGA,28.12.2011,10-05039,3388.5,Foster Care Associates Ltd
Nottinghamshire County Council,1111/1001,Children and Young P,CYP,Private Contractors           ,EGA,28.12.2011,10-05430,7837.83,Leoschildrens Nurseries Ltd
Nottinghamshire County Council,1111/1001,Children and Young P,CYP,Private Contractors           ,EGA,28.12.2011,10-05431,10740.73,Alphabet House Day Nursery
Nottinghamshire County Council,1111/1001,Children and Young P,CYP,Private Contractors           ,EGA,28.12.2011,10-05432,10958.45,Alphabet House Nursery
Nottinghamshire County Council,1111/1001,Children and Young P,CYP,Private Contractors           ,EGA,28.12.2011,10-05433,26648.62,Applegarth Day Nursery
Nottinghamshire County Council,1111/1001,Children and Young P,CYP,Private Contractors           ,EGA,28.12.2011,10-05434,2533.44,Appleton Day Nursery
Nottinghamshire County Council,1111/1001,Children and Young P,CYP,Private Contractors           ,EGA,28.12.2011,10-05435,8273.27,Arnold House Day Nursery
Nottinghamshire County Council,1111/1001,Children and Young P,CYP,Private Contractors           ,EGA,28.12.2011,10-05436,3396.39,Balderton Village Day Nursery
Nottinghamshire County Council,1111/1001,Children and Young P,CYP,Private Contractors           ,EGA,28.12.2011,10-05437,7315.31,Beacon Hill Day Nursery
Nottinghamshire County Council,1111/1001,Children and Young P,CYP,Private Contractors           ,EGA,28.12.2011,10-05438,15675.66,Brookhill House Day Nursery
Nottinghamshire County Council,1111/1001,Children and Young P,CYP,Private Contractors           ,EGA,28.12.2011,10-05439,8708.7,Brooklyn Day Nursery
Nottinghamshire County Council,1111/1001,Children and Young P,CYP,Private Contractors           ,EGA,28.12.2011,10-05440,3120.62,Bumble Bee Children'S Day Nursery
Nottinghamshire County Council,1111/1001,Children and Young P,CYP,Private Contractors           ,EGA,28.12.2011,10-05441,14978.96,Busy Bees (Daybrook)
Nottinghamshire County Council,1111/1001,Children and Young P,CYP,Private Contractors           ,EGA,28.12.2011,10-05442,3556.05,Cherubs Day Nursey Newark
Nottinghamshire County Council,1111/1001,Children and Young P,CYP,Private Contractors           ,EGA,28.12.2011,10-05443,6981.47,Breedon House Nursery
Nottinghamshire County Council,1111/1001,Children and Young P,CYP,Private Contractors           ,EGA,28.12.2011,10-05447,20015.5,Benjamins-Breedon House Childrens
Nottinghamshire County Council,1111/1001,Children and Young P,CYP,Private Contractors           ,EGA,28.12.2011,10-05448,12888.88,Childrens Corner Day Nursery
Nottinghamshire County Council,1111/1001,Children and Young P,CYP,Private Contractors           ,EGA,28.12.2011,10-05449,3120.62,Children 1st @ Breedon House
Nottinghamshire County Council,1111/1001,Children and Young P,CYP,Private Contractors           ,EGA,28.12.2011,10-05450,10160.15,Children's House Nursery School
Nottinghamshire County Council,1111/1001,Children and Young P,CYP,Private Contractors           ,EGA,28.12.2011,10-05451,9927.92,Church House Day Nursery
Nottinghamshire County Council,1111/1001,Children and Young P,CYP,Private Contractors           ,EGA,28.12.2011,10-05452,4702.7,Claremont House Nursery School
Nottinghamshire County Council,1111/1001,Children and Young P,CYP,Private Contractors           ,EGA,28.12.2011,10-05453,3410.91,Benner & Bolton Childminders
Nottinghamshire County Council,1111/1001,Children and Young P,CYP,Private Contractors           ,EGA,28.12.2011,10-05454,5533.98,Daisies Day Nursery
Nottinghamshire County Council,1111/1001,Children and Young P,CYP,Private Contractors           ,EGA,28.12.2011,10-05455,13585.57,Daisies Day Nursery
Nottinghamshire County Council,1111/1001,Children and Young P,CYP,Private Contractors           ,EGA,28.12.2011,10-05456,9666.66,Discovery Day Nursery
Nottinghamshire County Council,1111/1001,Children and Young P,CYP,Private Contractors           ,EGA,28.12.2011,10-05457,6357.35,North Notts College
Nottinghamshire County Council,1111/1001,Children and Young P,CYP,Private Contractors           ,EGA,28.12.2011,10-05458,26387.36,East Leake Day Nursery & Pre-School
Nottinghamshire County Council,1111/1001,Children and Young P,CYP,Private Contractors           ,EGA,28.12.2011,10-05459,16198.18,Edwalton Day Nursery
Nottinghamshire County Council,1111/1001,Children and Young P,CYP,Private Contractors           ,EGA,28.12.2011,10-05460,19246.23,Fernwood Day Nursery
Nottinghamshire County Council,1111/1001,Children and Young P,CYP,Private Contractors           ,EGA,28.12.2011,10-05461,8012,First Steps @ Roko
Nottinghamshire County Council,1111/1001,Children and Young P,CYP,Private Contractors           ,EGA,28.12.2011,10-05462,13135.62,Good Foundations Day Nursery
Nottinghamshire County Council,1111/1001,Children and Young P,CYP,Private Contractors           ,EGA,28.12.2011,10-05463,15762.75,Granby House Nursery
Nottinghamshire County Council,1111/1001,Children and Young P,CYP,Private Contractors           ,EGA,28.12.2011,10-05464,13135.62,Hickory House Day Nursery
Nottinghamshire County Council,1111/1001,Children and Young P,CYP,Private Contractors           ,EGA,28.12.2011,10-05465,7184.68,Hollies  Day Nurseries Limited
Nottinghamshire County Council,1111/1001,Children and Young P,CYP,Private Contractors           ,EGA,28.12.2011,10-05466,4528.52,Quinton Day Nurseries T/A Honey Bee
Nottinghamshire County Council,1111/1001,Children and Young P,CYP,Private Contractors           ,EGA,28.12.2011,10-05467,4354.35,Honey Pot Day Private Day Nursery L
Nottinghamshire County Council,1111/1001,Children and Young P,CYP,Private Contractors           ,EGA,28.12.2011,10-05468,10450.44,Huthwaite Children'S Centre
Nottinghamshire County Council,1111/1001,Children and Young P,CYP,Private Contractors           ,EGA,28.12.2011,10-05469,1741.74,Kidzgrove
Nottinghamshire County Council,1111/1001,Children and Young P,CYP,Private Contractors           ,EGA,28.12.2011,10-05470,6821.82,Lambley Day Nursery Ltd
Nottinghamshire County Council,1111/1001,Children and Young P,CYP,Private Contractors           ,EGA,28.12.2011,10-05471,14108.09,Learning Ladder Childcare Ltd
Nottinghamshire County Council,1111/1001,Children and Young P,CYP,Private Contractors           ,EGA,28.12.2011,10-05472,12453.44,Leo's Childrens Nurseries Ltd
Nottinghamshire County Council,1111/1001,Children and Young P,CYP,Private Contractors           ,EGA,28.12.2011,10-05473,13498.49,Little Bears Day Nursery
Nottinghamshire County Council,1111/1001,Children and Young P,CYP,Private Contractors           ,EGA,28.12.2011,10-05474,5225.22,Little Champs Pre-School & Day Nurs
Nottinghamshire County Council,1111/1001,Children and Young P,CYP,Private Contractors           ,EGA,28.12.2011,10-05475,11901.89,Little Millers Day Nursery
Nottinghamshire County Council,1111/1001,Children and Young P,CYP,Private Contractors           ,EGA,28.12.2011,10-05476,23440.92,Little Oaks Nursery
Nottinghamshire County Council,1111/1001,Children and Young P,CYP,Private Contractors           ,EGA,28.12.2011,10-05477,15965.95,Longdale Nursery School
Nottinghamshire County Council,1111/1001,Children and Young P,CYP,Private Contractors           ,EGA,28.12.2011,10-05478,4789.79,Mansfield Childrens Community
Nottinghamshire County Council,1111/1001,Children and Young P,CYP,Private Contractors           ,EGA,28.12.2011,10-05479,13063.05,Millfield Nursery School
Nottinghamshire County Council,1111/1001,Children and Young P,CYP,Private Contractors           ,EGA,28.12.2011,10-05480,1306.31,Mulberry Bush Day Nursery
Nottinghamshire County Council,1111/1001,Children and Young P,CYP,Private Contractors           ,EGA,28.12.2011,10-05481,3483.48,Nottingham Montessori School
Nottinghamshire County Council,1111/1001,Children and Young P,CYP,Private Contractors           ,EGA,28.12.2011,10-05483,3135.13,Old Cooperative Day Nursery
Nottinghamshire County Council,1111/1001,Children and Young P,CYP,Private Contractors           ,EGA,28.12.2011,10-05484,3744.74,Old Station Nursery
Nottinghamshire County Council,1111/1001,Children and Young P,CYP,Private Contractors           ,EGA,28.12.2011,10-05485,19420.4,The Orchard Day Nursery
Nottinghamshire County Council,1111/1001,Children and Young P,CYP,Private Contractors           ,EGA,28.12.2011,10-05486,7112.11,Orchard School Nursery
Nottinghamshire County Council,1111/1001,Children and Young P,CYP,Private Contractors           ,EGA,28.12.2011,10-05487,10740.73,Papermoon Day Nursery
Nottinghamshire County Council,1111/1001,Children and Young P,CYP,Private Contractors           ,EGA,28.12.2011,10-05488,9579.57,Papermoon Day Nursery
Nottinghamshire County Council,1111/1001,Children and Young P,CYP,Private Contractors           ,EGA,28.12.2011,10-05489,20320.3,Papermoon Day Nursery
Nottinghamshire County Council,1111/1001,Children and Young P,CYP,Private Contractors           ,EGA,28.12.2011,10-05490,28593.57,Papermoon Day Nursery Sutton In Ash
Nottinghamshire County Council,1111/1001,Children and Young P,CYP,Private Contractors           ,EGA,28.12.2011,10-05491,5442.94,Pea Pod Day Nursery Ltd
Nottinghamshire County Council,1111/1001,Children and Young P,CYP,Private Contractors           ,EGA,28.12.2011,10-05492,3483.48,Pretty Windows Ltd
Nottinghamshire County Council,1111/1001,Children and Young P,CYP,Private Contractors           ,EGA,28.12.2011,10-05495,5878.37,Radcliffe On Trent Day Nursery
Nottinghamshire County Council,1111/1001,Children and Young P,CYP,Private Contractors           ,EGA,28.12.2011,10-05496,4789.79,Rainbow Day Nursery
Nottinghamshire County Council,1111/1001,Children and Young P,CYP,Private Contractors           ,EGA,28.12.2011,10-05497,3193.19,Rainbows Day Nursery
Nottinghamshire County Council,1111/1001,Children and Young P,CYP,Private Contractors           ,EGA,28.12.2011,10-05498,10305.3,Ranskill Nursery
Nottinghamshire County Council,1111/1001,Children and Young P,CYP,Private Contractors           ,EGA,28.12.2011,10-05499,12047.04,Ruddington Nursery And Pre-School
Nottinghamshire County Council,1111/1001,Children and Young P,CYP,Private Contractors           ,EGA,28.12.2011,10-05500,12047.04,Scotts Wood Private Day Nursery
Nottinghamshire County Council,1111/1001,Children and Young P,CYP,Private Contractors           ,EGA,28.12.2011,10-05501,8781.27,Scottswood Pdn Ltd
Nottinghamshire County Council,1111/1001,Children and Young P,CYP,Private Contractors           ,EGA,28.12.2011,10-05502,3918.92,Serendipitys Day Nursery & Pre Scho
Nottinghamshire County Council,1111/1001,Children and Young P,CYP,Private Contractors           ,EGA,28.12.2011,10-05503,15762.75,Serendipity's Day Nursery & Pre-Sch
Nottinghamshire County Council,1111/1001,Children and Young P,CYP,Private Contractors           ,EGA,28.12.2011,10-05504,6723.8,Serendipitys Day Nursery & Pre-Scho
Nottinghamshire County Council,1111/1001,Children and Young P,CYP,Private Contractors           ,EGA,28.12.2011,10-05505,6531.53,Serendipitys Day Nursery Cotgrave
Nottinghamshire County Council,1111/1001,Children and Young P,CYP,Private Contractors           ,EGA,28.12.2011,10-05506,4093.09,Shaping Futures Ltd
Nottinghamshire County Council,1111/1001,Children and Young P,CYP,Private Contractors           ,EGA,28.12.2011,10-05507,3483.48,Shaping Futures Ltd
Nottinghamshire County Council,1111/1001,Children and Young P,CYP,Private Contractors           ,EGA,28.12.2011,10-05508,5660.66,Shaping Futures Oakham Day Nursery
Nottinghamshire County Council,1111/1001,Children and Young P,CYP,Private Contractors           ,EGA,28.12.2011,10-05509,7910.4,Smarties Private Day Nursery
Nottinghamshire County Council,1111/1001,Children and Young P,CYP,Private Contractors           ,EGA,28.12.2011,10-05510,8835.37,South Nottingham College Nursery
Nottinghamshire County Council,1111/1001,Children and Young P,CYP,Private Contractors           ,EGA,28.12.2011,10-05511,4006,Stapleford Day Nursery
Nottinghamshire County Council,1111/1001,Children and Young P,CYP,Private Contractors           ,EGA,28.12.2011,10-05512,10087.58,Staunton Nursery School
Nottinghamshire County Council,1111/1001,Children and Young P,CYP,Private Contractors           ,EGA,28.12.2011,10-05513,2612.61,Sunny Days Nursery
Nottinghamshire County Council,1111/1001,Children and Young P,CYP,Private Contractors           ,EGA,28.12.2011,10-05514,7112.11,The Grange Nursery Ltd
Nottinghamshire County Council,1111/1001,Children and Young P,CYP,Private Contractors           ,EGA,28.12.2011,10-05515,5660.66,The Learning Tree Day Nursery 2
Nottinghamshire County Council,1111/1001,Children and Young P,CYP,Private Contractors           ,EGA,28.12.2011,10-05516,20900.88,The Rocking Horse Child Car Centres
Nottinghamshire County Council,1111/1001,Children and Young P,CYP,Private Contractors           ,EGA,28.12.2011,10-05517,4702.7,Treetops Nursery (Clipstone)
Nottinghamshire County Council,1111/1001,Children and Young P,CYP,Private Contractors           ,EGA,28.12.2011,10-05518,6879.87,Treetops Nursery
Nottinghamshire County Council,1111/1001,Children and Young P,CYP,Private Contractors           ,EGA,28.12.2011,10-05524,20030.01,Village Day Nursery
Nottinghamshire County Council,1111/1001,Children and Young P,CYP,Private Contractors           ,EGA,28.12.2011,10-05525,12047.04,West Bridgford Out Of School Care L
Nottinghamshire County Council,1111/1001,Children and Young P,CYP,Private Contractors           ,EGA,28.12.2011,10-05527,21336.32,Whitehouse Day Nursery
Nottinghamshire County Council,1111/1001,Children and Young P,CYP,Private Contractors           ,EGA,28.12.2011,10-05528,15501.49,Wishing Well Day Nursery
Nottinghamshire County Council,1111/1001,Children and Young P,CYP,Private Contractors           ,EGA,28.12.2011,10-05529,9579.57,Wollaton Village Day Nurseries Limi
Nottinghamshire County Council,1111/1001,Children and Young P,CYP,Private Contractors           ,EGA,28.12.2011,10-05530,10711.7,Wollaton Village Day Nurseries Ltd.
Nottinghamshire County Council,1111/1001,Children and Young P,CYP,Private Contractors           ,EGA,28.12.2011,10-05531,15385.37,Woodthorpe Day Nursery Ltd
Nottinghamshire County Council,1111/1001,Children and Young P,CYP,Private Contractors           ,EGA,28.12.2011,10-05534,16546.53,Pre School Learning Alliance (DUPLI
Nottinghamshire County Council,1111/1001,Children and Young P,CYP,Private Contractors           ,EGA,28.12.2011,10-05535,2975.47,Arnold St Mary'S Pre-School
Nottinghamshire County Council,1111/1001,Children and Young P,CYP,Private Contractors           ,EGA,28.12.2011,10-05536,6241.24,Burnside Hall Playgroup
Nottinghamshire County Council,1111/1001,Children and Young P,CYP,Private Contractors           ,EGA,28.12.2011,10-05537,5464.2,16 Plus
Nottinghamshire County Council,1111/1001,Children and Young P,CYP,Private Contractors           ,EGA,28.12.2011,10-05538,2220.72,Busy Bees Pre-School
Nottinghamshire County Council,1111/1001,Children and Young P,CYP,Private Contractors           ,EGA,28.12.2011,10-05539,2820,Compass Services For Children Ltd
Nottinghamshire County Council,1111/1001,Children and Young P,CYP,Private Contractors           ,EGA,28.12.2011,10-05540,2970,Compass Services For Children Ltd
Nottinghamshire County Council,1111/1001,Children and Young P,CYP,Private Contractors           ,EGA,28.12.2011,10-05541,2250,Compass Services For Children Ltd
Nottinghamshire County Council,1111/1001,Children and Young P,CYP,Private Contractors           ,EGA,28.12.2011,10-05542,870.87,Catherine Sansone
Nottinghamshire County Council,1111/1001,Children and Young P,CYP,Private Contractors           ,EGA,28.12.2011,10-05543,2716,Compass Services For Children Ltd
Nottinghamshire County Council,1111/1001,Children and Young P,CYP,Private Contractors           ,EGA,28.12.2011,10-05544,2619,Compass Services For Children Ltd
Nottinghamshire County Council,1111/1001,Children and Young P,CYP,Private Contractors           ,EGA,28.12.2011,10-05545,3049.2,The National Fostering Agency
Nottinghamshire County Council,1111/1001,Children and Young P,CYP,Private Contractors           ,EGA,28.12.2011,10-05546,3049.2,The National Fostering Agency
Nottinghamshire County Council,1111/1001,Children and Young P,CYP,Private Contractors           ,EGA,28.12.2011,10-05547,2950.8,The National Fostering Agency
Nottinghamshire County Council,1111/1001,Children and Young P,CYP,Private Contractors           ,EGA,28.12.2011,10-05548,3184.5,The National Fostering Agency
Nottinghamshire County Council,1111/1001,Children and Young P,CYP,Private Contractors           ,EGA,28.12.2011,10-05549,3081.9,The National Fostering Agency
Nottinghamshire County Council,1111/1001,Children and Young P,CYP,Private Contractors           ,EGA,28.12.2011,10-05550,957.96,Carousel Under 5'S Playgroup
Nottinghamshire County Council,1111/1001,Children and Young P,CYP,Private Contractors           ,EGA,28.12.2011,10-05551,3159,The National Fostering Agency
Nottinghamshire County Council,1111/1001,Children and Young P,CYP,Private Contractors           ,EGA,28.12.2011,10-05552,3159,The National Fostering Agency
Nottinghamshire County Council,1111/1001,Children and Young P,CYP,Private Contractors           ,EGA,28.12.2011,10-05553,3369.6,The National Fostering Agency
Nottinghamshire County Council,1111/1001,Children and Young P,CYP,Private Contractors           ,EGA,28.12.2011,10-05554,4189.22,16 Plus
Nottinghamshire County Council,1111/1001,Children and Young P,CYP,Private Contractors           ,EGA,28.12.2011,10-05555,3264.3,The National Fostering Agency
Nottinghamshire County Council,1111/1001,Children and Young P,CYP,Private Contractors           ,EGA,28.12.2011,10-05556,3049.2,The National Fostering Agency
Nottinghamshire County Council,1111/1001,Children and Young P,CYP,Private Contractors           ,EGA,28.12.2011,10-05557,3048.05,Colston Bassett Preparatory School
Nottinghamshire County Council,1111/1001,Children and Young P,CYP,Private Contractors           ,EGA,28.12.2011,10-05558,3184.5,The National Fostering Agency
Nottinghamshire County Council,1111/1001,Children and Young P,CYP,Private Contractors           ,EGA,28.12.2011,10-05559,3369.6,The National Fostering Agency
Nottinghamshire County Council,1111/1001,Children and Young P,CYP,Private Contractors           ,EGA,28.12.2011,10-05560,7315.31,Colwick Pre School Playgroup
Nottinghamshire County Council,1111/1001,Children and Young P,CYP,Private Contractors           ,EGA,28.12.2011,10-05561,3287.4,The National Fostering Agency
Nottinghamshire County Council,1111/1001,Children and Young P,CYP,Private Contractors           ,EGA,28.12.2011,10-05562,3147.3,The National Fostering Agency
Nottinghamshire County Council,1111/1001,Children and Young P,CYP,Private Contractors           ,EGA,28.12.2011,10-05563,3264.3,The National Fostering Agency
Nottinghamshire County Council,1111/1001,Children and Young P,CYP,Private Contractors           ,EGA,28.12.2011,10-05564,3287.4,The National Fostering Agency
Nottinghamshire County Council,1111/1001,Children and Young P,CYP,Private Contractors           ,EGA,28.12.2011,10-05565,561.6,The National Fostering Agency
Nottinghamshire County Council,1111/1001,Children and Young P,CYP,Private Contractors           ,EGA,28.12.2011,10-05566,6444.44,Elston Playgroup Newark
Nottinghamshire County Council,1111/1001,Children and Young P,CYP,Private Contractors           ,EGA,28.12.2011,10-05567,3264.3,The National Fostering Agency
Nottinghamshire County Council,1111/1001,Children and Young P,CYP,Private Contractors           ,EGA,28.12.2011,10-05568,12975.96,Farnsfield Pre-School
Nottinghamshire County Council,1111/1001,Children and Young P,CYP,Private Contractors           ,EGA,28.12.2011,10-05569,6611.79,Heronridge Homes Ltd
Nottinghamshire County Council,1111/1001,Children and Young P,CYP,Private Contractors           ,EGA,28.12.2011,10-05570,10624.61,Good Shepherd Pre-School
Nottinghamshire County Council,1111/1001,Children and Young P,CYP,Private Contractors           ,EGA,28.12.2011,10-05572,3287.4,The National Fostering Agency
Nottinghamshire County Council,1111/1001,Children and Young P,CYP,Private Contractors           ,EGA,28.12.2011,10-05573,569.25,Quayside Care Ltd
Nottinghamshire County Council,1111/1001,Children and Young P,CYP,Private Contractors           ,EGA,28.12.2011,10-05574,690,Quayside Care Ltd
Nottinghamshire County Council,1111/1001,Children and Young P,CYP,Private Contractors           ,EGA,28.12.2011,10-05575,845.25,Quayside Care Ltd
Nottinghamshire County Council,1111/1001,Children and Young P,CYP,Private Contractors           ,EGA,28.12.2011,10-05578,5515.51,Hickling Pre-School
Nottinghamshire County Council,1111/1001,Children and Young P,CYP,Private Contractors           ,EGA,28.12.2011,10-05579,3423,Foster Care Associates Ltd
Nottinghamshire County Council,1111/1001,Children and Young P,CYP,Private Contractors           ,EGA,28.12.2011,10-05580,3990.9,Foster Care Associates Ltd
Nottinghamshire County Council,1111/1001,Children and Young P,CYP,Private Contractors           ,EGA,28.12.2011,10-05582,513.65,The National Fostering Agency
Nottinghamshire County Council,1111/1001,Children and Young P,CYP,Private Contractors           ,EGA,28.12.2011,10-05583,530.75,The National Fostering Agency
Nottinghamshire County Council,1111/1001,Children and Young P,CYP,Private Contractors           ,EGA,28.12.2011,10-05585,11930.92,Hucknall Pre-School Playgroup
Nottinghamshire County Council,1111/1001,Children and Young P,CYP,Private Contractors           ,EGA,28.12.2011,10-05586,4006,Kneesall Pre School Learning Allian
Nottinghamshire County Council,1111/1001,Children and Young P,CYP,Private Contractors           ,EGA,28.12.2011,10-05587,11060.05,Pippins Pre-School
Nottinghamshire County Council,1111/1001,Children and Young P,CYP,Private Contractors           ,EGA,28.12.2011,10-05588,6096.09,North Muskham Playgroup
Nottinghamshire County Council,1111/1001,Children and Young P,CYP,Private Contractors           ,EGA,28.12.2011,10-05589,8974.71,Plumtree School
Nottinghamshire County Council,1111/1001,Children and Young P,CYP,Private Contractors           ,EGA,28.12.2011,10-05590,9231.22,St Johns Playgroup
Nottinghamshire County Council,1111/1001,Children and Young P,CYP,Private Contractors           ,EGA,28.12.2011,10-05591,2090.09,Tiny Tots Playgroup
Nottinghamshire County Council,1111/1001,Children and Young P,CYP,Private Contractors           ,EGA,28.12.2011,10-05592,14224.21,Sutton Centre Under 5'S Playgroup
Nottinghamshire County Council,1111/1001,Children and Young P,CYP,Private Contractors           ,EGA,28.12.2011,10-05600,2036.1,Foster Care Associates Ltd
Nottinghamshire County Council,1111/1001,Children and Young P,CYP,Private Contractors           ,EGA,30.12.2011,10-03483,1380.96,Allsorts Playgroup
Nottinghamshire County Council,1111/1001,Children and Young P,CYP,Private Contractors           ,EGA,30.12.2011,10-04846,14642.74,Broadwood Educational Services Ltd
Nottinghamshire County Council,1111/1001,Children and Young P,CYP,Private Contractors           ,EGA,30.12.2011,10-04908,38934.19,East Midlands Care Matters
Nottinghamshire County Council,1111/1001,Children and Young P,CYP,Private Contractors           ,EGA,30.12.2011,10-04909,38544.85,East Midlands Care Matters
Nottinghamshire County Council,1111/1001,Children and Young P,CYP,Private Contractors           ,EGA,30.12.2011,10-04935,3059.66,Alliance Foster Care
Nottinghamshire County Council,1111/1001,Children and Young P,CYP,Private Contractors           ,EGA,30.12.2011,10-04936,1780.72,Alliance Foster Care
Nottinghamshire County Council,1111/1001,Children and Young P,CYP,Private Contractors           ,EGA,30.12.2011,10-05019,18821.43,Turnaround
Nottinghamshire County Council,1111/1001,Children and Young P,CYP,Private Contractors           ,EGA,30.12.2011,10-05020,20996.43,Turnaround
Nottinghamshire County Council,1111/1001,Children and Young P,CYP,Private Contractors           ,EGA,30.12.2011,10-05021,13714.29,Turnaround
Nottinghamshire County Council,1111/1001,Children and Young P,CYP,Private Contractors           ,EGA,30.12.2011,10-05022,42568,Turnaround
Nottinghamshire County Council,1111/1001,Children and Young P,CYP,Private Contractors           ,EGA,30.12.2011,10-05387,2164.2,16 Plus
Nottinghamshire County Council,1111/1001,Children and Young P,CYP,Private Contractors           ,EGA,30.12.2011,10-05388,2950.8,16 Plus
Nottinghamshire County Council,1111/1001,Children and Young P,CYP,Private Contractors           ,EGA,30.12.2011,10-05584,4262.1,16 Plus
Nottinghamshire County Council,1111/1001,Children and Young P,CYP,Private Contractors           ,EGA,30.12.2011,10-05783,1233.73,Jubilee House Christian School
Nottinghamshire County Council,1111/1001,Children and Young P,CYP,Private Contractors           ,EGA,30.12.2011,10-05784,4180.18,Costock Pre School
Nottinghamshire County Council,1111/1001,Children and Young P,CYP,Private Contractors           ,EGA,30.12.2011,10-05785,18897.88,Carnarvon Pre-School
Nottinghamshire County Council,1111/1001,Children and Young P,CYP,Private Contractors           ,EGA,30.12.2011,10-05786,11234.22,Lowater Street Playgroup
Nottinghamshire County Council,1111/1001,Children and Young P,CYP,Private Contractors           ,EGA,30.12.2011,10-05787,5225.22,Misson Pre-School
Nottinghamshire County Council,1111/1001,Children and Young P,CYP,Private Contractors           ,EGA,30.12.2011,10-05788,1088.59,Newstead Children'S Centre
Nottinghamshire County Council,1111/1001,Children and Young P,CYP,Private Contractors           ,EGA,30.12.2011,10-05789,9144.14,Noahs Ark Playgroup
Nottinghamshire County Council,1111/1001,Children and Young P,CYP,Private Contractors           ,EGA,30.12.2011,10-05790,11147.14,Papplewick Pre-School Playgroup
Nottinghamshire County Council,1111/1001,Children and Young P,CYP,Private Contractors           ,EGA,30.12.2011,10-05791,6444.44,Radcliffe On Trent Pre-School Playg
Nottinghamshire County Council,1111/1001,Children and Young P,CYP,Private Contractors           ,EGA,30.12.2011,10-05792,7982.98,Ravenshead Pre-School Playgroup
Nottinghamshire County Council,1111/1001,Children and Young P,CYP,Private Contractors           ,EGA,30.12.2011,10-05793,10711.7,Rushcliffe Pre-School Cic
Nottinghamshire County Council,1111/1001,Children and Young P,CYP,Private Contractors           ,EGA,30.12.2011,10-05794,8592.58,Salterford House School
Nottinghamshire County Council,1111/1001,Children and Young P,CYP,Private Contractors           ,EGA,30.12.2011,10-05795,3570.57,Sconce Hills Pre-School Playgroup
Nottinghamshire County Council,1111/1001,Children and Young P,CYP,Private Contractors           ,EGA,30.12.2011,10-05796,8099.09,Southwell Pre-School
Nottinghamshire County Council,1111/1001,Children and Young P,CYP,Private Contractors           ,EGA,30.12.2011,10-05797,22642.62,Weaverthorpe Pre-School Playgroup
Nottinghamshire County Council,1111/1001,Children and Young P,CYP,Private Contractors           ,EGA,30.12.2011,10-05798,5225.22,Wellin Lane Playgroup
Nottinghamshire County Council,1111/1001,Children and Young P,CYP,Private Contractors           ,EGA,30.12.2011,10-05799,7982.98,Wellow House School
Nottinghamshire County Council,1111/1001,Children and Young P,CYP,Private Contractors           ,EGA,30.12.2011,10-05800,27504.98,Westdale Pre School
Nottinghamshire County Council,1111/1001,Children and Young P,CYP,Private Contractors           ,EGA,30.12.2011,10-05801,9144.14,Willow Brook Pre-School
Nottinghamshire County Council,1111/1001,Children and Young P,CYP,Private Contractors           ,EGA,30.12.2011,10-05802,20204.18,Willow Pre-School Playgroup
Nottinghamshire County Council,1111/1001,Children and Young P,CYP,Private Contractors           ,EGA,30.12.2011,10-05803,4789.79,Windmills Pre-School Playgroup
Nottinghamshire County Council,1111/1001,Children and Young P,CYP,Private Contractors           ,EGA,30.12.2011,10-05804,11031.02,Woodard Schs Notts Ltd Ranby Schola
Nottinghamshire County Council,1111/1001,Children and Young P,CYP,Private Contractors           ,EGA,30.12.2011,10-05805,8636.13,Woodborough Village Pre School
Nottinghamshire County Council,1111/1001,Children and Young P,CYP,Private Contractors           ,EGA,30.12.2011,10-05806,9144.14,Little Rascals Pre-School
Nottinghamshire County Council,1111/1001,Children and Young P,CYP,Private Contractors           ,EGA,30.12.2011,10-05807,13353.34,Little Acorns Pre School
Nottinghamshire County Council,1111/1001,Children and Young P,CYP,Private Contractors           ,EGA,30.12.2011,10-05808,28564.54,Leen Mills Pre School Playgroup
Nottinghamshire County Council,1111/1001,Children and Young P,CYP,Private Contractors           ,EGA,30.12.2011,10-05809,5312.31,Fledglings Playgroup
Nottinghamshire County Council,1111/1001,Children and Young P,CYP,Private Contractors           ,EGA,30.12.2011,10-05810,1480.48,Edwinstowe Pre-School Playgroup
Nottinghamshire County Council,1111/1001,Children and Young P,CYP,Private Contractors           ,EGA,30.12.2011,10-05811,6357.35,East Leake Pre-School Playgroup
Nottinghamshire County Council,1111/1001,Children and Young P,CYP,Private Contractors           ,EGA,30.12.2011,10-05812,1378.88,Crossdale Busy Bees Pre-School
Nottinghamshire County Council,1111/1001,Children and Young P,CYP,Private Contractors           ,EGA,30.12.2011,10-05813,9405.4,Cropwell Bishop Pre-School Playgrou
Nottinghamshire County Council,1111/1001,Children and Young P,CYP,Private Contractors           ,EGA,30.12.2011,10-05814,10276.27,Collingham & District Pre-School
Nottinghamshire County Council,1111/1001,Children and Young P,CYP,Private Contractors           ,EGA,30.12.2011,10-05815,6096.09,St Giles Playgroup
Nottinghamshire County Council,1111/1001,Children and Young P,CYP,Private Contractors           ,EGA,30.12.2011,10-05816,4789.79,St Mary's Pre-School
Nottinghamshire County Council,1111/1001,Children and Young P,CYP,Private Contractors           ,EGA,30.12.2011,10-05817,580.58,Thrumpton Kids Clubs
Nottinghamshire County Council,1111/1001,Children and Young P,CYP,Private Contractors           ,EGA,30.12.2011,10-05818,15327.31,Tollerton Playgroup
Nottinghamshire County Council,1111/1001,Children and Young P,CYP,Private Contractors           ,EGA,30.12.2011,10-05819,2264.26,Toton Tots Pre-School
Nottinghamshire County Council,1111/1001,Children and Young P,CYP,Private Contractors           ,EGA,30.12.2011,10-05820,10189.18,Walesby School Playgroup
Nottinghamshire County Council,1111/1001,Children and Young P,CYP,Private Contractors           ,EGA,30.12.2011,10-05821,9753.74,Watnall Pre-School Playgroup
Nottinghamshire County Council,1111/1001,Children and Young P,CYP,Private Contractors           ,EGA,30.12.2011,10-05822,15675.66,Leahurst Road Pre-School
Nottinghamshire County Council,1111/1001,Children and Young P,CYP,Private Contractors           ,EGA,30.12.2011,10-05823,6241.24,Langar Chidcare Services
Nottinghamshire County Council,1111/1001,Children and Young P,CYP,Private Contractors           ,EGA,30.12.2011,10-05824,8345.84,North Leverton Pre-School Playgroup
Nottinghamshire County Council,1111/1001,Children and Young P,CYP,Private Contractors           ,EGA,30.12.2011,10-05825,7271.76,Lady Bay Pre-School Group
Nottinghamshire County Council,1111/1001,Children and Young P,CYP,Private Contractors           ,EGA,30.12.2011,10-05826,15965.95,Killisick Pre-School
Nottinghamshire County Council,1111/1001,Children and Young P,CYP,Private Contractors           ,EGA,30.12.2011,10-05827,1741.74,Inham Park Pre School Playgroup
Nottinghamshire County Council,1111/1001,Children and Young P,CYP,Private Contractors           ,EGA,30.12.2011,10-05828,1378.88,Heathlands Out Of School Club
Nottinghamshire County Council,1111/1001,Children and Young P,CYP,Private Contractors           ,EGA,30.12.2011,10-05829,6386.38,Haywood Road Pre-School Playgroup
Nottinghamshire County Council,1111/1001,Children and Young P,CYP,Private Contractors           ,EGA,30.12.2011,10-05830,7765.26,Bircotes Pre-School
Nottinghamshire County Council,1111/1001,Children and Young P,CYP,Private Contractors           ,EGA,30.12.2011,10-05831,15588.57,Balderton Pre-School
Nottinghamshire County Council,1111/1001,Children and Young P,CYP,Pupils and Students           ,GAA,22.12.2011,10-05175,8900,Nottinghamshire Healthcare Nhs Trus
Nottinghamshire County Council,1111/1001,Children and Young P,CYP,Support Services              ,HAA,07.12.2011,10-00168,1935,Paul S Winson Coaches
Nottinghamshire County Council,1111/1001,Children and Young P,CYP,Support Services              ,HAA,07.12.2011,10-00169,2124.8,Paul S Winson Coaches
Nottinghamshire County Council,1111/1001,Children and Young P,CYP,Support Services              ,HAA,07.12.2011,10-00170,1998.45,Wallis Coachways
Nottinghamshire County Council,1111/1001,Children and Young P,CYP,Support Services              ,HAA,07.12.2011,10-00171,4392.3,Wallis Coachways
Nottinghamshire County Council,1111/1001,Children and Young P,CYP,Support Services              ,HAA,07.12.2011,10-00174,19772.38,Premiere Travel Ltd
Nottinghamshire County Council,1111/1001,Children and Young P,CYP,Support Services              ,HAA,07.12.2011,10-00175,19772.38,Premiere Travel Ltd
Nottinghamshire County Council,1111/1001,Children and Young P,CYP,Support Services              ,HAA,09.12.2011,10-03556,3310.25,C W Moxon Ltd
Nottinghamshire County Council,1111/1001,Children and Young P,CYP,Support Services              ,HAA,09.12.2011,10-03557,2786.66,C W Moxon Ltd
Nottinghamshire County Council,1111/1001,Children and Young P,CYP,Support Services              ,HAA,09.12.2011,10-03558,2903,C W Moxon Ltd
Nottinghamshire County Council,1111/1001,Children and Young P,CYP,Support Services              ,HAA,12.12.2011,10-03628,10358.7,Nottinghamshire County Teaching Pct
Nottinghamshire County Council,1111/1001,Children and Young P,CYP,Support Services              ,HAA,15.12.2011,10-03546,1918,Trent Motor Traction Company Ltd
Nottinghamshire County Council,1111/1001,Children and Young P,CYP,Support Services              ,HAA,15.12.2011,10-03554,1912.71,Trent Motor Traction Company Ltd
Nottinghamshire County Council,1111/1001,Children and Young P,CYP,Support Services              ,HAA,15.12.2011,10-03559,2083.9,Dunn Motor Traction
Nottinghamshire County Council,1111/1001,Children and Young P,CYP,Support Services              ,HAA,15.12.2011,10-03560,1504.54,Dunn Motor Traction
Nottinghamshire County Council,1111/1001,Children and Young P,CYP,Support Services              ,HAA,15.12.2011,10-03561,2685.47,Dunn Motor Traction
Nottinghamshire County Council,1111/1001,Children and Young P,CYP,Support Services              ,HAA,15.12.2011,10-03562,2122.76,Dunn Motor Traction
Nottinghamshire County Council,1111/1001,Children and Young P,CYP,Support Services              ,HAA,15.12.2011,10-03563,5187,Dunn Motor Traction
Nottinghamshire County Council,1111/1001,Children and Young P,CYP,Support Services              ,HAA,15.12.2011,10-04115,660,Ace Of Mansfield Ltd
Nottinghamshire County Council,1111/1001,Children and Young P,CYP,Support Services              ,HAA,15.12.2011,10-04142,330,D G Private Hire Ltd
Nottinghamshire County Council,1111/1001,Children and Young P,CYP,Support Services              ,HAA,15.12.2011,10-04174,3803.1,Sharpes Of Nottingham
Nottinghamshire County Council,1111/1001,Children and Young P,CYP,Support Services              ,HAA,15.12.2011,10-04175,3012.03,Sharpes Of Nottingham
Nottinghamshire County Council,1111/1001,Children and Young P,CYP,Support Services              ,HAA,15.12.2011,10-04176,3077.34,Sharpes Of Nottingham
Nottinghamshire County Council,1111/1001,Children and Young P,CYP,Support Services              ,HAA,15.12.2011,10-04177,3287.45,Sharpes Of Nottingham
Nottinghamshire County Council,1111/1001,Children and Young P,CYP,Support Services              ,HAA,15.12.2011,10-04181,2629.95,Sharpes Of Nottingham
Nottinghamshire County Council,1111/1001,Children and Young P,CYP,Support Services              ,HAA,15.12.2011,10-04207,2893.99,Glenn Ryder Coaches
Nottinghamshire County Council,1111/1001,Children and Young P,CYP,Support Services              ,HAA,15.12.2011,10-04208,2715.45,Glenn Ryder Coaches
Nottinghamshire County Council,1111/1001,Children and Young P,CYP,Support Services              ,HAA,15.12.2011,10-04209,2697.8,Malcolm Keith Hearson
Nottinghamshire County Council,1111/1001,Children and Young P,CYP,Support Services              ,HAA,15.12.2011,10-04210,2795.4,Malcolm Keith Hearson
Nottinghamshire County Council,1111/1001,Children and Young P,CYP,Support Services              ,HAA,15.12.2011,10-04211,13546.66,Johnson Bros Tours Ltd
Nottinghamshire County Council,1111/1001,Children and Young P,CYP,Support Services              ,HAA,15.12.2011,10-04212,3836.89,Johnson Bros Tours Ltd
Nottinghamshire County Council,1111/1001,Children and Young P,CYP,Support Services              ,HAA,15.12.2011,10-04213,3654,Midland Fleet Maintenance
Nottinghamshire County Council,1111/1001,Children and Young P,CYP,Support Services              ,HAA,15.12.2011,10-04214,3137,Premiere Travel Ltd
Nottinghamshire County Council,1111/1001,Children and Young P,CYP,Support Services              ,HAA,15.12.2011,10-04215,2974.05,Premiere Travel Ltd
Nottinghamshire County Council,1111/1001,Children and Young P,CYP,Support Services              ,HAA,15.12.2011,10-04216,3060.05,Premiere Travel Ltd
Nottinghamshire County Council,1111/1001,Children and Young P,CYP,Support Services              ,HAA,15.12.2011,10-04217,3106.31,Premiere Travel Ltd
Nottinghamshire County Council,1111/1001,Children and Young P,CYP,Support Services              ,HAA,15.12.2011,10-04218,3285.5,Premiere Travel Ltd
Nottinghamshire County Council,1111/1001,Children and Young P,CYP,Support Services              ,HAA,15.12.2011,10-04221,10329.9,Premiere Travel Ltd
Nottinghamshire County Council,1111/1001,Children and Young P,CYP,Support Services              ,HAA,15.12.2011,10-04223,3012.65,Redfern Travel
Nottinghamshire County Council,1111/1001,Children and Young P,CYP,Support Services              ,HAA,15.12.2011,10-04224,2913,Redfern Travel
Nottinghamshire County Council,1111/1001,Children and Young P,CYP,Support Services              ,HAA,15.12.2011,10-04225,2779.6,Redfern Travel
Nottinghamshire County Council,1111/1001,Children and Young P,CYP,Support Services              ,HAA,15.12.2011,10-04226,20498.91,Redfern Travel
Nottinghamshire County Council,1111/1001,Children and Young P,CYP,Support Services              ,HAA,15.12.2011,10-04227,12551.25,Redfern Travel
Nottinghamshire County Council,1111/1001,Children and Young P,CYP,Support Services              ,HAA,15.12.2011,10-04229,2799.4,Redfern Travel
Nottinghamshire County Council,1111/1001,Children and Young P,CYP,Support Services              ,HAA,15.12.2011,10-04230,1887.9,Vale Travel
Nottinghamshire County Council,1111/1001,Children and Young P,CYP,Support Services              ,HAA,15.12.2011,10-04250,2394.6,Glenn Ryder Coaches
Nottinghamshire County Council,1111/1001,Children and Young P,CYP,Support Services              ,HAA,15.12.2011,10-04336,7050.32,F & J Marriott T/A Unity Coaches
Nottinghamshire County Council,1111/1001,Children and Young P,CYP,Support Services              ,HAA,15.12.2011,10-04337,2159,F & J Marriott T/A Unity Coaches
Nottinghamshire County Council,1111/1001,Children and Young P,CYP,Support Services              ,HAA,15.12.2011,10-04392,1540,AOT Coaches
Nottinghamshire County Council,1111/1001,Children and Young P,CYP,Support Services              ,HAA,15.12.2011,10-04393,1850.8,AOT Coaches
Nottinghamshire County Council,1111/1001,Children and Young P,CYP,Support Services              ,HAA,15.12.2011,10-04394,3252.6,AOT Coaches
Nottinghamshire County Council,1111/1001,Children and Young P,CYP,Support Services              ,HAA,15.12.2011,10-04395,2580.25,AOT Coaches
Nottinghamshire County Council,1111/1001,Children and Young P,CYP,Support Services              ,HAA,15.12.2011,10-04396,2081.4,AOT Coaches
Nottinghamshire County Council,1111/1001,Children and Young P,CYP,Support Services              ,HAA,15.12.2011,10-04399,2071,Garys Coaches Ltd
Nottinghamshire County Council,1111/1001,Children and Young P,CYP,Support Services              ,HAA,15.12.2011,10-04400,1635,Garys Coaches Ltd
Nottinghamshire County Council,1111/1001,Children and Young P,CYP,Support Services              ,HAA,15.12.2011,10-04401,2289,Garys Coaches Ltd
Nottinghamshire County Council,1111/1001,Children and Young P,CYP,Support Services              ,HAA,15.12.2011,10-04403,2394.44,Gem Mini Travel Ltd
Nottinghamshire County Council,1111/1001,Children and Young P,CYP,Support Services              ,HAA,15.12.2011,10-04404,2159.3,Jb Tours Watnall Ltd
Nottinghamshire County Council,1111/1001,Children and Young P,CYP,Support Services              ,HAA,15.12.2011,10-04406,2178,Marshalls Of Sutton On Trent Ltd
Nottinghamshire County Council,1111/1001,Children and Young P,CYP,Support Services              ,HAA,15.12.2011,10-04409,2819.03,Marshalls Of Sutton On Trent Ltd
Nottinghamshire County Council,1111/1001,Children and Young P,CYP,Support Services              ,HAA,15.12.2011,10-04416,3278,Marshalls Of Sutton On Trent Ltd
Nottinghamshire County Council,1111/1001,Children and Young P,CYP,Support Services              ,HAA,15.12.2011,10-04421,1237,Nottm Minibuses & Coaches
Nottinghamshire County Council,1111/1001,Children and Young P,CYP,Support Services              ,HAA,15.12.2011,10-04422,3121.14,Nottm Minibuses & Coaches
Nottinghamshire County Council,1111/1001,Children and Young P,CYP,Support Services              ,HAA,15.12.2011,10-04423,2466.6,Silverdale Tours Nottm Ltd
Nottinghamshire County Council,1111/1001,Children and Young P,CYP,Support Services              ,HAA,15.12.2011,10-04424,2079.7,Silverdale Tours Nottm Ltd
Nottinghamshire County Council,1111/1001,Children and Young P,CYP,Support Services              ,HAA,15.12.2011,10-04425,3689.52,Silverdale Tours Nottm Ltd
Nottinghamshire County Council,1111/1001,Children and Young P,CYP,Support Services              ,HAA,15.12.2011,10-04426,2547.6,Silverdale Tours Nottm Ltd
Nottinghamshire County Council,1111/1001,Children and Young P,CYP,Support Services              ,HAA,15.12.2011,10-04427,3157.22,Silverdale Tours Nottm Ltd
Nottinghamshire County Council,1111/1001,Children and Young P,CYP,Support Services              ,HAA,15.12.2011,10-04428,2711.28,Silverdale Tours Nottm Ltd
Nottinghamshire County Council,1111/1001,Children and Young P,CYP,Support Services              ,HAA,15.12.2011,10-04429,1752.73,Silverdale Tours Nottm Ltd
Nottinghamshire County Council,1111/1001,Children and Young P,CYP,Support Services              ,HAA,15.12.2011,10-04458,3271.32,Stagecoach Services Ltd
Nottinghamshire County Council,1111/1001,Children and Young P,CYP,Support Services              ,HAA,15.12.2011,10-04467,2508,Tiger European Uk Ltd
Nottinghamshire County Council,1111/1001,Children and Young P,CYP,Support Services              ,HAA,15.12.2011,10-04468,3058,Tiger European Uk Ltd
Nottinghamshire County Council,1111/1001,Children and Young P,CYP,Support Services              ,HAA,15.12.2011,10-04474,3175.87,Travel Wright Ltd
Nottinghamshire County Council,1111/1001,Children and Young P,CYP,Support Services              ,HAA,15.12.2011,10-04475,3263.13,Travel Wright Ltd
Nottinghamshire County Council,1111/1001,Children and Young P,CYP,Support Services              ,HAA,15.12.2011,10-04476,3338.47,Travel Wright Ltd
Nottinghamshire County Council,1111/1001,Children and Young P,CYP,Support Services              ,HAA,15.12.2011,10-04477,1456,Travel Wright Ltd
Nottinghamshire County Council,1111/1001,Children and Young P,CYP,Support Services              ,HAA,15.12.2011,10-04479,3370.25,Travel Wright Ltd
Nottinghamshire County Council,1111/1001,Children and Young P,CYP,Support Services              ,HAA,15.12.2011,10-04481,120,Travel Wright Ltd
Nottinghamshire County Council,1111/1001,Children and Young P,CYP,Support Services              ,HAA,15.12.2011,10-04483,992.16,Travel Wright Ltd
Nottinghamshire County Council,1111/1001,Children and Young P,CYP,Support Services              ,HAA,15.12.2011,10-04493,5986.05,Wilfreda Beehive
Nottinghamshire County Council,1111/1001,Children and Young P,CYP,Support Services              ,HAA,15.12.2011,10-04496,10418.1,K & H Doyle Coaches Ltd
Nottinghamshire County Council,1111/1001,Children and Young P,CYP,Support Services              ,HAA,15.12.2011,10-04498,2749.2,Freeway Coaches Ltd
Nottinghamshire County Council,1111/1001,Children and Young P,CYP,Support Services              ,HAA,15.12.2011,10-04499,2953.59,Freeway Coaches Ltd
Nottinghamshire County Council,1111/1001,Children and Young P,CYP,Support Services              ,HAA,15.12.2011,10-04500,2836.6,Freeway Coaches Ltd
Nottinghamshire County Council,1111/1001,Children and Young P,CYP,Support Services              ,HAA,15.12.2011,10-04505,2709,Paul S Winson Coaches
Nottinghamshire County Council,1111/1001,Children and Young P,CYP,Support Services              ,HAA,15.12.2011,10-04506,2949.4,Paul S Winson Coaches
Nottinghamshire County Council,1111/1001,Children and Young P,CYP,Support Services              ,HAA,16.12.2011,10-04676,27.5,Nottm Minibuses & Coaches
Nottinghamshire County Council,1111/1001,Children and Young P,CYP,Support Services              ,HAA,16.12.2011,10-04678,3209.1,Tiger European Uk Ltd
Nottinghamshire County Council,1111/1001,Children and Young P,CYP,Support Services              ,HAA,16.12.2011,10-04679,2742.9,Tiger European Uk Ltd
Nottinghamshire County Council,1111/1001,Children and Young P,CYP,Support Services              ,HAA,16.12.2011,10-04681,1885,Jc Coaches
Nottinghamshire County Council,1111/1001,Children and Young P,CYP,Support Services              ,HAA,19.12.2011,10-04759,10508.4,Moving Services Group
Nottinghamshire County Council,1111/1001,Children and Young P,CYP,Support Services              ,HAA,20.12.2011,10-04933,14237,Nottinghamshire Healthcare Nhs Trus
Nottinghamshire County Council,1111/1001,Children and Young P,CYP,Support Services              ,HAA,20.12.2011,10-04983,13971,Sutton Nursery Centre
Nottinghamshire County Council,1111/1001,Children and Young P,CYP,Support Services              ,HAA,22.12.2011,10-05119,1320,Kirkhams Coaches
Nottinghamshire County Council,1111/1001,Children and Young P,CYP,Support Services              ,HAA,22.12.2011,10-05123,2827.65,Trent Motor Traction Company Ltd
Nottinghamshire County Council,1111/1001,Children and Young P,CYP,Support Services              ,HAA,22.12.2011,10-05136,3045,Stagecoach Services Ltd
Nottinghamshire County Council,1111/1001,Children and Young P,CYP,Support Services              ,HAA,22.12.2011,10-05137,4676.65,Stagecoach Services Ltd
Nottinghamshire County Council,1111/1001,Children and Young P,CYP,Support Services              ,HAA,22.12.2011,10-05138,4728.1,Stagecoach Services Ltd
Nottinghamshire County Council,1111/1001,Children and Young P,CYP,Support Services              ,HAA,22.12.2011,10-05143,864.5,Trent Motor Traction Company Ltd
Nottinghamshire County Council,1111/1001,Children and Young P,CYP,Support Services              ,HAA,22.12.2011,10-05148,1912.71,Trent Motor Traction Company Ltd
Nottinghamshire County Council,1111/1001,Children and Young P,CYP,Support Services              ,HAA,22.12.2011,10-05151,3036.2,Nottm City Transport Ltd
Nottinghamshire County Council,1111/1001,Children and Young P,CYP,Support Services              ,HAA,23.12.2011,10-05377,6074.7,Wallis Coachways
Nottinghamshire County Council,1111/1001,Children and Young P,CYP,Support Services              ,HAA,23.12.2011,10-05378,2818.28,Wallis Coachways
Nottinghamshire County Council,1111/1001,Children and Young P,CYP,Support Services              ,HAA,28.12.2011,10-05424,2394.6,Arnold Acorn Travel
Nottinghamshire County Council,1111/1001,Children and Young P,CYP,Other Grants Reimb/Contribs   ,JBA,15.12.2011,10-04102,51.68,Fozcabs Newark Taxis
Nottinghamshire County Council,1111/1001,Adult Social Care an,ASCH,Maintenance of Grounds        ,BBA,22.12.2011,10-05171,512.26,Wastecycle Ltd
Nottinghamshire County Council,1111/1001,Adult Social Care an,ASCH,Energy Costs                  ,BCA,12.12.2011,10-03613,851,Forever Fuels Ltd
Nottinghamshire County Council,1111/1001,Adult Social Care an,ASCH,Energy Costs                  ,BCA,30.12.2011,10-04959,516.87,British Gas Business
Nottinghamshire County Council,1111/1001,Adult Social Care an,ASCH,Rents                         ,BDA,13.12.2011,10-03909,4250,Oceans Of Fun
Nottinghamshire County Council,1111/1001,Adult Social Care an,ASCH,Rents                         ,BDA,19.12.2011,10-04833,1110,Cookco Ltd
Nottinghamshire County Council,1111/1001,Adult Social Care an,ASCH,Rents                         ,BDA,23.12.2011,10-04721,7720.2,Nottm Community Housing Assoc
Nottinghamshire County Council,1111/1001,Adult Social Care an,ASCH,Rents                         ,BDA,23.12.2011,10-04763,3375,Wistow Properties
Nottinghamshire County Council,1111/1001,Adult Social Care an,ASCH,Rents                         ,BDA,23.12.2011,10-05317,659.12,Progress Care Housing Assoc Ltd
Nottinghamshire County Council,1111/1001,Adult Social Care an,ASCH,Rents                         ,BDA,23.12.2011,10-05333,4251.52,Making It! Enterprises Ltd
Nottinghamshire County Council,1111/1001,Adult Social Care an,ASCH,Water Services                ,BFA,19.12.2011,10-04743,853.94,Adsm Ltd
Nottinghamshire County Council,1111/1001,Adult Social Care an,ASCH,Water Services                ,BFA,19.12.2011,10-04744,6675.55,Adsm Ltd
Nottinghamshire County Council,1111/1001,Adult Social Care an,ASCH,Water Services                ,BFA,23.12.2011,10-05353,1421.31,Severn Trent Water Ltd
Nottinghamshire County Council,1111/1001,Adult Social Care an,ASCH,Water Services                ,BFA,23.12.2011,10-05354,585.19,Severn Trent Water Ltd
Nottinghamshire County Council,1111/1001,Adult Social Care an,ASCH,Water Services                ,BFA,23.12.2011,10-05355,694.77,Severn Trent Water Ltd
Nottinghamshire County Council,1111/1001,Adult Social Care an,ASCH,Water Services                ,BFA,23.12.2011,10-05357,3392.52,Severn Trent Water Ltd
Nottinghamshire County Council,1111/1001,Adult Social Care an,ASCH,Water Services                ,BFA,29.12.2011,10-05771,901.36,Severn Trent Water Ltd
Nottinghamshire County Council,1111/1001,Adult Social Care an,ASCH,Water Services                ,BFA,29.12.2011,10-05773,584.47,Severn Trent Water Ltd
Nottinghamshire County Council,1111/1001,Adult Social Care an,ASCH,Water Services                ,BFA,29.12.2011,10-05774,1092.72,Severn Trent Water Ltd
Nottinghamshire County Council,1111/1001,Adult Social Care an,ASCH,Water Services                ,BFA,30.12.2011,10-05778,1035.4,Severn Trent Water Ltd
Nottinghamshire County Council,1111/1001,Adult Social Care an,ASCH,Water Services                ,BFA,30.12.2011,10-05779,3464.09,Severn Trent Water Ltd
Nottinghamshire County Council,1111/1001,Adult Social Care an,ASCH,Water Services                ,BFA,30.12.2011,10-05781,894.47,Severn Trent Water Ltd
Nottinghamshire County Council,1111/1001,Adult Social Care an,ASCH,Cleaning and Domestic Supplies,BJA,12.12.2011,10-03621,1416.12,Phs Group Plc
Nottinghamshire County Council,1111/1001,Adult Social Care an,ASCH,Cleaning and Domestic Supplies,BJA,13.12.2011,10-03925,874.72,Phs Group Plc
Nottinghamshire County Council,1111/1001,Adult Social Care an,ASCH,Cleaning and Domestic Supplies,BJA,19.12.2011,10-04832,655.66,Wilson Electrics Ltd
Nottinghamshire County Council,1111/1001,Adult Social Care an,ASCH,Contract Hire / Leasing       ,CCA,01.12.2011,10-00002,989.8,Southside Cars
Nottinghamshire County Council,1111/1001,Adult Social Care an,ASCH,Contract Hire / Leasing       ,CCA,07.12.2011,10-03094,713.4,Aaeron Cars
Nottinghamshire County Council,1111/1001,Adult Social Care an,ASCH,Contract Hire / Leasing       ,CCA,15.12.2011,10-04105,2583.02,Hawkins Taxis & Transport
Nottinghamshire County Council,1111/1001,Adult Social Care an,ASCH,Contract Hire / Leasing       ,CCA,15.12.2011,10-04162,3403.9,Alert Cars Ltd
Nottinghamshire County Council,1111/1001,Adult Social Care an,ASCH,Contract Hire / Leasing       ,CCA,15.12.2011,10-04167,2425.35,Taxicover Uk Ltd
Nottinghamshire County Council,1111/1001,Adult Social Care an,ASCH,Contract Hire / Leasing       ,CCA,15.12.2011,10-04168,1938,Taxicover Uk Ltd
Nottinghamshire County Council,1111/1001,Adult Social Care an,ASCH,Contract Hire / Leasing       ,CCA,15.12.2011,10-04182,1469.3,Southside Cars
Nottinghamshire County Council,1111/1001,Adult Social Care an,ASCH,Contract Hire / Leasing       ,CCA,15.12.2011,10-04186,1768,Cabline Uk Ltd
Nottinghamshire County Council,1111/1001,Adult Social Care an,ASCH,Contract Hire / Leasing       ,CCA,15.12.2011,10-04187,1575,Cabline Uk Ltd
Nottinghamshire County Council,1111/1001,Adult Social Care an,ASCH,Contract Hire / Leasing       ,CCA,15.12.2011,10-04188,1900,Cabline Uk Ltd
Nottinghamshire County Council,1111/1001,Adult Social Care an,ASCH,Contract Hire / Leasing       ,CCA,15.12.2011,10-04189,3132,Cabline Uk Ltd
Nottinghamshire County Council,1111/1001,Adult Social Care an,ASCH,Contract Hire / Leasing       ,CCA,15.12.2011,10-04232,9275,Cem Muskham Ltd T/A Z Cars
Nottinghamshire County Council,1111/1001,Adult Social Care an,ASCH,Contract Hire / Leasing       ,CCA,15.12.2011,10-04233,641.4,200 Cars Ltd
Nottinghamshire County Council,1111/1001,Adult Social Care an,ASCH,Contract Hire / Leasing       ,CCA,15.12.2011,10-04234,980.8,200 Cars Ltd
Nottinghamshire County Council,1111/1001,Adult Social Care an,ASCH,Contract Hire / Leasing       ,CCA,15.12.2011,10-04235,858.5,200 Cars Ltd
Nottinghamshire County Council,1111/1001,Adult Social Care an,ASCH,Contract Hire / Leasing       ,CCA,15.12.2011,10-04236,809.3,200 Cars Ltd
Nottinghamshire County Council,1111/1001,Adult Social Care an,ASCH,Contract Hire / Leasing       ,CCA,15.12.2011,10-04237,798.9,200 Cars Ltd
Nottinghamshire County Council,1111/1001,Adult Social Care an,ASCH,Contract Hire / Leasing       ,CCA,15.12.2011,10-04238,584,CBC Taxis Ltd
Nottinghamshire County Council,1111/1001,Adult Social Care an,ASCH,Contract Hire / Leasing       ,CCA,15.12.2011,10-04239,602.5,CBC Taxis Ltd
Nottinghamshire County Council,1111/1001,Adult Social Care an,ASCH,Contract Hire / Leasing       ,CCA,15.12.2011,10-04240,1360,CBC Taxis Ltd
Nottinghamshire County Council,1111/1001,Adult Social Care an,ASCH,Contract Hire / Leasing       ,CCA,15.12.2011,10-04241,1346.6,CBC Taxis Ltd
Nottinghamshire County Council,1111/1001,Adult Social Care an,ASCH,Contract Hire / Leasing       ,CCA,15.12.2011,10-04242,1535.1,CBC Taxis Ltd
Nottinghamshire County Council,1111/1001,Adult Social Care an,ASCH,Contract Hire / Leasing       ,CCA,15.12.2011,10-04243,1332.15,CBC Taxis Ltd
Nottinghamshire County Council,1111/1001,Adult Social Care an,ASCH,Contract Hire / Leasing       ,CCA,15.12.2011,10-04244,1256.8,CBC Taxis Ltd
Nottinghamshire County Council,1111/1001,Adult Social Care an,ASCH,Contract Hire / Leasing       ,CCA,15.12.2011,10-04245,1207.1,CBC Taxis Ltd
Nottinghamshire County Council,1111/1001,Adult Social Care an,ASCH,Contract Hire / Leasing       ,CCA,15.12.2011,10-04246,1531.4,CBC Taxis Ltd
Nottinghamshire County Council,1111/1001,Adult Social Care an,ASCH,Contract Hire / Leasing       ,CCA,15.12.2011,10-04247,1258.7,CBC Taxis Ltd
Nottinghamshire County Council,1111/1001,Adult Social Care an,ASCH,Contract Hire / Leasing       ,CCA,15.12.2011,10-04248,21646.1,Ace Of Mansfield Ltd
Nottinghamshire County Council,1111/1001,Adult Social Care an,ASCH,Contract Hire / Leasing       ,CCA,15.12.2011,10-04251,1382.4,Acorn Travel
Nottinghamshire County Council,1111/1001,Adult Social Care an,ASCH,Contract Hire / Leasing       ,CCA,15.12.2011,10-04252,1158.88,Acorn Travel
Nottinghamshire County Council,1111/1001,Adult Social Care an,ASCH,Contract Hire / Leasing       ,CCA,15.12.2011,10-04253,1546.56,Acorn Travel
Nottinghamshire County Council,1111/1001,Adult Social Care an,ASCH,Contract Hire / Leasing       ,CCA,15.12.2011,10-04254,920,Acorn Travel
Nottinghamshire County Council,1111/1001,Adult Social Care an,ASCH,Contract Hire / Leasing       ,CCA,15.12.2011,10-04255,824.28,Acorn Travel
